Body Name,Body,Service Label,Service Code,CIPFA Detailed Expenditure Type,CIPFA Detailed Expenditure Code,Date,Transaction Number,Net Amount,Supplier Name
Nottinghamshire County Council,1111/1001,Children and Young People,CYP,Employee Related,ABA,07/07/2023,04-18562,510.95,Duffy Optometrists Ltd
Nottinghamshire County Council,1111/1001,Children and Young People,CYP,Premises Related,BAA,06/07/2023,04-10876,5612.58,ARC Property Services Partnership L
Nottinghamshire County Council,1111/1001,Children and Young People,CYP,Premises Related,BAA,13/07/2023,04-11946,6188.06,ARC Property Services Partnership L
Nottinghamshire County Council,1111/1001,Children and Young People,CYP,Premises Related,BAA,18/07/2023,04-12882,8061.33,ARC Property Services Partnership L
Nottinghamshire County Council,1111/1001,Children and Young People,CYP,Premises Related,BAA,28/07/2023,04-15292,6805.04,ARC Property Services Partnership L
Nottinghamshire County Council,1111/1001,Children and Young People,CYP,Premises Related,BCA,03/07/2023,04-18256,"1,303.75",Certas Energy UK Ltd T/A Pace Fuelc
Nottinghamshire County Council,1111/1001,Children and Young People,CYP,Premises Related,BDA,06/07/2023,04-18460,538.88,Healdswood Infant & Nursery School
Nottinghamshire County Council,1111/1001,Children and Young People,CYP,Premises Related,BDA,06/07/2023,04-18512,4458.34,Liberty Leisure Ltd
Nottinghamshire County Council,1111/1001,Children and Young People,CYP,Premises Related,BDA,10/07/2023,04-11576,"9,235.54",Calder Conferences Ltd
Nottinghamshire County Council,1111/1001,Children and Young People,CYP,Premises Related,BDA,10/07/2023,04-18220,1054.5,Active4Today Ltd
Nottinghamshire County Council,1111/1001,Children and Young People,CYP,Premises Related,BDA,10/07/2023,04-18222,"1,845.50",Active4Today Ltd
Nottinghamshire County Council,1111/1001,Children and Young People,CYP,Premises Related,BDA,10/07/2023,04-18223,8236.37,Active4Today Ltd
Nottinghamshire County Council,1111/1001,Children and Young People,CYP,Premises Related,BDA,17/07/2023,04-18298,4944.5,More Leisure Community Trust Ltd
Nottinghamshire County Council,1111/1001,Children and Young People,CYP,Premises Related,BDA,17/07/2023,04-18523,14850,Kimberley School Academy
Nottinghamshire County Council,1111/1001,Children and Young People,CYP,Premises Related,BDA,18/07/2023,04-18479,"3,281.63",SLM Fitness & Health Ltd (Everyone
Nottinghamshire County Council,1111/1001,Children and Young People,CYP,Premises Related,BDA,20/07/2023,04-18297,2245,Lex Leisure CIC
Nottinghamshire County Council,1111/1001,Children and Young People,CYP,Premises Related,BDA,31/07/2023,04-19058,1768.63,Harworth & Bircotes Town Council
Nottinghamshire County Council,1111/1001,Children and Young People,CYP,Premises Related,BDA,31/07/2023,04-19062,"3,642.35",Harworth & Bircotes Town Council
Nottinghamshire County Council,1111/1001,Children and Young People,CYP,Premises Related,BEA,17/07/2023,04-12406,16286.78,Ashfield District Council
Nottinghamshire County Council,1111/1001,Children and Young People,CYP,Premises Related,BJA,26/07/2023,04-15152,1764.65,Enva England Ltd
Nottinghamshire County Council,1111/1001,Children and Young People,CYP,Transport Related,CAA,10/07/2023,04-10061,372.96,UK Fuels Ltd
Nottinghamshire County Council,1111/1001,Children and Young People,CYP,Transport Related,CAA,10/07/2023,04-10068,465.38,UK Fuels Ltd
Nottinghamshire County Council,1111/1001,Children and Young People,CYP,Transport Related,CAA,11/07/2023,04-10667,773.82,Via East Midlands Ltd
Nottinghamshire County Council,1111/1001,Children and Young People,CYP,Transport Related,CAA,11/07/2023,04-10849,267.22,Via East Midlands Ltd
Nottinghamshire County Council,1111/1001,Children and Young People,CYP,Transport Related,CAA,12/07/2023,04-10094,595.32,UK Fuels Ltd
Nottinghamshire County Council,1111/1001,Children and Young People,CYP,Transport Related,CAA,19/07/2023,04-10113,305.06,UK Fuels Ltd
Nottinghamshire County Council,1111/1001,Children and Young People,CYP,Transport Related,CAA,20/07/2023,04-14431,948.7,UK Fuels Ltd
Nottinghamshire County Council,1111/1001,Children and Young People,CYP,Transport Related,CAA,20/07/2023,04-14442,"1,231.00",Via East Midlands Ltd
Nottinghamshire County Council,1111/1001,Children and Young People,CYP,Transport Related,CCA,04/07/2023,04-10489,750,Sharpes Of Nottingham
Nottinghamshire County Council,1111/1001,Children and Young People,CYP,Transport Related,CCA,04/07/2023,04-10490,"1,344.82",Sharpes Of Nottingham
Nottinghamshire County Council,1111/1001,Children and Young People,CYP,Transport Related,CCA,04/07/2023,04-10491,1330,Southside Cars Ltd
Nottinghamshire County Council,1111/1001,Children and Young People,CYP,Transport Related,CCA,04/07/2023,04-10492,"2,261.00",Southside Cars Ltd
Nottinghamshire County Council,1111/1001,Children and Young People,CYP,Transport Related,CCA,04/07/2023,04-10493,680,Southside Cars Ltd
Nottinghamshire County Council,1111/1001,Children and Young People,CYP,Transport Related,CCA,04/07/2023,04-10494,934.23,Southside Cars Ltd
Nottinghamshire County Council,1111/1001,Children and Young People,CYP,Transport Related,CCA,04/07/2023,04-10497,3704.58,Johnson Bros Tours Ltd
Nottinghamshire County Council,1111/1001,Children and Young People,CYP,Transport Related,CCA,04/07/2023,04-10498,"6,110.92",Johnson Bros Tours Ltd
Nottinghamshire County Council,1111/1001,Children and Young People,CYP,Transport Related,CCA,04/07/2023,04-10500,810,Abacus Cars
Nottinghamshire County Council,1111/1001,Children and Young People,CYP,Transport Related,CCA,04/07/2023,04-10501,"1,316.88",Marshalls Of Sutton On Trent Ltd
Nottinghamshire County Council,1111/1001,Children and Young People,CYP,Transport Related,CCA,04/07/2023,04-10502,2528.39,Marshalls Of Sutton On Trent Ltd
Nottinghamshire County Council,1111/1001,Children and Young People,CYP,Transport Related,CCA,04/07/2023,04-10503,"2,383.12",Freeway Coaches Ltd
Nottinghamshire County Council,1111/1001,Children and Young People,CYP,Transport Related,CCA,04/07/2023,04-10504,"6,074.92",Kettlewell Retford Ltd
Nottinghamshire County Council,1111/1001,Children and Young People,CYP,Transport Related,CCA,04/07/2023,04-10505,693.28,Kettlewell Retford Ltd
Nottinghamshire County Council,1111/1001,Children and Young People,CYP,Transport Related,CCA,04/07/2023,04-10506,2220,Hammonds Coaches Ltd
Nottinghamshire County Council,1111/1001,Children and Young People,CYP,Transport Related,CCA,04/07/2023,04-10507,1250,Hammonds Coaches Ltd
Nottinghamshire County Council,1111/1001,Children and Young People,CYP,Transport Related,CCA,04/07/2023,04-10508,"4,634.50",Rushcliffe Travel Ltd
Nottinghamshire County Council,1111/1001,Children and Young People,CYP,Transport Related,CCA,04/07/2023,04-10509,"1,972.97",SM Travel Yorkshire Ltd
Nottinghamshire County Council,1111/1001,Children and Young People,CYP,Transport Related,CCA,04/07/2023,04-10510,1795.9,SM Travel Yorkshire Ltd
Nottinghamshire County Council,1111/1001,Children and Young People,CYP,Transport Related,CCA,04/07/2023,04-10512,"1,275.60",SM Travel Yorkshire Ltd
Nottinghamshire County Council,1111/1001,Children and Young People,CYP,Transport Related,CCA,04/07/2023,04-10513,"1,498.77",SM Travel Yorkshire Ltd
Nottinghamshire County Council,1111/1001,Children and Young People,CYP,Transport Related,CCA,04/07/2023,04-10514,1498.77,SM Travel Yorkshire Ltd
Nottinghamshire County Council,1111/1001,Children and Young People,CYP,Transport Related,CCA,04/07/2023,04-10515,"1,489.69",SM Travel Yorkshire Ltd
Nottinghamshire County Council,1111/1001,Children and Young People,CYP,Transport Related,CCA,04/07/2023,04-10516,1437.37,SM Travel Yorkshire Ltd
Nottinghamshire County Council,1111/1001,Children and Young People,CYP,Transport Related,CCA,04/07/2023,04-10517,1549.8,SM Travel Yorkshire Ltd
Nottinghamshire County Council,1111/1001,Children and Young People,CYP,Transport Related,CCA,04/07/2023,04-10518,"2,201.47",SM Travel Yorkshire Ltd
Nottinghamshire County Council,1111/1001,Children and Young People,CYP,Transport Related,CCA,04/07/2023,04-10519,1730.29,SM Travel Yorkshire Ltd
Nottinghamshire County Council,1111/1001,Children and Young People,CYP,Transport Related,CCA,04/07/2023,04-10520,"1,763.37",SM Travel Yorkshire Ltd
Nottinghamshire County Council,1111/1001,Children and Young People,CYP,Transport Related,CCA,04/07/2023,04-10521,1872.61,SM Travel Yorkshire Ltd
Nottinghamshire County Council,1111/1001,Children and Young People,CYP,Transport Related,CCA,04/07/2023,04-10522,"1,857.87",SM Travel Yorkshire Ltd
Nottinghamshire County Council,1111/1001,Children and Young People,CYP,Transport Related,CCA,04/07/2023,04-10523,2046.87,SM Travel Yorkshire Ltd
Nottinghamshire County Council,1111/1001,Children and Young People,CYP,Transport Related,CCA,04/07/2023,04-10524,2235.87,SM Travel Yorkshire Ltd
Nottinghamshire County Council,1111/1001,Children and Young People,CYP,Transport Related,CCA,04/07/2023,04-10525,2602.34,SM Travel Yorkshire Ltd
Nottinghamshire County Council,1111/1001,Children and Young People,CYP,Transport Related,CCA,04/07/2023,04-10526,"2,560.00",SM Travel Yorkshire Ltd
Nottinghamshire County Council,1111/1001,Children and Young People,CYP,Transport Related,CCA,04/07/2023,04-10527,2560.95,SM Travel Yorkshire Ltd
Nottinghamshire County Council,1111/1001,Children and Young People,CYP,Transport Related,CCA,04/07/2023,04-10528,"2,871.09",SM Travel Yorkshire Ltd
Nottinghamshire County Council,1111/1001,Children and Young People,CYP,Transport Related,CCA,04/07/2023,04-10529,2762.04,SM Travel Yorkshire Ltd
Nottinghamshire County Council,1111/1001,Children and Young People,CYP,Transport Related,CCA,04/07/2023,04-10530,2872.98,SM Travel Yorkshire Ltd
Nottinghamshire County Council,1111/1001,Children and Young People,CYP,Transport Related,CCA,04/07/2023,04-10531,"2,954.07",SM Travel Yorkshire Ltd
Nottinghamshire County Council,1111/1001,Children and Young People,CYP,Transport Related,CCA,04/07/2023,04-10532,3034.05,SM Travel Yorkshire Ltd
Nottinghamshire County Council,1111/1001,Children and Young People,CYP,Transport Related,CCA,04/07/2023,04-10533,3387.7,SM Travel Yorkshire Ltd
Nottinghamshire County Council,1111/1001,Children and Young People,CYP,Transport Related,CCA,04/07/2023,04-10534,1017.51,SM Travel Yorkshire Ltd
Nottinghamshire County Council,1111/1001,Children and Young People,CYP,Transport Related,CCA,04/07/2023,04-10535,3369.87,SM Travel Yorkshire Ltd
Nottinghamshire County Council,1111/1001,Children and Young People,CYP,Transport Related,CCA,04/07/2023,04-10536,1519.73,SM Travel Yorkshire Ltd
Nottinghamshire County Council,1111/1001,Children and Young People,CYP,Transport Related,CCA,04/07/2023,04-10538,3317.87,SM Travel Yorkshire Ltd
Nottinghamshire County Council,1111/1001,Children and Young People,CYP,Transport Related,CCA,04/07/2023,04-10539,3574.74,SM Travel Yorkshire Ltd
Nottinghamshire County Council,1111/1001,Children and Young People,CYP,Transport Related,CCA,04/07/2023,04-10540,3785.1,SM Travel Yorkshire Ltd
Nottinghamshire County Council,1111/1001,Children and Young People,CYP,Transport Related,CCA,04/07/2023,04-10541,3734.64,SM Travel Yorkshire Ltd
Nottinghamshire County Council,1111/1001,Children and Young People,CYP,Transport Related,CCA,04/07/2023,04-10543,3354.75,SM Travel Yorkshire Ltd
Nottinghamshire County Council,1111/1001,Children and Young People,CYP,Transport Related,CCA,04/07/2023,04-10544,931.77,SM Travel Yorkshire Ltd
Nottinghamshire County Council,1111/1001,Children and Young People,CYP,Transport Related,CCA,04/07/2023,04-10545,3277.97,SM Travel Yorkshire Ltd
Nottinghamshire County Council,1111/1001,Children and Young People,CYP,Transport Related,CCA,04/07/2023,04-10547,971.75,SM Travel Yorkshire Ltd
Nottinghamshire County Council,1111/1001,Children and Young People,CYP,Transport Related,CCA,04/07/2023,04-10548,691.5,SM Travel Yorkshire Ltd
Nottinghamshire County Council,1111/1001,Children and Young People,CYP,Transport Related,CCA,04/07/2023,04-10549,3155.77,SM Travel Yorkshire Ltd
Nottinghamshire County Council,1111/1001,Children and Young People,CYP,Transport Related,CCA,05/07/2023,04-10697,2625.16,Taxicover Uk Ltd
Nottinghamshire County Council,1111/1001,Children and Young People,CYP,Transport Related,CCA,05/07/2023,04-10698,570,Fozcabs Newark Taxis
Nottinghamshire County Council,1111/1001,Children and Young People,CYP,Transport Related,CCA,05/07/2023,04-10699,4042.47,K Matthews Travel
Nottinghamshire County Council,1111/1001,Children and Young People,CYP,Transport Related,CCA,05/07/2023,04-10700,4327.64,Ace Cars & Minibuses Ltd
Nottinghamshire County Council,1111/1001,Children and Young People,CYP,Transport Related,CCA,05/07/2023,04-10702,1959.3,SM Travel Yorkshire Ltd
Nottinghamshire County Council,1111/1001,Children and Young People,CYP,Transport Related,CCA,06/07/2023,04-10858,1550,F4Control Ltd (t/a First4care)
Nottinghamshire County Council,1111/1001,Children and Young People,CYP,Transport Related,CCA,06/07/2023,04-10859,1669.1,F4Control Ltd (t/a First4care)
Nottinghamshire County Council,1111/1001,Children and Young People,CYP,Transport Related,CCA,06/07/2023,04-10860,525,F4Control Ltd (t/a First4care)
Nottinghamshire County Council,1111/1001,Children and Young People,CYP,Transport Related,CCA,06/07/2023,04-10861,1877.59,BN Gibson Ltd
Nottinghamshire County Council,1111/1001,Children and Young People,CYP,Transport Related,CCA,06/07/2023,04-10862,3481.56,BN Gibson Ltd
Nottinghamshire County Council,1111/1001,Children and Young People,CYP,Transport Related,CCA,06/07/2023,04-10863,1958.88,SM Travel Yorkshire Ltd
Nottinghamshire County Council,1111/1001,Children and Young People,CYP,Transport Related,CCA,06/07/2023,04-10870,1398.47,SM Travel Yorkshire Ltd
Nottinghamshire County Council,1111/1001,Children and Young People,CYP,Transport Related,CCA,06/07/2023,04-10871,3935.54,SM Travel Yorkshire Ltd
Nottinghamshire County Council,1111/1001,Children and Young People,CYP,Transport Related,CCA,06/07/2023,04-10872,1617.56,SM Travel Yorkshire Ltd
Nottinghamshire County Council,1111/1001,Children and Young People,CYP,Transport Related,CCA,06/07/2023,04-10873,1060.57,SM Travel Yorkshire Ltd
Nottinghamshire County Council,1111/1001,Children and Young People,CYP,Transport Related,CCA,06/07/2023,04-10874,3624,JK Transport Ltd
Nottinghamshire County Council,1111/1001,Children and Young People,CYP,Transport Related,CCA,06/07/2023,04-10875,500,JK Transport Ltd
Nottinghamshire County Council,1111/1001,Children and Young People,CYP,Transport Related,CCA,07/07/2023,04-18279,600,Trent Motor Traction Company Ltd
Nottinghamshire County Council,1111/1001,Children and Young People,CYP,Transport Related,CCA,10/07/2023,04-11525,2426.04,F4Control Ltd (t/a First4care)
Nottinghamshire County Council,1111/1001,Children and Young People,CYP,Transport Related,CCA,10/07/2023,04-11526,2876.8,F4Control Ltd (t/a First4care)
Nottinghamshire County Council,1111/1001,Children and Young People,CYP,Transport Related,CCA,10/07/2023,04-11527,3790,BN Gibson Ltd
Nottinghamshire County Council,1111/1001,Children and Young People,CYP,Transport Related,CCA,10/07/2023,04-11528,3773.96,BN Gibson Ltd
Nottinghamshire County Council,1111/1001,Children and Young People,CYP,Transport Related,CCA,10/07/2023,04-11530,2314.65,24 x 7 (Nottingham) Ltd
Nottinghamshire County Council,1111/1001,Children and Young People,CYP,Transport Related,CCA,10/07/2023,04-11531,1835.64,24 x 7 (Nottingham) Ltd
Nottinghamshire County Council,1111/1001,Children and Young People,CYP,Transport Related,CCA,10/07/2023,04-11533,1775,JK Transport Ltd
Nottinghamshire County Council,1111/1001,Children and Young People,CYP,Transport Related,CCA,13/07/2023,04-11967,933.6,6 Five 2s
Nottinghamshire County Council,1111/1001,Children and Young People,CYP,Transport Related,CCA,13/07/2023,04-11970,1485.2,6 Five 2s
Nottinghamshire County Council,1111/1001,Children and Young People,CYP,Transport Related,CCA,13/07/2023,04-11972,646,6 Five 2s
Nottinghamshire County Council,1111/1001,Children and Young People,CYP,Transport Related,CCA,13/07/2023,04-11973,689.52,6 Five 2s
Nottinghamshire County Council,1111/1001,Children and Young People,CYP,Transport Related,CCA,13/07/2023,04-11974,1796,6 Five 2s
Nottinghamshire County Council,1111/1001,Children and Young People,CYP,Transport Related,CCA,13/07/2023,04-11975,1170,6 Five 2s
Nottinghamshire County Council,1111/1001,Children and Young People,CYP,Transport Related,CCA,13/07/2023,04-11976,800,6 Five 2s
Nottinghamshire County Council,1111/1001,Children and Young People,CYP,Transport Related,CCA,13/07/2023,04-11977,1120,6 Five 2s
Nottinghamshire County Council,1111/1001,Children and Young People,CYP,Transport Related,CCA,13/07/2023,04-11978,1485.2,6 Five 2s
Nottinghamshire County Council,1111/1001,Children and Young People,CYP,Transport Related,CCA,13/07/2023,04-11979,1000,6 Five 2s
Nottinghamshire County Council,1111/1001,Children and Young People,CYP,Transport Related,CCA,13/07/2023,04-11980,875,6 Five 2s
Nottinghamshire County Council,1111/1001,Children and Young People,CYP,Transport Related,CCA,13/07/2023,04-11981,3120.4,6 Five 2s
Nottinghamshire County Council,1111/1001,Children and Young People,CYP,Transport Related,CCA,13/07/2023,04-11983,1498,6 Five 2s
Nottinghamshire County Council,1111/1001,Children and Young People,CYP,Transport Related,CCA,13/07/2023,04-11984,"1,280.00",6 Five 2s
Nottinghamshire County Council,1111/1001,Children and Young People,CYP,Transport Related,CCA,13/07/2023,04-11986,"3,319.60",F4Control Ltd (t/a First4care)
Nottinghamshire County Council,1111/1001,Children and Young People,CYP,Transport Related,CCA,13/07/2023,04-11987,3284.4,F4Control Ltd (t/a First4care)
Nottinghamshire County Council,1111/1001,Children and Young People,CYP,Transport Related,CCA,13/07/2023,04-11988,4447.6,F4Control Ltd (t/a First4care)
Nottinghamshire County Council,1111/1001,Children and Young People,CYP,Transport Related,CCA,13/07/2023,04-11989,"4,590.00",F4Control Ltd (t/a First4care)
Nottinghamshire County Council,1111/1001,Children and Young People,CYP,Transport Related,CCA,13/07/2023,04-11990,"3,814.80",F4Control Ltd (t/a First4care)
Nottinghamshire County Council,1111/1001,Children and Young People,CYP,Transport Related,CCA,13/07/2023,04-11991,2625.4,F4Control Ltd (t/a First4care)
Nottinghamshire County Council,1111/1001,Children and Young People,CYP,Transport Related,CCA,13/07/2023,04-11992,3278.45,Martins Travel
Nottinghamshire County Council,1111/1001,Children and Young People,CYP,Transport Related,CCA,13/07/2023,04-11994,2482.42,200 Cars Ltd
Nottinghamshire County Council,1111/1001,Children and Young People,CYP,Transport Related,CCA,13/07/2023,04-11996,"1,017.50",Ace Of Mansfield Ltd
Nottinghamshire County Council,1111/1001,Children and Young People,CYP,Transport Related,CCA,13/07/2023,04-11999,954.8,Acorn Contracts
Nottinghamshire County Council,1111/1001,Children and Young People,CYP,Transport Related,CCA,13/07/2023,04-12000,"2,284.80",Acorn Contracts
Nottinghamshire County Council,1111/1001,Children and Young People,CYP,Transport Related,CCA,13/07/2023,04-12002,1632,Acorn Contracts
Nottinghamshire County Council,1111/1001,Children and Young People,CYP,Transport Related,CCA,13/07/2023,04-12004,"1,600.00",Acorn Contracts
Nottinghamshire County Council,1111/1001,Children and Young People,CYP,Transport Related,CCA,13/07/2023,04-12005,3660,Arrow Specialised Transport Ltd
Nottinghamshire County Council,1111/1001,Children and Young People,CYP,Transport Related,CCA,13/07/2023,04-12006,"4,293.05",Arrow Specialised Transport Ltd
Nottinghamshire County Council,1111/1001,Children and Young People,CYP,Transport Related,CCA,13/07/2023,04-12007,"3,274.65",Arrow Specialised Transport Ltd
Nottinghamshire County Council,1111/1001,Children and Young People,CYP,Transport Related,CCA,13/07/2023,04-12008,"3,895.19",Arrow Specialised Transport Ltd
Nottinghamshire County Council,1111/1001,Children and Young People,CYP,Transport Related,CCA,13/07/2023,04-12009,3769.41,Arrow Specialised Transport Ltd
Nottinghamshire County Council,1111/1001,Children and Young People,CYP,Transport Related,CCA,13/07/2023,04-12010,"2,978.40",Arrow Specialised Transport Ltd
Nottinghamshire County Council,1111/1001,Children and Young People,CYP,Transport Related,CCA,13/07/2023,04-12011,2885.4,Arrow Specialised Transport Ltd
Nottinghamshire County Council,1111/1001,Children and Young People,CYP,Transport Related,CCA,13/07/2023,04-12012,5530,Arrow Specialised Transport Ltd
Nottinghamshire County Council,1111/1001,Children and Young People,CYP,Transport Related,CCA,13/07/2023,04-12013,"5,620.00",Arrow Specialised Transport Ltd
Nottinghamshire County Council,1111/1001,Children and Young People,CYP,Transport Related,CCA,13/07/2023,04-12014,5545,Arrow Specialised Transport Ltd
Nottinghamshire County Council,1111/1001,Children and Young People,CYP,Transport Related,CCA,13/07/2023,04-12015,"4,075.50",Arrow Specialised Transport Ltd
Nottinghamshire County Council,1111/1001,Children and Young People,CYP,Transport Related,CCA,13/07/2023,04-12016,4614.8,Arrow Specialised Transport Ltd
Nottinghamshire County Council,1111/1001,Children and Young People,CYP,Transport Related,CCA,13/07/2023,04-12017,"2,669.00",Arrow Specialised Transport Ltd
Nottinghamshire County Council,1111/1001,Children and Young People,CYP,Transport Related,CCA,13/07/2023,04-12018,3793.6,Arrow Specialised Transport Ltd
Nottinghamshire County Council,1111/1001,Children and Young People,CYP,Transport Related,CCA,13/07/2023,04-12019,3234.4,Arrow Specialised Transport Ltd
Nottinghamshire County Council,1111/1001,Children and Young People,CYP,Transport Related,CCA,13/07/2023,04-12020,2906.6,Arrow Specialised Transport Ltd
Nottinghamshire County Council,1111/1001,Children and Young People,CYP,Transport Related,CCA,13/07/2023,04-12021,3996,Arrow Specialised Transport Ltd
Nottinghamshire County Council,1111/1001,Children and Young People,CYP,Transport Related,CCA,13/07/2023,04-12022,3369,Arrow Specialised Transport Ltd
Nottinghamshire County Council,1111/1001,Children and Young People,CYP,Transport Related,CCA,13/07/2023,04-12023,"2,444.20",Arrow Specialised Transport Ltd
Nottinghamshire County Council,1111/1001,Children and Young People,CYP,Transport Related,CCA,13/07/2023,04-12024,3517.6,Arrow Specialised Transport Ltd
Nottinghamshire County Council,1111/1001,Children and Young People,CYP,Transport Related,CCA,13/07/2023,04-12025,3732.4,Arrow Specialised Transport Ltd
Nottinghamshire County Council,1111/1001,Children and Young People,CYP,Transport Related,CCA,13/07/2023,04-12026,2936,Arrow Specialised Transport Ltd
Nottinghamshire County Council,1111/1001,Children and Young People,CYP,Transport Related,CCA,13/07/2023,04-12028,1501,Arrow Specialised Transport Ltd
Nottinghamshire County Council,1111/1001,Children and Young People,CYP,Transport Related,CCA,13/07/2023,04-12029,2341.18,Arrow Specialised Transport Ltd
Nottinghamshire County Council,1111/1001,Children and Young People,CYP,Transport Related,CCA,13/07/2023,04-12030,3669.66,Arrow Specialised Transport Ltd
Nottinghamshire County Council,1111/1001,Children and Young People,CYP,Transport Related,CCA,13/07/2023,04-12031,"3,412.78",Arrow Specialised Transport Ltd
Nottinghamshire County Council,1111/1001,Children and Young People,CYP,Transport Related,CCA,13/07/2023,04-12032,"2,405.97",Arrow Specialised Transport Ltd
Nottinghamshire County Council,1111/1001,Children and Young People,CYP,Transport Related,CCA,13/07/2023,04-12033,"3,395.68",Arrow Specialised Transport Ltd
Nottinghamshire County Council,1111/1001,Children and Young People,CYP,Transport Related,CCA,13/07/2023,04-12034,"1,889.55",Arrow Specialised Transport Ltd
Nottinghamshire County Council,1111/1001,Children and Young People,CYP,Transport Related,CCA,13/07/2023,04-12035,1900.95,Arrow Specialised Transport Ltd
Nottinghamshire County Council,1111/1001,Children and Young People,CYP,Transport Related,CCA,13/07/2023,04-12036,"3,140.60",Arrow Specialised Transport Ltd
Nottinghamshire County Council,1111/1001,Children and Young People,CYP,Transport Related,CCA,13/07/2023,04-12037,"3,223.20",Arrow Specialised Transport Ltd
Nottinghamshire County Council,1111/1001,Children and Young People,CYP,Transport Related,CCA,13/07/2023,04-12038,3264,Arrow Specialised Transport Ltd
Nottinghamshire County Council,1111/1001,Children and Young People,CYP,Transport Related,CCA,13/07/2023,04-12039,3162,Arrow Specialised Transport Ltd
Nottinghamshire County Council,1111/1001,Children and Young People,CYP,Transport Related,CCA,13/07/2023,04-12040,5149.4,Arrow Specialised Transport Ltd
Nottinghamshire County Council,1111/1001,Children and Young People,CYP,Transport Related,CCA,13/07/2023,04-12041,5750.4,Arrow Specialised Transport Ltd
Nottinghamshire County Council,1111/1001,Children and Young People,CYP,Transport Related,CCA,13/07/2023,04-12042,"2,961.00",Arrow Specialised Transport Ltd
Nottinghamshire County Council,1111/1001,Children and Young People,CYP,Transport Related,CCA,13/07/2023,04-12043,"2,957.00",Arrow Specialised Transport Ltd
Nottinghamshire County Council,1111/1001,Children and Young People,CYP,Transport Related,CCA,13/07/2023,04-12044,"5,460.00",Arrow Specialised Transport Ltd
Nottinghamshire County Council,1111/1001,Children and Young People,CYP,Transport Related,CCA,13/07/2023,04-12045,"4,990.00",Arrow Specialised Transport Ltd
Nottinghamshire County Council,1111/1001,Children and Young People,CYP,Transport Related,CCA,13/07/2023,04-12046,"2,590.00",Arrow Specialised Transport Ltd
Nottinghamshire County Council,1111/1001,Children and Young People,CYP,Transport Related,CCA,13/07/2023,04-12048,"2,644.80",Arrow Specialised Transport Ltd
Nottinghamshire County Council,1111/1001,Children and Young People,CYP,Transport Related,CCA,13/07/2023,04-12049,"1,922.00",Arrow Specialised Transport Ltd
Nottinghamshire County Council,1111/1001,Children and Young People,CYP,Transport Related,CCA,13/07/2023,04-12050,"2,800.60",Arrow Specialised Transport Ltd
Nottinghamshire County Council,1111/1001,Children and Young People,CYP,Transport Related,CCA,13/07/2023,04-12051,"3,604.68",Arrow Specialised Transport Ltd
Nottinghamshire County Council,1111/1001,Children and Young People,CYP,Transport Related,CCA,13/07/2023,04-12052,"3,007.13",Arrow Specialised Transport Ltd
Nottinghamshire County Council,1111/1001,Children and Young People,CYP,Transport Related,CCA,13/07/2023,04-12053,"3,804.37",Arrow Specialised Transport Ltd
Nottinghamshire County Council,1111/1001,Children and Young People,CYP,Transport Related,CCA,13/07/2023,04-12054,"5,031.58",Arrow Specialised Transport Ltd
Nottinghamshire County Council,1111/1001,Children and Young People,CYP,Transport Related,CCA,13/07/2023,04-12055,"6,778.25",Arrow Specialised Transport Ltd
Nottinghamshire County Council,1111/1001,Children and Young People,CYP,Transport Related,CCA,13/07/2023,04-12056,"7,778.60",Arrow Specialised Transport Ltd
Nottinghamshire County Council,1111/1001,Children and Young People,CYP,Transport Related,CCA,13/07/2023,04-12057,"2,432.19",Arrow Specialised Transport Ltd
Nottinghamshire County Council,1111/1001,Children and Young People,CYP,Transport Related,CCA,13/07/2023,04-12058,"5,500.50",Arrow Specialised Transport Ltd
Nottinghamshire County Council,1111/1001,Children and Young People,CYP,Transport Related,CCA,13/07/2023,04-12059,"4,547.20",Arrow Specialised Transport Ltd
Nottinghamshire County Council,1111/1001,Children and Young People,CYP,Transport Related,CCA,13/07/2023,04-12060,"3,708.00",Arrow Specialised Transport Ltd
Nottinghamshire County Council,1111/1001,Children and Young People,CYP,Transport Related,CCA,13/07/2023,04-12061,"2,744.00",Arrow Specialised Transport Ltd
Nottinghamshire County Council,1111/1001,Children and Young People,CYP,Transport Related,CCA,13/07/2023,04-12062,"3,064.00",Arrow Specialised Transport Ltd
Nottinghamshire County Council,1111/1001,Children and Young People,CYP,Transport Related,CCA,13/07/2023,04-12063,"3,692.00",Arrow Specialised Transport Ltd
Nottinghamshire County Council,1111/1001,Children and Young People,CYP,Transport Related,CCA,13/07/2023,04-12064,"3,832.00",Arrow Specialised Transport Ltd
Nottinghamshire County Council,1111/1001,Children and Young People,CYP,Transport Related,CCA,13/07/2023,04-12066,"5,147.00",Arrow Specialised Transport Ltd
Nottinghamshire County Council,1111/1001,Children and Young People,CYP,Transport Related,CCA,13/07/2023,04-12067,"3,555.80",Arrow Specialised Transport Ltd
Nottinghamshire County Council,1111/1001,Children and Young People,CYP,Transport Related,CCA,13/07/2023,04-12068,"2,713.20",Bridges Transport Ltd
Nottinghamshire County Council,1111/1001,Children and Young People,CYP,Transport Related,CCA,13/07/2023,04-12069,"2,358.09",Bridges Transport Ltd
Nottinghamshire County Council,1111/1001,Children and Young People,CYP,Transport Related,CCA,13/07/2023,04-12070,"3,344.00",Bridges Transport Ltd
Nottinghamshire County Council,1111/1001,Children and Young People,CYP,Transport Related,CCA,13/07/2023,04-12071,"3,649.20",Bridges Transport Ltd
Nottinghamshire County Council,1111/1001,Children and Young People,CYP,Transport Related,CCA,13/07/2023,04-12072,"4,378.30",Butler Brothers Ltd
Nottinghamshire County Council,1111/1001,Children and Young People,CYP,Transport Related,CCA,13/07/2023,04-12073,792,Fozcabs Newark Taxis
Nottinghamshire County Council,1111/1001,Children and Young People,CYP,Transport Related,CCA,13/07/2023,04-12075,"3,268.00",Horizon Travel
Nottinghamshire County Council,1111/1001,Children and Young People,CYP,Transport Related,CCA,13/07/2023,04-12076,"2,015.40",Elkingtons Park Garage
Nottinghamshire County Council,1111/1001,Children and Young People,CYP,Transport Related,CCA,13/07/2023,04-12077,"2,858.80",F4Control Ltd (t/a First4care)
Nottinghamshire County Council,1111/1001,Children and Young People,CYP,Transport Related,CCA,13/07/2023,04-12078,"3,573.20",F4Control Ltd (t/a First4care)
Nottinghamshire County Council,1111/1001,Children and Young People,CYP,Transport Related,CCA,13/07/2023,04-12079,"3,562.00",F4Control Ltd (t/a First4care)
Nottinghamshire County Council,1111/1001,Children and Young People,CYP,Transport Related,CCA,13/07/2023,04-12080,"3,427.20",F4Control Ltd (t/a First4care)
Nottinghamshire County Council,1111/1001,Children and Young People,CYP,Transport Related,CCA,13/07/2023,04-12081,"3,098.33",F4Control Ltd (t/a First4care)
Nottinghamshire County Council,1111/1001,Children and Young People,CYP,Transport Related,CCA,13/07/2023,04-12082,"2,666.60",F4Control Ltd (t/a First4care)
Nottinghamshire County Council,1111/1001,Children and Young People,CYP,Transport Related,CCA,13/07/2023,04-12083,"3,431.20",F4Control Ltd (t/a First4care)
Nottinghamshire County Council,1111/1001,Children and Young People,CYP,Transport Related,CCA,13/07/2023,04-12084,"3,388.80",F4Control Ltd (t/a First4care)
Nottinghamshire County Council,1111/1001,Children and Young People,CYP,Transport Related,CCA,13/07/2023,04-12085,"3,405.00",F4Control Ltd (t/a First4care)
Nottinghamshire County Council,1111/1001,Children and Young People,CYP,Transport Related,CCA,13/07/2023,04-12086,"2,771.91",F4Control Ltd (t/a First4care)
Nottinghamshire County Council,1111/1001,Children and Young People,CYP,Transport Related,CCA,13/07/2023,04-12087,"3,129.80",F4Control Ltd (t/a First4care)
Nottinghamshire County Council,1111/1001,Children and Young People,CYP,Transport Related,CCA,13/07/2023,04-12088,"3,447.60",F4Control Ltd (t/a First4care)
Nottinghamshire County Council,1111/1001,Children and Young People,CYP,Transport Related,CCA,13/07/2023,04-12089,"2,667.60",F4Control Ltd (t/a First4care)
Nottinghamshire County Council,1111/1001,Children and Young People,CYP,Transport Related,CCA,13/07/2023,04-12091,"2,392.20",F4Control Ltd (t/a First4care)
Nottinghamshire County Council,1111/1001,Children and Young People,CYP,Transport Related,CCA,13/07/2023,04-12093,"4,949.80",F4Control Ltd (t/a First4care)
Nottinghamshire County Council,1111/1001,Children and Young People,CYP,Transport Related,CCA,13/07/2023,04-12094,"5,012.00",F4Control Ltd (t/a First4care)
Nottinghamshire County Council,1111/1001,Children and Young People,CYP,Transport Related,CCA,13/07/2023,04-12095,"4,937.53",F4Control Ltd (t/a First4care)
Nottinghamshire County Council,1111/1001,Children and Young People,CYP,Transport Related,CCA,13/07/2023,04-12096,"4,605.41",F4Control Ltd (t/a First4care)
Nottinghamshire County Council,1111/1001,Children and Young People,CYP,Transport Related,CCA,13/07/2023,04-12098,"4,754.94",F4Control Ltd (t/a First4care)
Nottinghamshire County Council,1111/1001,Children and Young People,CYP,Transport Related,CCA,13/07/2023,04-12099,"4,248.80",F4Control Ltd (t/a First4care)
Nottinghamshire County Council,1111/1001,Children and Young People,CYP,Transport Related,CCA,13/07/2023,04-12100,"3,781.19",Midfield Travel
Nottinghamshire County Council,1111/1001,Children and Young People,CYP,Transport Related,CCA,13/07/2023,04-12101,"3,762.95",Midfield Travel
Nottinghamshire County Council,1111/1001,Children and Young People,CYP,Transport Related,CCA,13/07/2023,04-12102,"4,231.60",AOT Coaches Nottingham LLP
Nottinghamshire County Council,1111/1001,Children and Young People,CYP,Transport Related,CCA,13/07/2023,04-12103,"9,191.49",AOT Coaches Nottingham LLP
Nottinghamshire County Council,1111/1001,Children and Young People,CYP,Transport Related,CCA,13/07/2023,04-12105,"1,858.40",Bryans Taxis
Nottinghamshire County Council,1111/1001,Children and Young People,CYP,Transport Related,CCA,13/07/2023,04-12106,"4,710.00",Aj Travel
Nottinghamshire County Council,1111/1001,Children and Young People,CYP,Transport Related,CCA,13/07/2023,04-12107,"5,171.00",Freeway Coaches Ltd
Nottinghamshire County Council,1111/1001,Children and Young People,CYP,Transport Related,CCA,13/07/2023,04-12108,"5,099.00",Freeway Coaches Ltd
Nottinghamshire County Council,1111/1001,Children and Young People,CYP,Transport Related,CCA,13/07/2023,04-12109,"5,956.80",K Matthews Travel
Nottinghamshire County Council,1111/1001,Children and Young People,CYP,Transport Related,CCA,13/07/2023,04-12110,"4,273.40",K Matthews Travel
Nottinghamshire County Council,1111/1001,Children and Young People,CYP,Transport Related,CCA,13/07/2023,04-12111,"4,285.24",K Matthews Travel
Nottinghamshire County Council,1111/1001,Children and Young People,CYP,Transport Related,CCA,13/07/2023,04-12113,"2,578.20",Paul S Winson Coaches
Nottinghamshire County Council,1111/1001,Children and Young People,CYP,Transport Related,CCA,13/07/2023,04-12116,"3,055.20",Rio Cabs
Nottinghamshire County Council,1111/1001,Children and Young People,CYP,Transport Related,CCA,13/07/2023,04-12118,"1,886.20",Rio Cabs
Nottinghamshire County Council,1111/1001,Children and Young People,CYP,Transport Related,CCA,13/07/2023,04-12119,"3,433.72",Rio Cabs
Nottinghamshire County Council,1111/1001,Children and Young People,CYP,Transport Related,CCA,13/07/2023,04-12121,"2,121.28",Rio Cabs
Nottinghamshire County Council,1111/1001,Children and Young People,CYP,Transport Related,CCA,13/07/2023,04-12124,"3,889.20",Rio Cabs
Nottinghamshire County Council,1111/1001,Children and Young People,CYP,Transport Related,CCA,13/07/2023,04-12127,636.4,AAA Cabs (Notts) Ltd
Nottinghamshire County Council,1111/1001,Children and Young People,CYP,Transport Related,CCA,13/07/2023,04-12128,"3,772.20",L A Travel
Nottinghamshire County Council,1111/1001,Children and Young People,CYP,Transport Related,CCA,13/07/2023,04-12133,540,Eastwood Cars (UK) Ltd
Nottinghamshire County Council,1111/1001,Children and Young People,CYP,Transport Related,CCA,13/07/2023,04-12135,"3,574.60",Hammonds Coaches Ltd
Nottinghamshire County Council,1111/1001,Children and Young People,CYP,Transport Related,CCA,13/07/2023,04-12136,"2,103.80",Hammonds Coaches Ltd
Nottinghamshire County Council,1111/1001,Children and Young People,CYP,Transport Related,CCA,13/07/2023,04-12137,"2,822.80",Hammonds Coaches Ltd
Nottinghamshire County Council,1111/1001,Children and Young People,CYP,Transport Related,CCA,13/07/2023,04-12138,"3,533.60",Hammonds Coaches Ltd
Nottinghamshire County Council,1111/1001,Children and Young People,CYP,Transport Related,CCA,13/07/2023,04-12139,"3,890.20",Hammonds Coaches Ltd
Nottinghamshire County Council,1111/1001,Children and Young People,CYP,Transport Related,CCA,13/07/2023,04-12141,"1,056.00",Ideal Cars (Private Hire) Ltd
Nottinghamshire County Council,1111/1001,Children and Young People,CYP,Transport Related,CCA,13/07/2023,04-12142,992.88,Ideal Cars (Private Hire) Ltd
Nottinghamshire County Council,1111/1001,Children and Young People,CYP,Transport Related,CCA,13/07/2023,04-12144,"2,173.60",Ideal Cars (Private Hire) Ltd
Nottinghamshire County Council,1111/1001,Children and Young People,CYP,Transport Related,CCA,13/07/2023,04-12146,"1,732.00",Ideal Cars (Private Hire) Ltd
Nottinghamshire County Council,1111/1001,Children and Young People,CYP,Transport Related,CCA,13/07/2023,04-12147,"1,160.00",Ideal Cars (Private Hire) Ltd
Nottinghamshire County Council,1111/1001,Children and Young People,CYP,Transport Related,CCA,13/07/2023,04-12148,"2,960.00",A Travel
Nottinghamshire County Council,1111/1001,Children and Young People,CYP,Transport Related,CCA,13/07/2023,04-12151,"3,628.00",APC Travel
Nottinghamshire County Council,1111/1001,Children and Young People,CYP,Transport Related,CCA,13/07/2023,04-12152,"2,292.80",SM Travel Yorkshire Ltd
Nottinghamshire County Council,1111/1001,Children and Young People,CYP,Transport Related,CCA,13/07/2023,04-12155,"9,900.00",Vectare Ltd
Nottinghamshire County Council,1111/1001,Children and Young People,CYP,Transport Related,CCA,13/07/2023,04-12156,"6,391.20",Vectare Ltd
Nottinghamshire County Council,1111/1001,Children and Young People,CYP,Transport Related,CCA,13/07/2023,04-12157,"8,139.60",Vectare Ltd
Nottinghamshire County Council,1111/1001,Children and Young People,CYP,Transport Related,CCA,13/07/2023,04-12162,"1,200.00",Florin Cocut T/A Stars Taxi
Nottinghamshire County Council,1111/1001,Children and Young People,CYP,Transport Related,CCA,13/07/2023,04-12163,"4,340.00",Home James Cars
Nottinghamshire County Council,1111/1001,Children and Young People,CYP,Transport Related,CCA,13/07/2023,04-12164,"4,000.00",Home James Cars
Nottinghamshire County Council,1111/1001,Children and Young People,CYP,Transport Related,CCA,13/07/2023,04-12165,"2,720.00",Home James Cars
Nottinghamshire County Council,1111/1001,Children and Young People,CYP,Transport Related,CCA,13/07/2023,04-12166,"4,250.00",Home James Cars
Nottinghamshire County Council,1111/1001,Children and Young People,CYP,Transport Related,CCA,13/07/2023,04-12167,"1,564.00",A Place To Call Our Own Ltd
Nottinghamshire County Council,1111/1001,Children and Young People,CYP,Transport Related,CCA,13/07/2023,04-12169,"1,586.34",24 x 7 (Nottingham) Ltd
Nottinghamshire County Council,1111/1001,Children and Young People,CYP,Transport Related,CCA,13/07/2023,04-12170,"4,136.00",D n K Travel
Nottinghamshire County Council,1111/1001,Children and Young People,CYP,Transport Related,CCA,13/07/2023,04-12171,"1,812.00",W Hollingsworth T/A Target Taxis
Nottinghamshire County Council,1111/1001,Children and Young People,CYP,Transport Related,CCA,13/07/2023,04-12174,"2,849.00",JK Transport Ltd
Nottinghamshire County Council,1111/1001,Children and Young People,CYP,Transport Related,CCA,13/07/2023,04-12175,"1,700.00",NCT Newark Community Taxis
Nottinghamshire County Council,1111/1001,Children and Young People,CYP,Transport Related,CCA,13/07/2023,04-12176,"2,090.00",NCT Newark Community Taxis
Nottinghamshire County Council,1111/1001,Children and Young People,CYP,Transport Related,CCA,14/07/2023,04-12305,"2,741.13",Taxicover Uk Ltd
Nottinghamshire County Council,1111/1001,Children and Young People,CYP,Transport Related,CCA,14/07/2023,04-12306,"3,268.00",Taxicover Uk Ltd
Nottinghamshire County Council,1111/1001,Children and Young People,CYP,Transport Related,CCA,14/07/2023,04-12307,"3,268.00",Taxicover Uk Ltd
Nottinghamshire County Council,1111/1001,Children and Young People,CYP,Transport Related,CCA,14/07/2023,04-12308,"2,856.00",Taxicover Uk Ltd
Nottinghamshire County Council,1111/1001,Children and Young People,CYP,Transport Related,CCA,14/07/2023,04-12309,"2,983.00",Central Cars (Nottm) Ltd
Nottinghamshire County Council,1111/1001,Children and Young People,CYP,Transport Related,CCA,14/07/2023,04-12310,"3,666.00",Arrow Specialised Transport Ltd
Nottinghamshire County Council,1111/1001,Children and Young People,CYP,Transport Related,CCA,14/07/2023,04-12311,"5,763.00",Arrow Specialised Transport Ltd
Nottinghamshire County Council,1111/1001,Children and Young People,CYP,Transport Related,CCA,14/07/2023,04-12312,"6,550.00",Arrow Specialised Transport Ltd
Nottinghamshire County Council,1111/1001,Children and Young People,CYP,Transport Related,CCA,14/07/2023,04-12313,"3,389.80",Arrow Specialised Transport Ltd
Nottinghamshire County Council,1111/1001,Children and Young People,CYP,Transport Related,CCA,14/07/2023,04-12314,"3,167.00",Arrow Specialised Transport Ltd
Nottinghamshire County Council,1111/1001,Children and Young People,CYP,Transport Related,CCA,14/07/2023,04-12315,"2,561.60",Arrow Specialised Transport Ltd
Nottinghamshire County Council,1111/1001,Children and Young People,CYP,Transport Related,CCA,14/07/2023,04-12316,"3,620.00",Arrow Specialised Transport Ltd
Nottinghamshire County Council,1111/1001,Children and Young People,CYP,Transport Related,CCA,14/07/2023,04-12317,"5,219.00",Arrow Specialised Transport Ltd
Nottinghamshire County Council,1111/1001,Children and Young People,CYP,Transport Related,CCA,14/07/2023,04-12318,"3,242.60",Arrow Specialised Transport Ltd
Nottinghamshire County Council,1111/1001,Children and Young People,CYP,Transport Related,CCA,14/07/2023,04-12319,"3,478.20",Arrow Specialised Transport Ltd
Nottinghamshire County Council,1111/1001,Children and Young People,CYP,Transport Related,CCA,14/07/2023,04-12320,"3,157.00",Arrow Specialised Transport Ltd
Nottinghamshire County Council,1111/1001,Children and Young People,CYP,Transport Related,CCA,14/07/2023,04-12321,"3,855.60",Arrow Specialised Transport Ltd
Nottinghamshire County Council,1111/1001,Children and Young People,CYP,Transport Related,CCA,14/07/2023,04-12322,"4,077.00",Arrow Specialised Transport Ltd
Nottinghamshire County Council,1111/1001,Children and Young People,CYP,Transport Related,CCA,14/07/2023,04-12323,"3,710.80",Arrow Specialised Transport Ltd
Nottinghamshire County Council,1111/1001,Children and Young People,CYP,Transport Related,CCA,14/07/2023,04-12324,"6,625.00",Arrow Specialised Transport Ltd
Nottinghamshire County Council,1111/1001,Children and Young People,CYP,Transport Related,CCA,14/07/2023,04-12326,550,Ng11 Cars
Nottinghamshire County Council,1111/1001,Children and Young People,CYP,Transport Related,CCA,14/07/2023,04-12327,900,Ng11 Cars
Nottinghamshire County Council,1111/1001,Children and Young People,CYP,Transport Related,CCA,14/07/2023,04-12328,"1,280.00",Ng11 Cars
Nottinghamshire County Council,1111/1001,Children and Young People,CYP,Transport Related,CCA,14/07/2023,04-12329,"3,000.00",Ng11 Cars
Nottinghamshire County Council,1111/1001,Children and Young People,CYP,Transport Related,CCA,14/07/2023,04-12330,"1,600.00",Ng11 Cars
Nottinghamshire County Council,1111/1001,Children and Young People,CYP,Transport Related,CCA,14/07/2023,04-12331,"1,241.20",Ng11 Cars
Nottinghamshire County Council,1111/1001,Children and Young People,CYP,Transport Related,CCA,14/07/2023,04-12332,"1,890.00",Ng11 Cars
Nottinghamshire County Council,1111/1001,Children and Young People,CYP,Transport Related,CCA,14/07/2023,04-12333,"2,225.66",Ng11 Cars
Nottinghamshire County Council,1111/1001,Children and Young People,CYP,Transport Related,CCA,14/07/2023,04-12334,"2,080.69",Ng11 Cars
Nottinghamshire County Council,1111/1001,Children and Young People,CYP,Transport Related,CCA,14/07/2023,04-12335,"1,260.00",Ng11 Cars
Nottinghamshire County Council,1111/1001,Children and Young People,CYP,Transport Related,CCA,14/07/2023,04-12336,"1,710.00",Abacus Cars
Nottinghamshire County Council,1111/1001,Children and Young People,CYP,Transport Related,CCA,14/07/2023,04-12337,"4,147.82",Abacus Cars
Nottinghamshire County Council,1111/1001,Children and Young People,CYP,Transport Related,CCA,14/07/2023,04-12338,"1,260.00",Abacus Cars
Nottinghamshire County Council,1111/1001,Children and Young People,CYP,Transport Related,CCA,14/07/2023,04-12339,"2,620.10",Abacus Cars
Nottinghamshire County Council,1111/1001,Children and Young People,CYP,Transport Related,CCA,14/07/2023,04-12340,"1,520.00",Abacus Cars
Nottinghamshire County Council,1111/1001,Children and Young People,CYP,Transport Related,CCA,14/07/2023,04-12341,"4,284.00",Abacus Cars
Nottinghamshire County Council,1111/1001,Children and Young People,CYP,Transport Related,CCA,14/07/2023,04-12342,"4,000.00",Abacus Cars
Nottinghamshire County Council,1111/1001,Children and Young People,CYP,Transport Related,CCA,14/07/2023,04-12347,"2,705.04",Abacus Cars
Nottinghamshire County Council,1111/1001,Children and Young People,CYP,Transport Related,CCA,14/07/2023,04-12350,607.14,Bassetlaw Action Centre
Nottinghamshire County Council,1111/1001,Children and Young People,CYP,Transport Related,CCA,14/07/2023,04-12351,"1,401.25",Bassetlaw Action Centre
Nottinghamshire County Council,1111/1001,Children and Young People,CYP,Transport Related,CCA,14/07/2023,04-12354,"2,550.00",Sean's Taxi Services
Nottinghamshire County Council,1111/1001,Children and Young People,CYP,Transport Related,CCA,14/07/2023,04-12356,"3,444.80",Unity Coaches Ltd
Nottinghamshire County Council,1111/1001,Children and Young People,CYP,Transport Related,CCA,14/07/2023,04-12360,"3,163.60",Nottingham Specialist Transport Ltd
Nottinghamshire County Council,1111/1001,Children and Young People,CYP,Transport Related,CCA,14/07/2023,04-12361,"3,375.80",Nottingham Specialist Transport Ltd
Nottinghamshire County Council,1111/1001,Children and Young People,CYP,Transport Related,CCA,14/07/2023,04-12362,"3,808.20",Nottingham Specialist Transport Ltd
Nottinghamshire County Council,1111/1001,Children and Young People,CYP,Transport Related,CCA,14/07/2023,04-12363,"3,641.00",Nottingham Specialist Transport Ltd
Nottinghamshire County Council,1111/1001,Children and Young People,CYP,Transport Related,CCA,14/07/2023,04-12364,"3,408.40",Nottingham Specialist Transport Ltd
Nottinghamshire County Council,1111/1001,Children and Young People,CYP,Transport Related,CCA,14/07/2023,04-12365,"4,990.00",Nottingham Specialist Transport Ltd
Nottinghamshire County Council,1111/1001,Children and Young People,CYP,Transport Related,CCA,14/07/2023,04-12366,"3,790.00",Nottingham Specialist Transport Ltd
Nottinghamshire County Council,1111/1001,Children and Young People,CYP,Transport Related,CCA,14/07/2023,04-12367,"3,590.00",Nottingham Specialist Transport Ltd
Nottinghamshire County Council,1111/1001,Children and Young People,CYP,Transport Related,CCA,14/07/2023,04-12368,"3,990.00",Nottingham Specialist Transport Ltd
Nottinghamshire County Council,1111/1001,Children and Young People,CYP,Transport Related,CCA,14/07/2023,04-12369,"3,030.50",Nottingham Specialist Transport Ltd
Nottinghamshire County Council,1111/1001,Children and Young People,CYP,Transport Related,CCA,14/07/2023,04-12370,"3,518.60",Nottingham Specialist Transport Ltd
Nottinghamshire County Council,1111/1001,Children and Young People,CYP,Transport Related,CCA,14/07/2023,04-12371,"3,800.20",Nottingham Specialist Transport Ltd
Nottinghamshire County Council,1111/1001,Children and Young People,CYP,Transport Related,CCA,14/07/2023,04-12372,"8,639.00",Nottingham Specialist Transport Ltd
Nottinghamshire County Council,1111/1001,Children and Young People,CYP,Transport Related,CCA,14/07/2023,04-12373,"4,190.00",Nottingham Specialist Transport Ltd
Nottinghamshire County Council,1111/1001,Children and Young People,CYP,Transport Related,CCA,14/07/2023,04-12375,"3,090.00",Nottingham Specialist Transport Ltd
Nottinghamshire County Council,1111/1001,Children and Young People,CYP,Transport Related,CCA,14/07/2023,04-12376,"3,600.50",Nottingham Specialist Transport Ltd
Nottinghamshire County Council,1111/1001,Children and Young People,CYP,Transport Related,CCA,14/07/2023,04-12377,"3,410.50",Nottingham Specialist Transport Ltd
Nottinghamshire County Council,1111/1001,Children and Young People,CYP,Transport Related,CCA,14/07/2023,04-12378,"6,110.20",Nottingham Specialist Transport Ltd
Nottinghamshire County Council,1111/1001,Children and Young People,CYP,Transport Related,CCA,14/07/2023,04-12380,"3,190.92",Nottingham Specialist Transport Ltd
Nottinghamshire County Council,1111/1001,Children and Young People,CYP,Transport Related,CCA,14/07/2023,04-12381,"3,190.92",Nottingham Specialist Transport Ltd
Nottinghamshire County Council,1111/1001,Children and Young People,CYP,Transport Related,CCA,14/07/2023,04-12383,"3,099.64",Nottingham Specialist Transport Ltd
Nottinghamshire County Council,1111/1001,Children and Young People,CYP,Transport Related,CCA,14/07/2023,04-12384,"4,081.96",Nottingham Specialist Transport Ltd
Nottinghamshire County Council,1111/1001,Children and Young People,CYP,Transport Related,CCA,14/07/2023,04-12385,"3,590.00",Nottingham Specialist Transport Ltd
Nottinghamshire County Council,1111/1001,Children and Young People,CYP,Transport Related,CCA,14/07/2023,04-12386,"3,561.80",Nottingham Specialist Transport Ltd
Nottinghamshire County Council,1111/1001,Children and Young People,CYP,Transport Related,CCA,14/07/2023,04-12387,"4,190.00",Nottingham Specialist Transport Ltd
Nottinghamshire County Council,1111/1001,Children and Young People,CYP,Transport Related,CCA,14/07/2023,04-12388,"4,718.00",Nottingham Specialist Transport Ltd
Nottinghamshire County Council,1111/1001,Children and Young People,CYP,Transport Related,CCA,14/07/2023,04-12389,"3,032.00",Nottingham Specialist Transport Ltd
Nottinghamshire County Council,1111/1001,Children and Young People,CYP,Transport Related,CCA,18/07/2023,04-14033,"1,107.52",Southside Cars Ltd
Nottinghamshire County Council,1111/1001,Children and Young People,CYP,Transport Related,CCA,18/07/2023,04-14034,"2,337.95",Southside Cars Ltd
Nottinghamshire County Council,1111/1001,Children and Young People,CYP,Transport Related,CCA,18/07/2023,04-14035,"2,307.60",Southside Cars Ltd
Nottinghamshire County Council,1111/1001,Children and Young People,CYP,Transport Related,CCA,18/07/2023,04-14036,"2,843.00",Southside Cars Ltd
Nottinghamshire County Council,1111/1001,Children and Young People,CYP,Transport Related,CCA,18/07/2023,04-14037,"2,627.04",Southside Cars Ltd
Nottinghamshire County Council,1111/1001,Children and Young People,CYP,Transport Related,CCA,18/07/2023,04-14038,"2,970.20",Southside Cars Ltd
Nottinghamshire County Council,1111/1001,Children and Young People,CYP,Transport Related,CCA,18/07/2023,04-14039,"1,145.60",Southside Cars Ltd
Nottinghamshire County Council,1111/1001,Children and Young People,CYP,Transport Related,CCA,18/07/2023,04-14040,"3,182.40",Southside Cars Ltd
Nottinghamshire County Council,1111/1001,Children and Young People,CYP,Transport Related,CCA,18/07/2023,04-14041,"3,500.60",Southside Cars Ltd
Nottinghamshire County Council,1111/1001,Children and Young People,CYP,Transport Related,CCA,18/07/2023,04-14043,"2,090.60",Southside Cars Ltd
Nottinghamshire County Council,1111/1001,Children and Young People,CYP,Transport Related,CCA,18/07/2023,04-14044,"1,939.14",Southside Cars Ltd
Nottinghamshire County Council,1111/1001,Children and Young People,CYP,Transport Related,CCA,18/07/2023,04-14045,"2,692.00",Southside Cars Ltd
Nottinghamshire County Council,1111/1001,Children and Young People,CYP,Transport Related,CCA,18/07/2023,04-14046,"1,632.00",Southside Cars Ltd
Nottinghamshire County Council,1111/1001,Children and Young People,CYP,Transport Related,CCA,18/07/2023,04-14047,"2,344.98",Southside Cars Ltd
Nottinghamshire County Council,1111/1001,Children and Young People,CYP,Transport Related,CCA,18/07/2023,04-14048,"4,582.60",Southside Cars Ltd
Nottinghamshire County Council,1111/1001,Children and Young People,CYP,Transport Related,CCA,18/07/2023,04-14049,"2,524.80",Southside Cars Ltd
Nottinghamshire County Council,1111/1001,Children and Young People,CYP,Transport Related,CCA,18/07/2023,04-14050,"1,979.42",Southside Cars Ltd
Nottinghamshire County Council,1111/1001,Children and Young People,CYP,Transport Related,CCA,18/07/2023,04-14051,"2,596.54",Southside Cars Ltd
Nottinghamshire County Council,1111/1001,Children and Young People,CYP,Transport Related,CCA,18/07/2023,04-14052,"2,366.40",Southside Cars Ltd
Nottinghamshire County Council,1111/1001,Children and Young People,CYP,Transport Related,CCA,18/07/2023,04-14053,"3,364.40",Southside Cars Ltd
Nottinghamshire County Council,1111/1001,Children and Young People,CYP,Transport Related,CCA,18/07/2023,04-14054,"1,282.32",Southside Cars Ltd
Nottinghamshire County Council,1111/1001,Children and Young People,CYP,Transport Related,CCA,18/07/2023,04-14055,"1,676.00",Southside Cars Ltd
Nottinghamshire County Council,1111/1001,Children and Young People,CYP,Transport Related,CCA,18/07/2023,04-14056,"2,635.68",Southside Cars Ltd
Nottinghamshire County Council,1111/1001,Children and Young People,CYP,Transport Related,CCA,18/07/2023,04-14057,957.6,Southside Cars Ltd
Nottinghamshire County Council,1111/1001,Children and Young People,CYP,Transport Related,CCA,18/07/2023,04-14058,"4,378.00",Southside Cars Ltd
Nottinghamshire County Council,1111/1001,Children and Young People,CYP,Transport Related,CCA,18/07/2023,04-14059,"2,812.00",Southside Cars Ltd
Nottinghamshire County Council,1111/1001,Children and Young People,CYP,Transport Related,CCA,18/07/2023,04-14060,"2,223.00",Southside Cars Ltd
Nottinghamshire County Council,1111/1001,Children and Young People,CYP,Transport Related,CCA,18/07/2023,04-14061,"1,398.00",Southside Cars Ltd
Nottinghamshire County Council,1111/1001,Children and Young People,CYP,Transport Related,CCA,18/07/2023,04-14062,"2,140.00",Southside Cars Ltd
Nottinghamshire County Council,1111/1001,Children and Young People,CYP,Transport Related,CCA,18/07/2023,04-14063,"2,520.00",Southside Cars Ltd
Nottinghamshire County Council,1111/1001,Children and Young People,CYP,Transport Related,CCA,18/07/2023,04-14064,"3,360.00",Southside Cars Ltd
Nottinghamshire County Council,1111/1001,Children and Young People,CYP,Transport Related,CCA,18/07/2023,04-14065,"2,756.00",Southside Cars Ltd
Nottinghamshire County Council,1111/1001,Children and Young People,CYP,Transport Related,CCA,18/07/2023,04-14066,"1,758.40",Southside Cars Ltd
Nottinghamshire County Council,1111/1001,Children and Young People,CYP,Transport Related,CCA,18/07/2023,04-14067,"3,278.00",Southside Cars Ltd
Nottinghamshire County Council,1111/1001,Children and Young People,CYP,Transport Related,CCA,18/07/2023,04-14068,600,Southside Cars Ltd
Nottinghamshire County Council,1111/1001,Children and Young People,CYP,Transport Related,CCA,18/07/2023,04-14070,"2,380.00",Southside Cars Ltd
Nottinghamshire County Council,1111/1001,Children and Young People,CYP,Transport Related,CCA,18/07/2023,04-14071,"2,560.00",Southside Cars Ltd
Nottinghamshire County Council,1111/1001,Children and Young People,CYP,Transport Related,CCA,18/07/2023,04-14073,"2,080.00",Southside Cars Ltd
Nottinghamshire County Council,1111/1001,Children and Young People,CYP,Transport Related,CCA,18/07/2023,04-14074,"1,368.00",Southside Cars Ltd
Nottinghamshire County Council,1111/1001,Children and Young People,CYP,Transport Related,CCA,18/07/2023,04-14075,920.51,Southside Cars Ltd
Nottinghamshire County Council,1111/1001,Children and Young People,CYP,Transport Related,CCA,18/07/2023,04-14077,"1,416.00",Southside Cars Ltd
Nottinghamshire County Council,1111/1001,Children and Young People,CYP,Transport Related,CCA,18/07/2023,04-14078,960,Southside Cars Ltd
Nottinghamshire County Council,1111/1001,Children and Young People,CYP,Transport Related,CCA,18/07/2023,04-14079,"1,692.00",Southside Cars Ltd
Nottinghamshire County Council,1111/1001,Children and Young People,CYP,Transport Related,CCA,18/07/2023,04-14080,775.2,Southside Cars Ltd
Nottinghamshire County Council,1111/1001,Children and Young People,CYP,Transport Related,CCA,18/07/2023,04-14081,502.8,Southside Cars Ltd
Nottinghamshire County Council,1111/1001,Children and Young People,CYP,Transport Related,CCA,18/07/2023,04-14082,720,Southside Cars Ltd
Nottinghamshire County Council,1111/1001,Children and Young People,CYP,Transport Related,CCA,18/07/2023,04-14083,"2,761.20",Southside Cars Ltd
Nottinghamshire County Council,1111/1001,Children and Young People,CYP,Transport Related,CCA,18/07/2023,04-14084,"3,748.00",All Wayz Travel
Nottinghamshire County Council,1111/1001,Children and Young People,CYP,Transport Related,CCA,18/07/2023,04-14085,"2,418.70",All Wayz Travel
Nottinghamshire County Council,1111/1001,Children and Young People,CYP,Transport Related,CCA,18/07/2023,04-14086,"4,000.00",All Wayz Travel
Nottinghamshire County Council,1111/1001,Children and Young People,CYP,Transport Related,CCA,18/07/2023,04-14087,"3,951.60",All Wayz Travel
Nottinghamshire County Council,1111/1001,Children and Young People,CYP,Transport Related,CCA,18/07/2023,04-14088,770,All Wayz Travel
Nottinghamshire County Council,1111/1001,Children and Young People,CYP,Transport Related,CCA,18/07/2023,04-14089,"2,487.29",Alpha Cars
Nottinghamshire County Council,1111/1001,Children and Young People,CYP,Transport Related,CCA,18/07/2023,04-14090,"2,828.40",Alpha Cars
Nottinghamshire County Council,1111/1001,Children and Young People,CYP,Transport Related,CCA,18/07/2023,04-14091,"3,422.00",Alpha Cars
Nottinghamshire County Council,1111/1001,Children and Young People,CYP,Transport Related,CCA,18/07/2023,04-14092,"2,015.60",Alpha Cars
Nottinghamshire County Council,1111/1001,Children and Young People,CYP,Transport Related,CCA,18/07/2023,04-14093,"1,436.40",Alpha Cars
Nottinghamshire County Council,1111/1001,Children and Young People,CYP,Transport Related,CCA,18/07/2023,04-14094,"1,655.88",Alpha Cars
Nottinghamshire County Council,1111/1001,Children and Young People,CYP,Transport Related,CCA,18/07/2023,04-14095,"2,177.20",Alpha Cars
Nottinghamshire County Council,1111/1001,Children and Young People,CYP,Transport Related,CCA,18/07/2023,04-14099,"2,400.00",Alpha Cars
Nottinghamshire County Council,1111/1001,Children and Young People,CYP,Transport Related,CCA,18/07/2023,04-14103,"3,112.00",Alpha Cars
Nottinghamshire County Council,1111/1001,Children and Young People,CYP,Transport Related,CCA,18/07/2023,04-14105,"2,340.00",Alpha Cars
Nottinghamshire County Council,1111/1001,Children and Young People,CYP,Transport Related,CCA,18/07/2023,04-14106,"1,600.00",D G Private Hire Ltd
Nottinghamshire County Council,1111/1001,Children and Young People,CYP,Transport Related,CCA,18/07/2023,04-14107,"1,600.00",D G Private Hire Ltd
Nottinghamshire County Council,1111/1001,Children and Young People,CYP,Transport Related,CCA,18/07/2023,04-14108,"4,800.00",D G Private Hire Ltd
Nottinghamshire County Council,1111/1001,Children and Young People,CYP,Transport Related,CCA,18/07/2023,04-14109,"2,800.00",D G Private Hire Ltd
Nottinghamshire County Council,1111/1001,Children and Young People,CYP,Transport Related,CCA,18/07/2023,04-14110,"1,870.00",D G Private Hire Ltd
Nottinghamshire County Council,1111/1001,Children and Young People,CYP,Transport Related,CCA,18/07/2023,04-14111,"1,800.00",D G Private Hire Ltd
Nottinghamshire County Council,1111/1001,Children and Young People,CYP,Transport Related,CCA,18/07/2023,04-14113,"1,710.00",D G Private Hire Ltd
Nottinghamshire County Council,1111/1001,Children and Young People,CYP,Transport Related,CCA,18/07/2023,04-14115,"1,600.00",D G Private Hire Ltd
Nottinghamshire County Council,1111/1001,Children and Young People,CYP,Transport Related,CCA,18/07/2023,04-14116,"1,600.00",D G Private Hire Ltd
Nottinghamshire County Council,1111/1001,Children and Young People,CYP,Transport Related,CCA,18/07/2023,04-14118,"1,280.00",D G Private Hire Ltd
Nottinghamshire County Council,1111/1001,Children and Young People,CYP,Transport Related,CCA,18/07/2023,04-14119,"1,121.00",D G Private Hire Ltd
Nottinghamshire County Council,1111/1001,Children and Young People,CYP,Transport Related,CCA,18/07/2023,04-14120,"1,102.00",D G Private Hire Ltd
Nottinghamshire County Council,1111/1001,Children and Young People,CYP,Transport Related,CCA,18/07/2023,04-14121,"1,080.00",D G Private Hire Ltd
Nottinghamshire County Council,1111/1001,Children and Young People,CYP,Transport Related,CCA,18/07/2023,04-14122,"1,045.00",D G Private Hire Ltd
Nottinghamshire County Council,1111/1001,Children and Young People,CYP,Transport Related,CCA,18/07/2023,04-14123,"1,039.60",D G Private Hire Ltd
Nottinghamshire County Council,1111/1001,Children and Young People,CYP,Transport Related,CCA,18/07/2023,04-14124,960,D G Private Hire Ltd
Nottinghamshire County Council,1111/1001,Children and Young People,CYP,Transport Related,CCA,18/07/2023,04-14125,950,D G Private Hire Ltd
Nottinghamshire County Council,1111/1001,Children and Young People,CYP,Transport Related,CCA,18/07/2023,04-14126,880,D G Private Hire Ltd
Nottinghamshire County Council,1111/1001,Children and Young People,CYP,Transport Related,CCA,18/07/2023,04-14130,500,D G Private Hire Ltd
Nottinghamshire County Council,1111/1001,Children and Young People,CYP,Transport Related,CCA,18/07/2023,04-14131,"3,551.20",Abacus Cars
Nottinghamshire County Council,1111/1001,Children and Young People,CYP,Transport Related,CCA,18/07/2023,04-14132,"4,800.00",Abacus Cars
Nottinghamshire County Council,1111/1001,Children and Young People,CYP,Transport Related,CCA,18/07/2023,04-14133,"2,382.20",Wallis Coachways
Nottinghamshire County Council,1111/1001,Children and Young People,CYP,Transport Related,CCA,18/07/2023,04-14134,"2,578.20",Wallis Coachways
Nottinghamshire County Council,1111/1001,Children and Young People,CYP,Transport Related,CCA,18/07/2023,04-14135,"2,964.20",Nottingham Coaches Ltd
Nottinghamshire County Council,1111/1001,Children and Young People,CYP,Transport Related,CCA,18/07/2023,04-14136,"2,989.80",Nottingham Coaches Ltd
Nottinghamshire County Council,1111/1001,Children and Young People,CYP,Transport Related,CCA,18/07/2023,04-14137,"10,316.80",Nottingham Coaches Ltd
Nottinghamshire County Council,1111/1001,Children and Young People,CYP,Transport Related,CCA,18/07/2023,04-14138,"3,348.40",Nottingham Coaches Ltd
Nottinghamshire County Council,1111/1001,Children and Young People,CYP,Transport Related,CCA,18/07/2023,04-14139,"2,760.50",Nottingham Coaches Ltd
Nottinghamshire County Council,1111/1001,Children and Young People,CYP,Transport Related,CCA,18/07/2023,04-14140,"4,039.20",Nottingham Coaches Ltd
Nottinghamshire County Council,1111/1001,Children and Young People,CYP,Transport Related,CCA,18/07/2023,04-14141,560,Nottingham Cars Ltd
Nottinghamshire County Council,1111/1001,Children and Young People,CYP,Transport Related,CCA,18/07/2023,04-14143,"1,092.00",Nottingham Cars Ltd
Nottinghamshire County Council,1111/1001,Children and Young People,CYP,Transport Related,CCA,18/07/2023,04-14144,"4,304.40",Nottingham Cars Ltd
Nottinghamshire County Council,1111/1001,Children and Young People,CYP,Transport Related,CCA,18/07/2023,04-14145,"2,090.00",Gxpress Cars
Nottinghamshire County Council,1111/1001,Children and Young People,CYP,Transport Related,CCA,18/07/2023,04-14146,"1,400.00",Gxpress Cars
Nottinghamshire County Council,1111/1001,Children and Young People,CYP,Transport Related,CCA,18/07/2023,04-14148,"5,500.12",Millennium Travel (Mansfield) Ltd
Nottinghamshire County Council,1111/1001,Children and Young People,CYP,Transport Related,CCA,18/07/2023,04-14150,"4,069.62",Millennium Travel (Mansfield) Ltd
Nottinghamshire County Council,1111/1001,Children and Young People,CYP,Transport Related,CCA,18/07/2023,04-14151,"6,174.00",Millennium Travel (Mansfield) Ltd
Nottinghamshire County Council,1111/1001,Children and Young People,CYP,Transport Related,CCA,18/07/2023,04-14152,"3,831.68",Millennium Travel (Mansfield) Ltd
Nottinghamshire County Council,1111/1001,Children and Young People,CYP,Transport Related,CCA,18/07/2023,04-14153,"3,729.60",Millennium Travel (Mansfield) Ltd
Nottinghamshire County Council,1111/1001,Children and Young People,CYP,Transport Related,CCA,18/07/2023,04-14154,"9,685.80",Millennium Travel (Mansfield) Ltd
Nottinghamshire County Council,1111/1001,Children and Young People,CYP,Transport Related,CCA,18/07/2023,04-14156,"2,544.00",JK Transport Ltd
Nottinghamshire County Council,1111/1001,Children and Young People,CYP,Transport Related,CCA,18/07/2023,04-14157,"3,160.00",JK Transport Ltd
Nottinghamshire County Council,1111/1001,Children and Young People,CYP,Transport Related,CCA,18/07/2023,04-14160,"2,261.00",JK Transport Ltd
Nottinghamshire County Council,1111/1001,Children and Young People,CYP,Transport Related,CCA,18/07/2023,04-14161,"4,570.00",JK Transport Ltd
Nottinghamshire County Council,1111/1001,Children and Young People,CYP,Transport Related,CCA,18/07/2023,04-14162,"4,848.72",JK Transport Ltd
Nottinghamshire County Council,1111/1001,Children and Young People,CYP,Transport Related,CCA,18/07/2023,04-14163,"3,336.00",JK Transport Ltd
Nottinghamshire County Council,1111/1001,Children and Young People,CYP,Transport Related,CCA,18/07/2023,04-14164,"2,586.00",JK Transport Ltd
Nottinghamshire County Council,1111/1001,Children and Young People,CYP,Transport Related,CCA,18/07/2023,04-14165,"3,912.00",JK Transport Ltd
Nottinghamshire County Council,1111/1001,Children and Young People,CYP,Transport Related,CCA,18/07/2023,04-14166,"1,630.00",JK Transport Ltd
Nottinghamshire County Council,1111/1001,Children and Young People,CYP,Transport Related,CCA,18/07/2023,04-14167,"4,616.40",JK Transport Ltd
Nottinghamshire County Council,1111/1001,Children and Young People,CYP,Transport Related,CCA,18/07/2023,04-14168,"1,070.00",JK Transport Ltd
Nottinghamshire County Council,1111/1001,Children and Young People,CYP,Transport Related,CCA,18/07/2023,04-14169,"3,588.00",JK Transport Ltd
Nottinghamshire County Council,1111/1001,Children and Young People,CYP,Transport Related,CCA,18/07/2023,04-14170,"3,320.00",JK Transport Ltd
Nottinghamshire County Council,1111/1001,Children and Young People,CYP,Transport Related,CCA,18/07/2023,04-14171,"3,508.00",JK Transport Ltd
Nottinghamshire County Council,1111/1001,Children and Young People,CYP,Transport Related,CCA,18/07/2023,04-14172,"1,118.00",JK Transport Ltd
Nottinghamshire County Council,1111/1001,Children and Young People,CYP,Transport Related,CCA,18/07/2023,04-14173,560,JK Transport Ltd
Nottinghamshire County Council,1111/1001,Children and Young People,CYP,Transport Related,CCA,18/07/2023,04-14174,792,JK Transport Ltd
Nottinghamshire County Council,1111/1001,Children and Young People,CYP,Transport Related,CCA,18/07/2023,04-14176,"3,160.00",JK Transport Ltd
Nottinghamshire County Council,1111/1001,Children and Young People,CYP,Transport Related,CCA,18/07/2023,04-14177,"4,359.00",JK Transport Ltd
Nottinghamshire County Council,1111/1001,Children and Young People,CYP,Transport Related,CCA,18/07/2023,04-14178,"1,570.00",JK Transport Ltd
Nottinghamshire County Council,1111/1001,Children and Young People,CYP,Transport Related,CCA,18/07/2023,04-14179,"3,375.00",JK Transport Ltd
Nottinghamshire County Council,1111/1001,Children and Young People,CYP,Transport Related,CCA,18/07/2023,04-14180,"2,560.00",JK Transport Ltd
Nottinghamshire County Council,1111/1001,Children and Young People,CYP,Transport Related,CCA,18/07/2023,04-14181,"1,460.00",JK Transport Ltd
Nottinghamshire County Council,1111/1001,Children and Young People,CYP,Transport Related,CCA,18/07/2023,04-14182,"1,770.00",JK Transport Ltd
Nottinghamshire County Council,1111/1001,Children and Young People,CYP,Transport Related,CCA,18/07/2023,04-14183,"1,308.00",JK Transport Ltd
Nottinghamshire County Council,1111/1001,Children and Young People,CYP,Transport Related,CCA,18/07/2023,04-14184,"1,396.00",JK Transport Ltd
Nottinghamshire County Council,1111/1001,Children and Young People,CYP,Transport Related,CCA,18/07/2023,04-14185,"2,480.00",JK Transport Ltd
Nottinghamshire County Council,1111/1001,Children and Young People,CYP,Transport Related,CCA,18/07/2023,04-14186,"3,104.00",JK Transport Ltd
Nottinghamshire County Council,1111/1001,Children and Young People,CYP,Transport Related,CCA,18/07/2023,04-14188,"1,652.00",JK Transport Ltd
Nottinghamshire County Council,1111/1001,Children and Young People,CYP,Transport Related,CCA,18/07/2023,04-14189,"2,967.00",JK Transport Ltd
Nottinghamshire County Council,1111/1001,Children and Young People,CYP,Transport Related,CCA,18/07/2023,04-14192,"2,460.00",Phoenix Private Hire Ltd
Nottinghamshire County Council,1111/1001,Children and Young People,CYP,Transport Related,CCA,18/07/2023,04-14193,"2,850.00",Phoenix Private Hire Ltd
Nottinghamshire County Council,1111/1001,Children and Young People,CYP,Transport Related,CCA,18/07/2023,04-14194,"1,120.00",Phoenix Private Hire Ltd
Nottinghamshire County Council,1111/1001,Children and Young People,CYP,Transport Related,CCA,19/07/2023,04-14284,"2,447.40",All Wayz Travel
Nottinghamshire County Council,1111/1001,Children and Young People,CYP,Transport Related,CCA,19/07/2023,04-14285,"4,075.12",Glenn Ryder Coaches
Nottinghamshire County Council,1111/1001,Children and Young People,CYP,Transport Related,CCA,19/07/2023,04-14286,"4,075.12",Glenn Ryder Coaches
Nottinghamshire County Council,1111/1001,Children and Young People,CYP,Transport Related,CCA,19/07/2023,04-14287,"5,402.65",Glenn Ryder Coaches
Nottinghamshire County Council,1111/1001,Children and Young People,CYP,Transport Related,CCA,19/07/2023,04-14291,"6,116.00",Johnson Bros Tours Ltd
Nottinghamshire County Council,1111/1001,Children and Young People,CYP,Transport Related,CCA,19/07/2023,04-14292,"6,500.00",Johnson Bros Tours Ltd
Nottinghamshire County Council,1111/1001,Children and Young People,CYP,Transport Related,CCA,19/07/2023,04-14293,"5,142.00",Johnson Bros Tours Ltd
Nottinghamshire County Council,1111/1001,Children and Young People,CYP,Transport Related,CCA,19/07/2023,04-14294,"4,657.40",Johnson Bros Tours Ltd
Nottinghamshire County Council,1111/1001,Children and Young People,CYP,Transport Related,CCA,19/07/2023,04-14298,"10,536.40",Johnson Bros Tours Ltd
Nottinghamshire County Council,1111/1001,Children and Young People,CYP,Transport Related,CCA,19/07/2023,04-14299,"9,008.30",Johnson Bros Tours Ltd
Nottinghamshire County Council,1111/1001,Children and Young People,CYP,Transport Related,CCA,19/07/2023,04-14302,"2,121.60",200 Cars Ltd
Nottinghamshire County Council,1111/1001,Children and Young People,CYP,Transport Related,CCA,19/07/2023,04-14303,"1,140.00",200 Cars Ltd
Nottinghamshire County Council,1111/1001,Children and Young People,CYP,Transport Related,CCA,19/07/2023,04-14304,"1,050.00",200 Cars Ltd
Nottinghamshire County Council,1111/1001,Children and Young People,CYP,Transport Related,CCA,19/07/2023,04-14305,"1,600.00",200 Cars Ltd
Nottinghamshire County Council,1111/1001,Children and Young People,CYP,Transport Related,CCA,19/07/2023,04-14306,675,200 Cars Ltd
Nottinghamshire County Council,1111/1001,Children and Young People,CYP,Transport Related,CCA,19/07/2023,04-14307,"1,330.00",200 Cars Ltd
Nottinghamshire County Council,1111/1001,Children and Young People,CYP,Transport Related,CCA,19/07/2023,04-14308,933.6,200 Cars Ltd
Nottinghamshire County Council,1111/1001,Children and Young People,CYP,Transport Related,CCA,19/07/2023,04-14309,975,200 Cars Ltd
Nottinghamshire County Council,1111/1001,Children and Young People,CYP,Transport Related,CCA,19/07/2023,04-14310,"1,649.11",200 Cars Ltd
Nottinghamshire County Council,1111/1001,Children and Young People,CYP,Transport Related,CCA,19/07/2023,04-14311,"2,764.20",Arrow Specialised Transport Ltd
Nottinghamshire County Council,1111/1001,Children and Young People,CYP,Transport Related,CCA,19/07/2023,04-14312,"1,140.00",Arrow Specialised Transport Ltd
Nottinghamshire County Council,1111/1001,Children and Young People,CYP,Transport Related,CCA,19/07/2023,04-14313,"1,485.20",Fozcabs Newark Taxis
Nottinghamshire County Council,1111/1001,Children and Young People,CYP,Transport Related,CCA,19/07/2023,04-14314,"3,076.40",Fozcabs Newark Taxis
Nottinghamshire County Council,1111/1001,Children and Young People,CYP,Transport Related,CCA,19/07/2023,04-14315,"2,500.00",Fozcabs Newark Taxis
Nottinghamshire County Council,1111/1001,Children and Young People,CYP,Transport Related,CCA,19/07/2023,04-14319,"4,560.00",Vallances Coaches
Nottinghamshire County Council,1111/1001,Children and Young People,CYP,Transport Related,CCA,19/07/2023,04-14320,"4,360.50",Vallances Coaches
Nottinghamshire County Council,1111/1001,Children and Young People,CYP,Transport Related,CCA,19/07/2023,04-14322,"4,800.00",BN Gibson Ltd
Nottinghamshire County Council,1111/1001,Children and Young People,CYP,Transport Related,CCA,19/07/2023,04-14323,"4,000.00",BN Gibson Ltd
Nottinghamshire County Council,1111/1001,Children and Young People,CYP,Transport Related,CCA,19/07/2023,04-14324,"5,268.60",BN Gibson Ltd
Nottinghamshire County Council,1111/1001,Children and Young People,CYP,Transport Related,CCA,19/07/2023,04-14325,"2,889.40",BN Gibson Ltd
Nottinghamshire County Council,1111/1001,Children and Young People,CYP,Transport Related,CCA,19/07/2023,04-14326,"4,707.60",BN Gibson Ltd
Nottinghamshire County Council,1111/1001,Children and Young People,CYP,Transport Related,CCA,19/07/2023,04-14327,"5,040.80",BN Gibson Ltd
Nottinghamshire County Council,1111/1001,Children and Young People,CYP,Transport Related,CCA,19/07/2023,04-14328,"4,094.40",BN Gibson Ltd
Nottinghamshire County Council,1111/1001,Children and Young People,CYP,Transport Related,CCA,19/07/2023,04-14329,"4,613.00",BN Gibson Ltd
Nottinghamshire County Council,1111/1001,Children and Young People,CYP,Transport Related,CCA,19/07/2023,04-14330,"3,600.00",BN Gibson Ltd
Nottinghamshire County Council,1111/1001,Children and Young People,CYP,Transport Related,CCA,19/07/2023,04-14331,"4,813.00",BN Gibson Ltd
Nottinghamshire County Council,1111/1001,Children and Young People,CYP,Transport Related,CCA,19/07/2023,04-14332,"4,725.20",BN Gibson Ltd
Nottinghamshire County Council,1111/1001,Children and Young People,CYP,Transport Related,CCA,19/07/2023,04-14333,"3,033.80",BN Gibson Ltd
Nottinghamshire County Council,1111/1001,Children and Young People,CYP,Transport Related,CCA,19/07/2023,04-14334,"2,693.65",BN Gibson Ltd
Nottinghamshire County Council,1111/1001,Children and Young People,CYP,Transport Related,CCA,19/07/2023,04-14335,"3,264.00",BN Gibson Ltd
Nottinghamshire County Council,1111/1001,Children and Young People,CYP,Transport Related,CCA,19/07/2023,04-14336,"4,504.33",BN Gibson Ltd
Nottinghamshire County Council,1111/1001,Children and Young People,CYP,Transport Related,CCA,19/07/2023,04-14337,"3,276.17",BN Gibson Ltd
Nottinghamshire County Council,1111/1001,Children and Young People,CYP,Transport Related,CCA,19/07/2023,04-14338,"3,169.00",BN Gibson Ltd
Nottinghamshire County Council,1111/1001,Children and Young People,CYP,Transport Related,CCA,19/07/2023,04-14340,"4,001.44",BN Gibson Ltd
Nottinghamshire County Council,1111/1001,Children and Young People,CYP,Transport Related,CCA,19/07/2023,04-14341,"2,865.44",BN Gibson Ltd
Nottinghamshire County Council,1111/1001,Children and Young People,CYP,Transport Related,CCA,19/07/2023,04-14342,"3,925.12",BN Gibson Ltd
Nottinghamshire County Council,1111/1001,Children and Young People,CYP,Transport Related,CCA,19/07/2023,04-14343,"3,719.60",BN Gibson Ltd
Nottinghamshire County Council,1111/1001,Children and Young People,CYP,Transport Related,CCA,19/07/2023,04-14344,"4,381.00",BN Gibson Ltd
Nottinghamshire County Council,1111/1001,Children and Young People,CYP,Transport Related,CCA,19/07/2023,04-14345,"2,990.60",AOT Coaches Nottingham LLP
Nottinghamshire County Council,1111/1001,Children and Young People,CYP,Transport Related,CCA,19/07/2023,04-14346,"5,820.60",Gem Mini Travel Ltd
Nottinghamshire County Council,1111/1001,Children and Young People,CYP,Transport Related,CCA,19/07/2023,04-14347,"5,267.40",Gem Mini Travel Ltd
Nottinghamshire County Council,1111/1001,Children and Young People,CYP,Transport Related,CCA,19/07/2023,04-14348,"4,921.20",Gem Mini Travel Ltd
Nottinghamshire County Council,1111/1001,Children and Young People,CYP,Transport Related,CCA,19/07/2023,04-14349,"5,759.00",Gem Mini Travel Ltd
Nottinghamshire County Council,1111/1001,Children and Young People,CYP,Transport Related,CCA,19/07/2023,04-14350,"5,333.87",Gem Mini Travel Ltd
Nottinghamshire County Council,1111/1001,Children and Young People,CYP,Transport Related,CCA,19/07/2023,04-14351,"3,975.00",Gem Mini Travel Ltd
Nottinghamshire County Council,1111/1001,Children and Young People,CYP,Transport Related,CCA,19/07/2023,04-14352,"4,210.92",Gem Mini Travel Ltd
Nottinghamshire County Council,1111/1001,Children and Young People,CYP,Transport Related,CCA,19/07/2023,04-14353,"3,448.40",Gem Mini Travel Ltd
Nottinghamshire County Council,1111/1001,Children and Young People,CYP,Transport Related,CCA,19/07/2023,04-14355,"3,228.00",Kettlewell Retford Ltd
Nottinghamshire County Council,1111/1001,Children and Young People,CYP,Transport Related,CCA,19/07/2023,04-14356,"2,058.20",Kettlewell Retford Ltd
Nottinghamshire County Council,1111/1001,Children and Young People,CYP,Transport Related,CCA,19/07/2023,04-14357,"2,578.20",Kettlewell Retford Ltd
Nottinghamshire County Council,1111/1001,Children and Young People,CYP,Transport Related,CCA,19/07/2023,04-14358,"2,249.20",Kettlewell Retford Ltd
Nottinghamshire County Council,1111/1001,Children and Young People,CYP,Transport Related,CCA,19/07/2023,04-14359,"3,874.00",Kettlewell Retford Ltd
Nottinghamshire County Council,1111/1001,Children and Young People,CYP,Transport Related,CCA,19/07/2023,04-14360,"3,553.00",Kettlewell Retford Ltd
Nottinghamshire County Council,1111/1001,Children and Young People,CYP,Transport Related,CCA,19/07/2023,04-14361,"9,400.00",Kettlewell Retford Ltd
Nottinghamshire County Council,1111/1001,Children and Young People,CYP,Transport Related,CCA,19/07/2023,04-14365,"8,477.40",Ace Cars & Minibuses Ltd
Nottinghamshire County Council,1111/1001,Children and Young People,CYP,Transport Related,CCA,19/07/2023,04-14366,"4,342.64",Ace Cars & Minibuses Ltd
Nottinghamshire County Council,1111/1001,Children and Young People,CYP,Transport Related,CCA,19/07/2023,04-14367,"3,730.80",Ace Cars & Minibuses Ltd
Nottinghamshire County Council,1111/1001,Children and Young People,CYP,Transport Related,CCA,19/07/2023,04-14368,"3,876.00",Ace Cars & Minibuses Ltd
Nottinghamshire County Council,1111/1001,Children and Young People,CYP,Transport Related,CCA,19/07/2023,04-14369,"3,774.00",Ace Cars & Minibuses Ltd
Nottinghamshire County Council,1111/1001,Children and Young People,CYP,Transport Related,CCA,19/07/2023,04-14370,"1,427.31",Ace Cars & Minibuses Ltd
Nottinghamshire County Council,1111/1001,Children and Young People,CYP,Transport Related,CCA,19/07/2023,04-14371,"3,367.60",Ace Cars & Minibuses Ltd
Nottinghamshire County Council,1111/1001,Children and Young People,CYP,Transport Related,CCA,19/07/2023,04-14372,"3,600.50",Ace Cars & Minibuses Ltd
Nottinghamshire County Council,1111/1001,Children and Young People,CYP,Transport Related,CCA,19/07/2023,04-14373,"3,600.50",Ace Cars & Minibuses Ltd
Nottinghamshire County Council,1111/1001,Children and Young People,CYP,Transport Related,CCA,19/07/2023,04-14374,"4,160.30",Nottingham Cars Ltd
Nottinghamshire County Council,1111/1001,Children and Young People,CYP,Transport Related,CCA,19/07/2023,04-14375,"3,400.00",Carriage Solutions Ltd
Nottinghamshire County Council,1111/1001,Children and Young People,CYP,Transport Related,CCA,19/07/2023,04-14400,880,Bingham Cabs
Nottinghamshire County Council,1111/1001,Children and Young People,CYP,Transport Related,CCA,19/07/2023,04-14401,"2,516.00",JK Transport Ltd
Nottinghamshire County Council,1111/1001,Children and Young People,CYP,Transport Related,CCA,19/07/2023,04-14402,"3,001.00",JK Transport Ltd
Nottinghamshire County Council,1111/1001,Children and Young People,CYP,Transport Related,CCA,21/07/2023,04-14556,"2,015.90",Sharpes Of Nottingham
Nottinghamshire County Council,1111/1001,Children and Young People,CYP,Transport Related,CCA,21/07/2023,04-14557,"4,014.92",Sharpes Of Nottingham
Nottinghamshire County Council,1111/1001,Children and Young People,CYP,Transport Related,CCA,21/07/2023,04-14558,"3,813.72",Sharpes Of Nottingham
Nottinghamshire County Council,1111/1001,Children and Young People,CYP,Transport Related,CCA,21/07/2023,04-14559,"4,523.10",Sharpes Of Nottingham
Nottinghamshire County Council,1111/1001,Children and Young People,CYP,Transport Related,CCA,21/07/2023,04-14560,"4,275.12",Sharpes Of Nottingham
Nottinghamshire County Council,1111/1001,Children and Young People,CYP,Transport Related,CCA,21/07/2023,04-14561,"5,001.90",Sharpes Of Nottingham
Nottinghamshire County Council,1111/1001,Children and Young People,CYP,Transport Related,CCA,21/07/2023,04-14562,"4,756.28",Sharpes Of Nottingham
Nottinghamshire County Council,1111/1001,Children and Young People,CYP,Transport Related,CCA,21/07/2023,04-14563,"7,505.00",Sharpes Of Nottingham
Nottinghamshire County Council,1111/1001,Children and Young People,CYP,Transport Related,CCA,21/07/2023,04-14564,"3,339.12",Sharpes Of Nottingham
Nottinghamshire County Council,1111/1001,Children and Young People,CYP,Transport Related,CCA,21/07/2023,04-14565,900,Sharpes Of Nottingham
Nottinghamshire County Council,1111/1001,Children and Young People,CYP,Transport Related,CCA,21/07/2023,04-14566,"1,494.24",Sharpes Of Nottingham
Nottinghamshire County Council,1111/1001,Children and Young People,CYP,Transport Related,CCA,21/07/2023,04-14567,"4,116.32",Johnson Bros Tours Ltd
Nottinghamshire County Council,1111/1001,Children and Young People,CYP,Transport Related,CCA,21/07/2023,04-14568,"6,846.80",Johnson Bros Tours Ltd
Nottinghamshire County Council,1111/1001,Children and Young People,CYP,Transport Related,CCA,21/07/2023,04-14569,660,Fozcabs Newark Taxis
Nottinghamshire County Council,1111/1001,Children and Young People,CYP,Transport Related,CCA,21/07/2023,04-14571,980,Fozcabs Newark Taxis
Nottinghamshire County Council,1111/1001,Children and Young People,CYP,Transport Related,CCA,21/07/2023,04-14572,"1,803.40",Fozcabs Newark Taxis
Nottinghamshire County Council,1111/1001,Children and Young People,CYP,Transport Related,CCA,21/07/2023,04-14573,"2,800.56",Fozcabs Newark Taxis
Nottinghamshire County Council,1111/1001,Children and Young People,CYP,Transport Related,CCA,21/07/2023,04-14574,"3,394.60",Fozcabs Newark Taxis
Nottinghamshire County Council,1111/1001,Children and Young People,CYP,Transport Related,CCA,21/07/2023,04-14575,"4,845.00",Vallances Coaches
Nottinghamshire County Council,1111/1001,Children and Young People,CYP,Transport Related,CCA,21/07/2023,04-14576,"3,950.48",Vallances Coaches
Nottinghamshire County Council,1111/1001,Children and Young People,CYP,Transport Related,CCA,21/07/2023,04-14577,"5,038.80",Vallances Coaches
Nottinghamshire County Council,1111/1001,Children and Young People,CYP,Transport Related,CCA,21/07/2023,04-14578,"4,561.40",Vallances Coaches
Nottinghamshire County Council,1111/1001,Children and Young People,CYP,Transport Related,CCA,21/07/2023,04-14579,"4,064.67",BN Gibson Ltd
Nottinghamshire County Council,1111/1001,Children and Young People,CYP,Transport Related,CCA,21/07/2023,04-14580,"4,909.60",BN Gibson Ltd
Nottinghamshire County Council,1111/1001,Children and Young People,CYP,Transport Related,CCA,21/07/2023,04-14581,"3,600.00",BN Gibson Ltd
Nottinghamshire County Council,1111/1001,Children and Young People,CYP,Transport Related,CCA,21/07/2023,04-14582,"3,600.00",BN Gibson Ltd
Nottinghamshire County Council,1111/1001,Children and Young People,CYP,Transport Related,CCA,21/07/2023,04-14583,"4,000.00",BN Gibson Ltd
Nottinghamshire County Council,1111/1001,Children and Young People,CYP,Transport Related,CCA,21/07/2023,04-14584,"4,644.40",BN Gibson Ltd
Nottinghamshire County Council,1111/1001,Children and Young People,CYP,Transport Related,CCA,21/07/2023,04-14585,"4,142.40",BN Gibson Ltd
Nottinghamshire County Council,1111/1001,Children and Young People,CYP,Transport Related,CCA,21/07/2023,04-14586,"3,968.20",BN Gibson Ltd
Nottinghamshire County Council,1111/1001,Children and Young People,CYP,Transport Related,CCA,21/07/2023,04-14587,"3,103.84",BN Gibson Ltd
Nottinghamshire County Council,1111/1001,Children and Young People,CYP,Transport Related,CCA,21/07/2023,04-14588,"2,048.28",BN Gibson Ltd
Nottinghamshire County Council,1111/1001,Children and Young People,CYP,Transport Related,CCA,21/07/2023,04-14589,"3,488.20",BN Gibson Ltd
Nottinghamshire County Council,1111/1001,Children and Young People,CYP,Transport Related,CCA,21/07/2023,04-14590,"2,937.44",BN Gibson Ltd
Nottinghamshire County Council,1111/1001,Children and Young People,CYP,Transport Related,CCA,21/07/2023,04-14591,"3,582.40",BN Gibson Ltd
Nottinghamshire County Council,1111/1001,Children and Young People,CYP,Transport Related,CCA,21/07/2023,04-14592,"4,487.20",BN Gibson Ltd
Nottinghamshire County Council,1111/1001,Children and Young People,CYP,Transport Related,CCA,21/07/2023,04-14593,"3,011.40",Skills Motor Coaches Ltd
Nottinghamshire County Council,1111/1001,Children and Young People,CYP,Transport Related,CCA,21/07/2023,04-14594,"3,444.80",Skills Motor Coaches Ltd
Nottinghamshire County Council,1111/1001,Children and Young People,CYP,Transport Related,CCA,21/07/2023,04-14595,"4,023.44",Skills Motor Coaches Ltd
Nottinghamshire County Council,1111/1001,Children and Young People,CYP,Transport Related,CCA,21/07/2023,04-14596,"4,023.44",Skills Motor Coaches Ltd
Nottinghamshire County Council,1111/1001,Children and Young People,CYP,Transport Related,CCA,21/07/2023,04-14597,"4,023.44",Skills Motor Coaches Ltd
Nottinghamshire County Council,1111/1001,Children and Young People,CYP,Transport Related,CCA,21/07/2023,04-14598,"3,184.60",Skills Motor Coaches Ltd
Nottinghamshire County Council,1111/1001,Children and Young People,CYP,Transport Related,CCA,21/07/2023,04-14599,"2,829.86",Skills Motor Coaches Ltd
Nottinghamshire County Council,1111/1001,Children and Young People,CYP,Transport Related,CCA,21/07/2023,04-14600,"2,830.05",Skills Motor Coaches Ltd
Nottinghamshire County Council,1111/1001,Children and Young People,CYP,Transport Related,CCA,21/07/2023,04-14601,"1,888.00",Skills Motor Coaches Ltd
Nottinghamshire County Council,1111/1001,Children and Young People,CYP,Transport Related,CCA,21/07/2023,04-14602,924.32,Skills Motor Coaches Ltd
Nottinghamshire County Council,1111/1001,Children and Young People,CYP,Transport Related,CCA,21/07/2023,04-14603,"2,467.03",Skills Motor Coaches Ltd
Nottinghamshire County Council,1111/1001,Children and Young People,CYP,Transport Related,CCA,21/07/2023,04-14604,"1,072.62",Skills Motor Coaches Ltd
Nottinghamshire County Council,1111/1001,Children and Young People,CYP,Transport Related,CCA,21/07/2023,04-14605,"1,930.72",Skills Motor Coaches Ltd
Nottinghamshire County Council,1111/1001,Children and Young People,CYP,Transport Related,CCA,21/07/2023,04-14608,"4,402.73",Marshalls Of Sutton On Trent Ltd
Nottinghamshire County Council,1111/1001,Children and Young People,CYP,Transport Related,CCA,21/07/2023,04-14609,"2,345.20",Marshalls Of Sutton On Trent Ltd
Nottinghamshire County Council,1111/1001,Children and Young People,CYP,Transport Related,CCA,21/07/2023,04-14614,"3,847.40",Marshalls Of Sutton On Trent Ltd
Nottinghamshire County Council,1111/1001,Children and Young People,CYP,Transport Related,CCA,21/07/2023,04-14617,"2,483.62",Marshalls Of Sutton On Trent Ltd
Nottinghamshire County Council,1111/1001,Children and Young People,CYP,Transport Related,CCA,21/07/2023,04-14619,"4,888.20",Marshalls Of Sutton On Trent Ltd
Nottinghamshire County Council,1111/1001,Children and Young People,CYP,Transport Related,CCA,21/07/2023,04-14620,"7,237.50",Marshalls Of Sutton On Trent Ltd
Nottinghamshire County Council,1111/1001,Children and Young People,CYP,Transport Related,CCA,21/07/2023,04-14622,"4,792.00",Marshalls Of Sutton On Trent Ltd
Nottinghamshire County Council,1111/1001,Children and Young People,CYP,Transport Related,CCA,21/07/2023,04-14623,"1,679.20",Marshalls Of Sutton On Trent Ltd
Nottinghamshire County Council,1111/1001,Children and Young People,CYP,Transport Related,CCA,21/07/2023,04-14628,"3,415.20",Nottingham Minibuses & Coaches
Nottinghamshire County Council,1111/1001,Children and Young People,CYP,Transport Related,CCA,21/07/2023,04-14631,"2,469.81",Nottingham Minibuses & Coaches
Nottinghamshire County Council,1111/1001,Children and Young People,CYP,Transport Related,CCA,21/07/2023,04-14632,"2,182.60",Nottingham Minibuses & Coaches
Nottinghamshire County Council,1111/1001,Children and Young People,CYP,Transport Related,CCA,21/07/2023,04-14634,"3,249.80",Silverdale Tours Nottm Ltd
Nottinghamshire County Council,1111/1001,Children and Young People,CYP,Transport Related,CCA,21/07/2023,04-14635,"3,509.60",Silverdale Tours Nottm Ltd
Nottinghamshire County Council,1111/1001,Children and Young People,CYP,Transport Related,CCA,21/07/2023,04-14636,"3,531.40",Silverdale Tours Nottm Ltd
Nottinghamshire County Council,1111/1001,Children and Young People,CYP,Transport Related,CCA,21/07/2023,04-14637,"3,249.80",Silverdale Tours Nottm Ltd
Nottinghamshire County Council,1111/1001,Children and Young People,CYP,Transport Related,CCA,21/07/2023,04-14638,"5,795.00",Silverdale Tours Nottm Ltd
Nottinghamshire County Council,1111/1001,Children and Young People,CYP,Transport Related,CCA,21/07/2023,04-14643,"1,758.67",Silverdale Tours Nottm Ltd
Nottinghamshire County Council,1111/1001,Children and Young People,CYP,Transport Related,CCA,21/07/2023,04-14644,"1,758.67",Silverdale Tours Nottm Ltd
Nottinghamshire County Council,1111/1001,Children and Young People,CYP,Transport Related,CCA,21/07/2023,04-14645,764.64,Silverdale Tours Nottm Ltd
Nottinghamshire County Council,1111/1001,Children and Young People,CYP,Transport Related,CCA,21/07/2023,04-14646,"2,194.44",Stagecoach Services Ltd
Nottinghamshire County Council,1111/1001,Children and Young People,CYP,Transport Related,CCA,21/07/2023,04-14649,"4,737.24",Stagecoach Services Ltd
Nottinghamshire County Council,1111/1001,Children and Young People,CYP,Transport Related,CCA,21/07/2023,04-14651,"2,781.20",Stagecoach Services Ltd
Nottinghamshire County Council,1111/1001,Children and Young People,CYP,Transport Related,CCA,21/07/2023,04-14653,"5,904.75",Stagecoach Services Ltd
Nottinghamshire County Council,1111/1001,Children and Young People,CYP,Transport Related,CCA,21/07/2023,04-14655,"6,292.00",Stagecoach Services Ltd
Nottinghamshire County Council,1111/1001,Children and Young People,CYP,Transport Related,CCA,21/07/2023,04-14658,"5,620.75",Stagecoach Services Ltd
Nottinghamshire County Council,1111/1001,Children and Young People,CYP,Transport Related,CCA,21/07/2023,04-14659,"4,099.40",Stagecoach Services Ltd
Nottinghamshire County Council,1111/1001,Children and Young People,CYP,Transport Related,CCA,21/07/2023,04-14660,"2,132.00",Stagecoach Services Ltd
Nottinghamshire County Council,1111/1001,Children and Young People,CYP,Transport Related,CCA,21/07/2023,04-14661,"4,100.00",Stagecoach Services Ltd
Nottinghamshire County Council,1111/1001,Children and Young People,CYP,Transport Related,CCA,21/07/2023,04-14663,"2,895.60",Stagecoach Services Ltd
Nottinghamshire County Council,1111/1001,Children and Young People,CYP,Transport Related,CCA,21/07/2023,04-14665,"5,379.90",Stagecoach Services Ltd
Nottinghamshire County Council,1111/1001,Children and Young People,CYP,Transport Related,CCA,21/07/2023,04-14667,"5,416.20",Stagecoach Services Ltd
Nottinghamshire County Council,1111/1001,Children and Young People,CYP,Transport Related,CCA,21/07/2023,04-14668,"4,651.60",Stagecoach Services Ltd
Nottinghamshire County Council,1111/1001,Children and Young People,CYP,Transport Related,CCA,21/07/2023,04-14669,"5,501.20",Stagecoach Services Ltd
Nottinghamshire County Council,1111/1001,Children and Young People,CYP,Transport Related,CCA,21/07/2023,04-14671,"6,313.50",Stagecoach Services Ltd
Nottinghamshire County Council,1111/1001,Children and Young People,CYP,Transport Related,CCA,21/07/2023,04-14672,"5,500.00",Stagecoach Services Ltd
Nottinghamshire County Council,1111/1001,Children and Young People,CYP,Transport Related,CCA,21/07/2023,04-14686,"4,268.48",Stagecoach Services Ltd
Nottinghamshire County Council,1111/1001,Children and Young People,CYP,Transport Related,CCA,21/07/2023,04-14695,"10,492.60",Wilfreda Beehive
Nottinghamshire County Council,1111/1001,Children and Young People,CYP,Transport Related,CCA,21/07/2023,04-14696,"2,527.00",Wilfreda Beehive
Nottinghamshire County Council,1111/1001,Children and Young People,CYP,Transport Related,CCA,21/07/2023,04-14697,"11,545.40",Kettlewell Retford Ltd
Nottinghamshire County Council,1111/1001,Children and Young People,CYP,Transport Related,CCA,21/07/2023,04-14698,"6,477.76",Kettlewell Retford Ltd
Nottinghamshire County Council,1111/1001,Children and Young People,CYP,Transport Related,CCA,21/07/2023,04-14699,693.28,Kettlewell Retford Ltd
Nottinghamshire County Council,1111/1001,Children and Young People,CYP,Transport Related,CCA,21/07/2023,04-14700,"7,521.00",Kettlewell Retford Ltd
Nottinghamshire County Council,1111/1001,Children and Young People,CYP,Transport Related,CCA,21/07/2023,04-14701,"3,180.00",Travel Liner
Nottinghamshire County Council,1111/1001,Children and Young People,CYP,Transport Related,CCA,21/07/2023,04-14702,"4,004.20",Nottingham Coaches Ltd
Nottinghamshire County Council,1111/1001,Children and Young People,CYP,Transport Related,CCA,21/07/2023,04-14703,"1,495.00",Hammonds Coaches Ltd
Nottinghamshire County Council,1111/1001,Children and Young People,CYP,Transport Related,CCA,21/07/2023,04-14704,"2,800.00",Hammonds Coaches Ltd
Nottinghamshire County Council,1111/1001,Children and Young People,CYP,Transport Related,CCA,21/07/2023,04-14707,"3,032.00",Reliable Cars Ltd
Nottinghamshire County Council,1111/1001,Children and Young People,CYP,Transport Related,CCA,21/07/2023,04-14708,"2,242.00",Reliable Cars Ltd
Nottinghamshire County Council,1111/1001,Children and Young People,CYP,Transport Related,CCA,21/07/2023,04-14711,"3,990.00",Rushcliffe Travel Ltd
Nottinghamshire County Council,1111/1001,Children and Young People,CYP,Transport Related,CCA,21/07/2023,04-14712,"5,200.00",Rushcliffe Travel Ltd
Nottinghamshire County Council,1111/1001,Children and Young People,CYP,Transport Related,CCA,21/07/2023,04-14713,"5,200.00",Rushcliffe Travel Ltd
Nottinghamshire County Council,1111/1001,Children and Young People,CYP,Transport Related,CCA,21/07/2023,04-14714,"2,790.00",Rushcliffe Travel Ltd
Nottinghamshire County Council,1111/1001,Children and Young People,CYP,Transport Related,CCA,21/07/2023,04-14715,"3,596.20",Rushcliffe Travel Ltd
Nottinghamshire County Council,1111/1001,Children and Young People,CYP,Transport Related,CCA,21/07/2023,04-14717,"6,500.00",Rushcliffe Travel Ltd
Nottinghamshire County Council,1111/1001,Children and Young People,CYP,Transport Related,CCA,21/07/2023,04-14718,"5,592.00",Rushcliffe Travel Ltd
Nottinghamshire County Council,1111/1001,Children and Young People,CYP,Transport Related,CCA,21/07/2023,04-14719,"4,020.40",Rushcliffe Travel Ltd
Nottinghamshire County Council,1111/1001,Children and Young People,CYP,Transport Related,CCA,21/07/2023,04-14720,"3,190.00",Rushcliffe Travel Ltd
Nottinghamshire County Council,1111/1001,Children and Young People,CYP,Transport Related,CCA,21/07/2023,04-14721,"5,990.00",Rushcliffe Travel Ltd
Nottinghamshire County Council,1111/1001,Children and Young People,CYP,Transport Related,CCA,21/07/2023,04-14722,"4,854.00",Rushcliffe Travel Ltd
Nottinghamshire County Council,1111/1001,Children and Young People,CYP,Transport Related,CCA,21/07/2023,04-14723,"1,914.00",Rushcliffe Travel Ltd
Nottinghamshire County Council,1111/1001,Children and Young People,CYP,Transport Related,CCA,21/07/2023,04-14724,"2,652.00",Rushcliffe Travel Ltd
Nottinghamshire County Council,1111/1001,Children and Young People,CYP,Transport Related,CCA,21/07/2023,04-14725,"3,390.00",Rushcliffe Travel Ltd
Nottinghamshire County Council,1111/1001,Children and Young People,CYP,Transport Related,CCA,21/07/2023,04-14726,"2,190.00",Rushcliffe Travel Ltd
Nottinghamshire County Council,1111/1001,Children and Young People,CYP,Transport Related,CCA,21/07/2023,04-14727,"4,990.00",Rushcliffe Travel Ltd
Nottinghamshire County Council,1111/1001,Children and Young People,CYP,Transport Related,CCA,21/07/2023,04-14728,"2,990.00",Rushcliffe Travel Ltd
Nottinghamshire County Council,1111/1001,Children and Young People,CYP,Transport Related,CCA,21/07/2023,04-14729,"1,590.00",Rushcliffe Travel Ltd
Nottinghamshire County Council,1111/1001,Children and Young People,CYP,Transport Related,CCA,21/07/2023,04-14730,"3,076.40",Rushcliffe Travel Ltd
Nottinghamshire County Council,1111/1001,Children and Young People,CYP,Transport Related,CCA,21/07/2023,04-14731,"3,390.00",Rushcliffe Travel Ltd
Nottinghamshire County Council,1111/1001,Children and Young People,CYP,Transport Related,CCA,21/07/2023,04-14732,"3,590.00",Rushcliffe Travel Ltd
Nottinghamshire County Council,1111/1001,Children and Young People,CYP,Transport Related,CCA,21/07/2023,04-14733,"3,590.00",Rushcliffe Travel Ltd
Nottinghamshire County Council,1111/1001,Children and Young People,CYP,Transport Related,CCA,21/07/2023,04-14734,"3,990.00",Rushcliffe Travel Ltd
Nottinghamshire County Council,1111/1001,Children and Young People,CYP,Transport Related,CCA,21/07/2023,04-14737,"2,624.60",CT4N Ltd
Nottinghamshire County Council,1111/1001,Children and Young People,CYP,Transport Related,CCA,21/07/2023,04-14738,"2,058.20",CT4N Ltd
Nottinghamshire County Council,1111/1001,Children and Young People,CYP,Transport Related,CCA,21/07/2023,04-14739,"3,647.60",CT4N Ltd
Nottinghamshire County Council,1111/1001,Children and Young People,CYP,Transport Related,CCA,21/07/2023,04-14740,999.88,Millennium Travel (Mansfield) Ltd
Nottinghamshire County Council,1111/1001,Children and Young People,CYP,Transport Related,CCA,21/07/2023,04-14742,"2,970.00",W Hollingsworth T/A Target Taxis
Nottinghamshire County Council,1111/1001,Children and Young People,CYP,Transport Related,CCA,21/07/2023,04-14744,990,W Hollingsworth T/A Target Taxis
Nottinghamshire County Council,1111/1001,Children and Young People,CYP,Transport Related,CCA,24/07/2023,04-12129,"5,733.25",Marks Transport Group Ltd
Nottinghamshire County Council,1111/1001,Children and Young People,CYP,Transport Related,CCA,24/07/2023,04-12130,"5,163.25",Marks Transport Group Ltd
Nottinghamshire County Council,1111/1001,Children and Young People,CYP,Transport Related,CCA,24/07/2023,04-12131,"4,480.00",Marks Transport Group Ltd
Nottinghamshire County Council,1111/1001,Children and Young People,CYP,Transport Related,CCA,24/07/2023,04-14376,"3,256.20",24 x 7 (Nottingham) Ltd
Nottinghamshire County Council,1111/1001,Children and Young People,CYP,Transport Related,CCA,24/07/2023,04-14377,"2,266.20",24 x 7 (Nottingham) Ltd
Nottinghamshire County Council,1111/1001,Children and Young People,CYP,Transport Related,CCA,24/07/2023,04-14378,"2,447.00",24 x 7 (Nottingham) Ltd
Nottinghamshire County Council,1111/1001,Children and Young People,CYP,Transport Related,CCA,24/07/2023,04-14379,"3,665.00",24 x 7 (Nottingham) Ltd
Nottinghamshire County Council,1111/1001,Children and Young People,CYP,Transport Related,CCA,24/07/2023,04-14380,"2,247.40",24 x 7 (Nottingham) Ltd
Nottinghamshire County Council,1111/1001,Children and Young People,CYP,Transport Related,CCA,24/07/2023,04-14381,"2,742.08",24 x 7 (Nottingham) Ltd
Nottinghamshire County Council,1111/1001,Children and Young People,CYP,Transport Related,CCA,24/07/2023,04-14382,"3,729.32",24 x 7 (Nottingham) Ltd
Nottinghamshire County Council,1111/1001,Children and Young People,CYP,Transport Related,CCA,24/07/2023,04-14383,"1,911.60",24 x 7 (Nottingham) Ltd
Nottinghamshire County Council,1111/1001,Children and Young People,CYP,Transport Related,CCA,24/07/2023,04-14384,"2,360.80",24 x 7 (Nottingham) Ltd
Nottinghamshire County Council,1111/1001,Children and Young People,CYP,Transport Related,CCA,24/07/2023,04-14385,"4,405.80",24 x 7 (Nottingham) Ltd
Nottinghamshire County Council,1111/1001,Children and Young People,CYP,Transport Related,CCA,24/07/2023,04-14386,"5,189.12",24 x 7 (Nottingham) Ltd
Nottinghamshire County Council,1111/1001,Children and Young People,CYP,Transport Related,CCA,24/07/2023,04-14387,"6,121.40",24 x 7 (Nottingham) Ltd
Nottinghamshire County Council,1111/1001,Children and Young People,CYP,Transport Related,CCA,24/07/2023,04-14388,"2,286.84",24 x 7 (Nottingham) Ltd
Nottinghamshire County Council,1111/1001,Children and Young People,CYP,Transport Related,CCA,24/07/2023,04-14389,"3,626.80",24 x 7 (Nottingham) Ltd
Nottinghamshire County Council,1111/1001,Children and Young People,CYP,Transport Related,CCA,24/07/2023,04-14390,"2,717.80",24 x 7 (Nottingham) Ltd
Nottinghamshire County Council,1111/1001,Children and Young People,CYP,Transport Related,CCA,24/07/2023,04-14391,"1,599.61",24 x 7 (Nottingham) Ltd
Nottinghamshire County Council,1111/1001,Children and Young People,CYP,Transport Related,CCA,24/07/2023,04-14392,"2,280.80",24 x 7 (Nottingham) Ltd
Nottinghamshire County Council,1111/1001,Children and Young People,CYP,Transport Related,CCA,24/07/2023,04-14393,"1,934.60",24 x 7 (Nottingham) Ltd
Nottinghamshire County Council,1111/1001,Children and Young People,CYP,Transport Related,CCA,24/07/2023,04-14394,"2,507.80",24 x 7 (Nottingham) Ltd
Nottinghamshire County Council,1111/1001,Children and Young People,CYP,Transport Related,CCA,24/07/2023,04-14395,"1,736.00",24 x 7 (Nottingham) Ltd
Nottinghamshire County Council,1111/1001,Children and Young People,CYP,Transport Related,CCA,24/07/2023,04-14396,"4,605.79",24 x 7 (Nottingham) Ltd
Nottinghamshire County Council,1111/1001,Children and Young People,CYP,Transport Related,CCA,24/07/2023,04-14397,"3,867.40",24 x 7 (Nottingham) Ltd
Nottinghamshire County Council,1111/1001,Children and Young People,CYP,Transport Related,CCA,24/07/2023,04-14398,"3,949.40",24 x 7 (Nottingham) Ltd
Nottinghamshire County Council,1111/1001,Children and Young People,CYP,Transport Related,CCA,24/07/2023,04-14399,"3,498.80",24 x 7 (Nottingham) Ltd
Nottinghamshire County Council,1111/1001,Children and Young People,CYP,Transport Related,CCA,25/07/2023,04-10110,"2,881.35",Acorn Travel (UK) Ltd
Nottinghamshire County Council,1111/1001,Children and Young People,CYP,Transport Related,CCA,25/07/2023,04-11997,"3,021.00",Acorn Travel (UK) Ltd
Nottinghamshire County Council,1111/1001,Children and Young People,CYP,Transport Related,CCA,26/07/2023,04-15175,"4,068.40",Southside Cars Ltd
Nottinghamshire County Council,1111/1001,Children and Young People,CYP,Transport Related,CCA,26/07/2023,04-15176,"2,438.60",Southside Cars Ltd
Nottinghamshire County Council,1111/1001,Children and Young People,CYP,Transport Related,CCA,26/07/2023,04-15178,"1,637.95",Southside Cars Ltd
Nottinghamshire County Council,1111/1001,Children and Young People,CYP,Transport Related,CCA,26/07/2023,04-15181,"3,726.20",JB Tours Watnall Ltd
Nottinghamshire County Council,1111/1001,Children and Young People,CYP,Transport Related,CCA,26/07/2023,04-15182,"3,791.40",JB Tours Watnall Ltd
Nottinghamshire County Council,1111/1001,Children and Young People,CYP,Transport Related,CCA,26/07/2023,04-15186,"5,383.00",Isle Coaches
Nottinghamshire County Council,1111/1001,Children and Young People,CYP,Transport Related,CCA,26/07/2023,04-15187,"6,824.00",Isle Coaches
Nottinghamshire County Council,1111/1001,Children and Young People,CYP,Transport Related,CCA,26/07/2023,04-15188,"4,540.00",Reliable Cars Ltd
Nottinghamshire County Council,1111/1001,Children and Young People,CYP,Transport Related,CCA,26/07/2023,04-15191,"2,738.00",Rushcliffe Travel Ltd
Nottinghamshire County Council,1111/1001,Children and Young People,CYP,Transport Related,CCA,26/07/2023,04-15192,678,Rushcliffe Travel Ltd
Nottinghamshire County Council,1111/1001,Children and Young People,CYP,Transport Related,CCA,26/07/2023,04-15193,"2,087.80",SM Travel Yorkshire Ltd
Nottinghamshire County Council,1111/1001,Children and Young People,CYP,Transport Related,CCA,26/07/2023,04-15194,"2,709.00",SM Travel Yorkshire Ltd
Nottinghamshire County Council,1111/1001,Children and Young People,CYP,Transport Related,CCA,26/07/2023,04-15195,"2,247.70",SM Travel Yorkshire Ltd
Nottinghamshire County Council,1111/1001,Children and Young People,CYP,Transport Related,CCA,26/07/2023,04-15196,"2,766.00",SM Travel Yorkshire Ltd
Nottinghamshire County Council,1111/1001,Children and Young People,CYP,Transport Related,CCA,26/07/2023,04-15197,"3,126.00",SM Travel Yorkshire Ltd
Nottinghamshire County Council,1111/1001,Children and Young People,CYP,Transport Related,CCA,26/07/2023,04-15198,"4,005.40",SM Travel Yorkshire Ltd
Nottinghamshire County Council,1111/1001,Children and Young People,CYP,Transport Related,CCA,26/07/2023,04-15199,"3,782.80",SM Travel Yorkshire Ltd
Nottinghamshire County Council,1111/1001,Children and Young People,CYP,Transport Related,CCA,26/07/2023,04-15200,"2,364.00",SM Travel Yorkshire Ltd
Nottinghamshire County Council,1111/1001,Children and Young People,CYP,Transport Related,CCA,26/07/2023,04-15201,"2,238.72",SM Travel Yorkshire Ltd
Nottinghamshire County Council,1111/1001,Children and Young People,CYP,Transport Related,CCA,26/07/2023,04-15203,"2,166.00",SM Travel Yorkshire Ltd
Nottinghamshire County Council,1111/1001,Children and Young People,CYP,Transport Related,CCA,26/07/2023,04-15204,"1,539.60",SM Travel Yorkshire Ltd
Nottinghamshire County Council,1111/1001,Children and Young People,CYP,Transport Related,CCA,26/07/2023,04-15205,"1,275.60",SM Travel Yorkshire Ltd
Nottinghamshire County Council,1111/1001,Children and Young People,CYP,Transport Related,CCA,26/07/2023,04-15206,"1,103.64",SM Travel Yorkshire Ltd
Nottinghamshire County Council,1111/1001,Children and Young People,CYP,Transport Related,CCA,26/07/2023,04-15207,"1,780.80",SM Travel Yorkshire Ltd
Nottinghamshire County Council,1111/1001,Children and Young People,CYP,Transport Related,CCA,26/07/2023,04-15208,"3,468.75",SM Travel Yorkshire Ltd
Nottinghamshire County Council,1111/1001,Children and Young People,CYP,Transport Related,CCA,26/07/2023,04-15210,"2,616.11",SM Travel Yorkshire Ltd
Nottinghamshire County Council,1111/1001,Children and Young People,CYP,Transport Related,CCA,26/07/2023,04-15211,"2,886.29",SM Travel Yorkshire Ltd
Nottinghamshire County Council,1111/1001,Children and Young People,CYP,Transport Related,CCA,26/07/2023,04-15213,"1,586.00",SM Travel Yorkshire Ltd
Nottinghamshire County Council,1111/1001,Children and Young People,CYP,Transport Related,CCA,26/07/2023,04-15214,"3,220.50",SM Travel Yorkshire Ltd
Nottinghamshire County Council,1111/1001,Children and Young People,CYP,Transport Related,CCA,26/07/2023,04-15215,"2,674.50",SM Travel Yorkshire Ltd
Nottinghamshire County Council,1111/1001,Children and Young People,CYP,Transport Related,CCA,26/07/2023,04-15216,"1,576.40",SM Travel Yorkshire Ltd
Nottinghamshire County Council,1111/1001,Children and Young People,CYP,Transport Related,CCA,26/07/2023,04-15217,"1,640.00",SM Travel Yorkshire Ltd
Nottinghamshire County Council,1111/1001,Children and Young People,CYP,Transport Related,CCA,26/07/2023,04-15218,"1,831.00",SM Travel Yorkshire Ltd
Nottinghamshire County Council,1111/1001,Children and Young People,CYP,Transport Related,CCA,26/07/2023,04-15219,"1,981.60",SM Travel Yorkshire Ltd
Nottinghamshire County Council,1111/1001,Children and Young People,CYP,Transport Related,CCA,26/07/2023,04-15220,"4,164.60",SM Travel Yorkshire Ltd
Nottinghamshire County Council,1111/1001,Children and Young People,CYP,Transport Related,CCA,26/07/2023,04-15221,"3,754.40",SM Travel Yorkshire Ltd
Nottinghamshire County Council,1111/1001,Children and Young People,CYP,Transport Related,CCA,26/07/2023,04-15222,"3,566.00",SM Travel Yorkshire Ltd
Nottinghamshire County Council,1111/1001,Children and Young People,CYP,Transport Related,CCA,26/07/2023,04-15223,"3,526.00",SM Travel Yorkshire Ltd
Nottinghamshire County Council,1111/1001,Children and Young People,CYP,Transport Related,CCA,26/07/2023,04-15224,"3,550.00",SM Travel Yorkshire Ltd
Nottinghamshire County Council,1111/1001,Children and Young People,CYP,Transport Related,CCA,26/07/2023,04-15226,"3,660.80",SM Travel Yorkshire Ltd
Nottinghamshire County Council,1111/1001,Children and Young People,CYP,Transport Related,CCA,26/07/2023,04-15227,"2,922.80",SM Travel Yorkshire Ltd
Nottinghamshire County Council,1111/1001,Children and Young People,CYP,Transport Related,CCA,26/07/2023,04-15228,986,SM Travel Yorkshire Ltd
Nottinghamshire County Council,1111/1001,Children and Young People,CYP,Transport Related,CCA,26/07/2023,04-15229,"1,866.00",SM Travel Yorkshire Ltd
Nottinghamshire County Council,1111/1001,Children and Young People,CYP,Transport Related,CCA,26/07/2023,04-15230,"1,966.00",SM Travel Yorkshire Ltd
Nottinghamshire County Council,1111/1001,Children and Young People,CYP,Transport Related,CCA,26/07/2023,04-15232,"1,606.00",SM Travel Yorkshire Ltd
Nottinghamshire County Council,1111/1001,Children and Young People,CYP,Transport Related,CCA,26/07/2023,04-15233,"4,405.80",24 x 7 (Nottingham) Ltd
Nottinghamshire County Council,1111/1001,Children and Young People,CYP,Transport Related,CCA,26/07/2023,04-15235,"2,479.00",W Hollingsworth T/A Target Taxis
Nottinghamshire County Council,1111/1001,Children and Young People,CYP,Transport Related,CCA,26/07/2023,04-15236,"2,223.00",[Redacted]
Nottinghamshire County Council,1111/1001,Children and Young People,CYP,Transport Related,CCA,27/07/2023,04-12149,"2,137.50",Nunns Taxis Ltd
Nottinghamshire County Council,1111/1001,Children and Young People,CYP,Transport Related,CCA,27/07/2023,04-12150,703.8,Nunns Taxis Ltd
Nottinghamshire County Council,1111/1001,Children and Young People,CYP,Transport Related,CCA,27/07/2023,04-15246,612,Southside Cars Ltd
Nottinghamshire County Council,1111/1001,Children and Young People,CYP,Transport Related,CCA,27/07/2023,04-15258,"2,512.00",Southside Cars Ltd
Nottinghamshire County Council,1111/1001,Children and Young People,CYP,Transport Related,CCA,27/07/2023,04-15282,692.5,Nottingham City Transport Ltd
Nottinghamshire County Council,1111/1001,Children and Young People,CYP,Transport Related,CCA,28/07/2023,04-15310,"13,492.20",C W Moxon Ltd
Nottinghamshire County Council,1111/1001,Children and Young People,CYP,Transport Related,CCA,31/07/2023,04-18815,"41,175.00",CB Ashfield Academy
Nottinghamshire County Council,1111/1001,Children and Young People,CYP,Transport Related,CDA,04/07/2023,04-10494,"1,896.77",Southside Cars Ltd
Nottinghamshire County Council,1111/1001,Children and Young People,CYP,Transport Related,CDA,04/07/2023,04-10542,"3,755.43",SM Travel Yorkshire Ltd
Nottinghamshire County Council,1111/1001,Children and Young People,CYP,Transport Related,CDA,04/07/2023,04-10545,"1,092.65",SM Travel Yorkshire Ltd
Nottinghamshire County Council,1111/1001,Children and Young People,CYP,Transport Related,CDA,05/07/2023,04-10692,"2,040.00",De Aston School
Nottinghamshire County Council,1111/1001,Children and Young People,CYP,Transport Related,CDA,06/07/2023,04-10857,"1,862.00",Southside Cars Ltd
Nottinghamshire County Council,1111/1001,Children and Young People,CYP,Transport Related,CDA,13/07/2023,04-11966,"1,273.20",6 Five 2s
Nottinghamshire County Council,1111/1001,Children and Young People,CYP,Transport Related,CDA,13/07/2023,04-11968,"2,600.00",6 Five 2s
Nottinghamshire County Council,1111/1001,Children and Young People,CYP,Transport Related,CDA,13/07/2023,04-11982,850,6 Five 2s
Nottinghamshire County Council,1111/1001,Children and Young People,CYP,Transport Related,CDA,13/07/2023,04-12104,"6,671.58",AOT Coaches Nottingham LLP
Nottinghamshire County Council,1111/1001,Children and Young People,CYP,Transport Related,CDA,13/07/2023,04-12112,"3,200.00",K Matthews Travel
Nottinghamshire County Council,1111/1001,Children and Young People,CYP,Transport Related,CDA,13/07/2023,04-12114,"7,418.00",Paul S Winson Coaches
Nottinghamshire County Council,1111/1001,Children and Young People,CYP,Transport Related,CDA,13/07/2023,04-12122,"2,553.56",Rio Cabs
Nottinghamshire County Council,1111/1001,Children and Young People,CYP,Transport Related,CDA,13/07/2023,04-12133,540,Eastwood Cars (UK) Ltd
Nottinghamshire County Council,1111/1001,Children and Young People,CYP,Transport Related,CDA,13/07/2023,04-12140,"1,493.60",Ideal Cars (Private Hire) Ltd
Nottinghamshire County Council,1111/1001,Children and Young People,CYP,Transport Related,CDA,13/07/2023,04-12172,"3,723.00",JK Transport Ltd
Nottinghamshire County Council,1111/1001,Children and Young People,CYP,Transport Related,CDA,14/07/2023,04-12355,753,Ideal Cars (Private Hire) Ltd
Nottinghamshire County Council,1111/1001,Children and Young People,CYP,Transport Related,CDA,17/07/2023,04-19030,"2,992.00",Take Me (Group) Ltd T/A ADT Taxis
Nottinghamshire County Council,1111/1001,Children and Young People,CYP,Transport Related,CDA,18/07/2023,04-14075,"1,868.93",Southside Cars Ltd
Nottinghamshire County Council,1111/1001,Children and Young People,CYP,Transport Related,CDA,18/07/2023,04-14104,"2,229.60",Alpha Cars
Nottinghamshire County Council,1111/1001,Children and Young People,CYP,Transport Related,CDA,18/07/2023,04-14112,"1,742.12",D G Private Hire Ltd
Nottinghamshire County Council,1111/1001,Children and Young People,CYP,Transport Related,CDA,18/07/2023,04-14127,825,D G Private Hire Ltd
Nottinghamshire County Council,1111/1001,Children and Young People,CYP,Transport Related,CDA,18/07/2023,04-14129,540.16,D G Private Hire Ltd
Nottinghamshire County Council,1111/1001,Children and Young People,CYP,Transport Related,CDA,18/07/2023,04-14148,289.48,Millennium Travel (Mansfield) Ltd
Nottinghamshire County Council,1111/1001,Children and Young People,CYP,Transport Related,CDA,18/07/2023,04-14158,"3,109.00",JK Transport Ltd
Nottinghamshire County Council,1111/1001,Children and Young People,CYP,Transport Related,CDA,18/07/2023,04-14159,"3,868.00",JK Transport Ltd
Nottinghamshire County Council,1111/1001,Children and Young People,CYP,Transport Related,CDA,18/07/2023,04-14187,"3,034.79",JK Transport Ltd
Nottinghamshire County Council,1111/1001,Children and Young People,CYP,Transport Related,CDA,19/07/2023,04-14288,"3,455.60",Johnson Bros Tours Ltd
Nottinghamshire County Council,1111/1001,Children and Young People,CYP,Transport Related,CDA,19/07/2023,04-14289,"3,250.00",Johnson Bros Tours Ltd
Nottinghamshire County Council,1111/1001,Children and Young People,CYP,Transport Related,CDA,19/07/2023,04-14290,"6,137.80",Johnson Bros Tours Ltd
Nottinghamshire County Council,1111/1001,Children and Young People,CYP,Transport Related,CDA,19/07/2023,04-14295,"6,565.64",Johnson Bros Tours Ltd
Nottinghamshire County Council,1111/1001,Children and Young People,CYP,Transport Related,CDA,19/07/2023,04-14296,"6,175.00",Johnson Bros Tours Ltd
Nottinghamshire County Council,1111/1001,Children and Young People,CYP,Transport Related,CDA,19/07/2023,04-14297,"2,362.84",Johnson Bros Tours Ltd
Nottinghamshire County Council,1111/1001,Children and Young People,CYP,Transport Related,CDA,19/07/2023,04-14301,885.48,200 Cars Ltd
Nottinghamshire County Council,1111/1001,Children and Young People,CYP,Transport Related,CDA,19/07/2023,04-14362,"5,680.43",C W Moxon Ltd
Nottinghamshire County Council,1111/1001,Children and Young People,CYP,Transport Related,CDA,19/07/2023,04-14363,"2,924.80",C W Moxon Ltd
Nottinghamshire County Council,1111/1001,Children and Young People,CYP,Transport Related,CDA,19/07/2023,04-14364,"18,396.18",C W Moxon Ltd
Nottinghamshire County Council,1111/1001,Children and Young People,CYP,Transport Related,CDA,21/07/2023,04-14621,"9,661.40",Marshalls Of Sutton On Trent Ltd
Nottinghamshire County Council,1111/1001,Children and Young People,CYP,Transport Related,CDA,21/07/2023,04-14624,"2,881.35",Nottingham Minibuses & Coaches
Nottinghamshire County Council,1111/1001,Children and Young People,CYP,Transport Related,CDA,21/07/2023,04-14625,"2,816.40",Nottingham Minibuses & Coaches
Nottinghamshire County Council,1111/1001,Children and Young People,CYP,Transport Related,CDA,21/07/2023,04-14626,"2,058.20",Nottingham Minibuses & Coaches
Nottinghamshire County Council,1111/1001,Children and Young People,CYP,Transport Related,CDA,21/07/2023,04-14627,"2,708.00",Nottingham Minibuses & Coaches
Nottinghamshire County Council,1111/1001,Children and Young People,CYP,Transport Related,CDA,21/07/2023,04-14629,"3,063.40",Nottingham Minibuses & Coaches
Nottinghamshire County Council,1111/1001,Children and Young People,CYP,Transport Related,CDA,21/07/2023,04-14630,"2,816.40",Nottingham Minibuses & Coaches
Nottinghamshire County Council,1111/1001,Children and Young People,CYP,Transport Related,CDA,21/07/2023,04-14639,"3,574.60",Silverdale Tours Nottm Ltd
Nottinghamshire County Council,1111/1001,Children and Young People,CYP,Transport Related,CDA,21/07/2023,04-14640,"3,574.60",Silverdale Tours Nottm Ltd
Nottinghamshire County Council,1111/1001,Children and Young People,CYP,Transport Related,CDA,21/07/2023,04-14641,"3,574.80",Silverdale Tours Nottm Ltd
Nottinghamshire County Council,1111/1001,Children and Young People,CYP,Transport Related,CDA,21/07/2023,04-14642,"3,574.80",Silverdale Tours Nottm Ltd
Nottinghamshire County Council,1111/1001,Children and Young People,CYP,Transport Related,CDA,21/07/2023,04-14646,"19,750.00",Stagecoach Services Ltd
Nottinghamshire County Council,1111/1001,Children and Young People,CYP,Transport Related,CDA,21/07/2023,04-14709,"2,790.00",Rushcliffe Travel Ltd
Nottinghamshire County Council,1111/1001,Children and Young People,CYP,Transport Related,CDA,21/07/2023,04-14716,"2,590.00",Rushcliffe Travel Ltd
Nottinghamshire County Council,1111/1001,Children and Young People,CYP,Transport Related,CDA,24/07/2023,04-14749,"1,633.50",Rotherham Metropolitan Borough Coun
Nottinghamshire County Council,1111/1001,Children and Young People,CYP,Transport Related,CDA,26/07/2023,04-15179,"3,230.00",Southside Cars Ltd
Nottinghamshire County Council,1111/1001,Children and Young People,CYP,Transport Related,CDA,26/07/2023,04-15183,"1,920.00",Nottingham Minibuses & Coaches
Nottinghamshire County Council,1111/1001,Children and Young People,CYP,Transport Related,CDA,26/07/2023,04-15184,"5,376.00",Nottingham Minibuses & Coaches
Nottinghamshire County Council,1111/1001,Children and Young People,CYP,Transport Related,CDA,26/07/2023,04-15185,"21,120.00",Nottingham Minibuses & Coaches
Nottinghamshire County Council,1111/1001,Children and Young People,CYP,Transport Related,CDA,26/07/2023,04-15189,"1,046.50",Rushcliffe Travel Ltd
Nottinghamshire County Council,1111/1001,Children and Young People,CYP,Transport Related,CDA,26/07/2023,04-15208,"1,156.25",SM Travel Yorkshire Ltd
Nottinghamshire County Council,1111/1001,Children and Young People,CYP,Transport Related,CDA,26/07/2023,04-15225,"3,974.00",SM Travel Yorkshire Ltd
Nottinghamshire County Council,1111/1001,Children and Young People,CYP,Transport Related,CEA,03/07/2023,04-10101,"5,546.97",Reed Employment Ltd
Nottinghamshire County Council,1111/1001,Children and Young People,CYP,Transport Related,CEA,10/07/2023,04-10661,"3,308.34",Reed Employment Ltd
Nottinghamshire County Council,1111/1001,Children and Young People,CYP,Transport Related,CEA,17/07/2023,04-11929,"3,677.48",Reed Employment Ltd
Nottinghamshire County Council,1111/1001,Children and Young People,CYP,Transport Related,CEA,20/07/2023,04-14440,"2,007.96",Via East Midlands Ltd
Nottinghamshire County Council,1111/1001,Children and Young People,CYP,Transport Related,CEA,25/07/2023,04-14536,"4,014.69",Reed Employment Ltd
Nottinghamshire County Council,1111/1001,Children and Young People,CYP,Transport Related,CEA,31/07/2023,04-15299,"3,326.74",Reed Employment Ltd
Nottinghamshire County Council,1111/1001,Children and Young People,CYP,Supplies & Services,DAA,05/07/2023,04-18495,"3,532.26",Phonak UK Ltd
Nottinghamshire County Council,1111/1001,Children and Young People,CYP,Supplies & Services,DAA,10/07/2023,04-11494,"33,266.01",Gamston St Peter�s C Of E Primary S
Nottinghamshire County Council,1111/1001,Children and Young People,CYP,Supplies & Services,DAA,10/07/2023,04-18549,769.21,Reydon Sports Pic
Nottinghamshire County Council,1111/1001,Children and Young People,CYP,Supplies & Services,DAA,12/07/2023,04-18800,"1,412.29",GL Education Group Ltd
Nottinghamshire County Council,1111/1001,Children and Young People,CYP,Supplies & Services,DAA,13/07/2023,04-18914,"3,532.26",Phonak UK Ltd
Nottinghamshire County Council,1111/1001,Children and Young People,CYP,Supplies & Services,DAA,13/07/2023,04-18915,"3,532.26",Phonak UK Ltd
Nottinghamshire County Council,1111/1001,Children and Young People,CYP,Supplies & Services,DAA,17/07/2023,04-12395,"38,000.00",St Patrick's Catholic Primary Acade
Nottinghamshire County Council,1111/1001,Children and Young People,CYP,Supplies & Services,DAA,24/07/2023,04-19104,"5,000.00","Culture, Learning & Libraries (Midl"
Nottinghamshire County Council,1111/1001,Children and Young People,CYP,Supplies & Services,DBA,05/07/2023,04-10051,"3,070.03",Brake Bros Ltd
Nottinghamshire County Council,1111/1001,Children and Young People,CYP,Supplies & Services,DBA,10/07/2023,04-11491,"1,812.67",John Palin (Wholesale) Ltd
Nottinghamshire County Council,1111/1001,Children and Young People,CYP,Supplies & Services,DBA,12/07/2023,04-10084,895.82,Brake Bros Ltd
Nottinghamshire County Council,1111/1001,Children and Young People,CYP,Supplies & Services,DBA,19/07/2023,04-10462,"2,118.11",Brake Bros Ltd
Nottinghamshire County Council,1111/1001,Children and Young People,CYP,Supplies & Services,DBA,25/07/2023,04-15090,453.84,M Maloney Country Butchers & B Ltd
Nottinghamshire County Council,1111/1001,Children and Young People,CYP,Supplies & Services,DBA,25/07/2023,04-15094,246.6,M Maloney Country Butchers & B Ltd
Nottinghamshire County Council,1111/1001,Children and Young People,CYP,Supplies & Services,DBA,25/07/2023,04-15098,153.73,M Maloney Country Butchers & B Ltd
Nottinghamshire County Council,1111/1001,Children and Young People,CYP,Supplies & Services,DBA,25/07/2023,04-15102,263.13,M Maloney Country Butchers & B Ltd
Nottinghamshire County Council,1111/1001,Children and Young People,CYP,Supplies & Services,DBA,26/07/2023,04-10459,"3,366.55",Brake Bros Ltd
Nottinghamshire County Council,1111/1001,Children and Young People,CYP,Supplies & Services,DBA,31/07/2023,04-17718,304.45,M Maloney Country Butchers & B Ltd
Nottinghamshire County Council,1111/1001,Children and Young People,CYP,Supplies & Services,DCA,11/07/2023,04-18730,559.6,Clean Sheet Laundry Ltd
Nottinghamshire County Council,1111/1001,Children and Young People,CYP,Supplies & Services,DCA,11/07/2023,04-18731,760.36,Clean Sheet Laundry Ltd
Nottinghamshire County Council,1111/1001,Children and Young People,CYP,Supplies & Services,DEA,03/07/2023,04-10121,"8,125.00",Mapperley All-Stars Coaching Ltd
Nottinghamshire County Council,1111/1001,Children and Young People,CYP,Supplies & Services,DEA,03/07/2023,04-18176,600,[Redacted]
Nottinghamshire County Council,1111/1001,Children and Young People,CYP,Supplies & Services,DEA,03/07/2023,04-18395,550,Sarah Mann Shaw Ltd
Nottinghamshire County Council,1111/1001,Children and Young People,CYP,Supplies & Services,DEA,03/07/2023,04-18401,840,TAAFA (Alan Adams)
Nottinghamshire County Council,1111/1001,Children and Young People,CYP,Supplies & Services,DEA,04/07/2023,04-18412,"1,800.00",[Redacted]
Nottinghamshire County Council,1111/1001,Children and Young People,CYP,Supplies & Services,DEA,04/07/2023,04-18419,750,Mikenda Plant
Nottinghamshire County Council,1111/1001,Children and Young People,CYP,Supplies & Services,DEA,04/07/2023,04-18424,940,[Redacted]
Nottinghamshire County Council,1111/1001,Children and Young People,CYP,Supplies & Services,DEA,04/07/2023,04-18428,"1,340.00",Ellipsis Consultants Ltd
Nottinghamshire County Council,1111/1001,Children and Young People,CYP,Supplies & Services,DEA,04/07/2023,04-18454,"1,410.00",Sally Eagle Ltd
Nottinghamshire County Council,1111/1001,Children and Young People,CYP,Supplies & Services,DEA,05/07/2023,04-10693,918,Next Generation Day Nursery
Nottinghamshire County Council,1111/1001,Children and Young People,CYP,Supplies & Services,DEA,05/07/2023,04-18490,"1,800.00",[Redacted]
Nottinghamshire County Council,1111/1001,Children and Young People,CYP,Supplies & Services,DEA,05/07/2023,04-18492,"1,010.65",Sally Thompson Therapeutic Services
Nottinghamshire County Council,1111/1001,Children and Young People,CYP,Supplies & Services,DEA,06/07/2023,04-18190,"1,323.20",[Redacted]
Nottinghamshire County Council,1111/1001,Children and Young People,CYP,Supplies & Services,DEA,06/07/2023,04-18344,"1,249.40",[Redacted]
Nottinghamshire County Council,1111/1001,Children and Young People,CYP,Supplies & Services,DEA,06/07/2023,04-18510,"1,920.00",Carter Brown - The Expert Service L
Nottinghamshire County Council,1111/1001,Children and Young People,CYP,Supplies & Services,DEA,06/07/2023,04-18528,"1,200.00",Rose Callan Education Services
Nottinghamshire County Council,1111/1001,Children and Young People,CYP,Supplies & Services,DEA,07/07/2023,04-18196,"1,350.00",[Redacted]
Nottinghamshire County Council,1111/1001,Children and Young People,CYP,Supplies & Services,DEA,07/07/2023,04-18234,"1,800.00",Chrysalis Associates Ltd
Nottinghamshire County Council,1111/1001,Children and Young People,CYP,Supplies & Services,DEA,07/07/2023,04-18577,750,Jigsaw Psychology Ltd
Nottinghamshire County Council,1111/1001,Children and Young People,CYP,Supplies & Services,DEA,07/07/2023,04-18579,875,Bright Light Therapy
Nottinghamshire County Council,1111/1001,Children and Young People,CYP,Supplies & Services,DEA,07/07/2023,04-18580,625,Bright Light Therapy
Nottinghamshire County Council,1111/1001,Children and Young People,CYP,Supplies & Services,DEA,07/07/2023,04-18581,875,Bright Light Therapy
Nottinghamshire County Council,1111/1001,Children and Young People,CYP,Supplies & Services,DEA,07/07/2023,04-18582,750,Bright Light Therapy
Nottinghamshire County Council,1111/1001,Children and Young People,CYP,Supplies & Services,DEA,07/07/2023,04-18588,725,Lotus Therapy Ltd
Nottinghamshire County Council,1111/1001,Children and Young People,CYP,Supplies & Services,DEA,07/07/2023,04-18589,760,Lotus Therapy Ltd
Nottinghamshire County Council,1111/1001,Children and Young People,CYP,Supplies & Services,DEA,07/07/2023,04-18595,500,Bright Light Therapy
Nottinghamshire County Council,1111/1001,Children and Young People,CYP,Supplies & Services,DEA,10/07/2023,04-18237,880,P Littleford Ltd
Nottinghamshire County Council,1111/1001,Children and Young People,CYP,Supplies & Services,DEA,10/07/2023,04-18307,840,Tiptoes Child Therapy Services Ltd
Nottinghamshire County Council,1111/1001,Children and Young People,CYP,Supplies & Services,DEA,11/07/2023,04-18673,"2,250.00",Bright Light Therapy
Nottinghamshire County Council,1111/1001,Children and Young People,CYP,Supplies & Services,DEA,11/07/2023,04-18675,540,TW Educational Consultancy
Nottinghamshire County Council,1111/1001,Children and Young People,CYP,Supplies & Services,DEA,11/07/2023,04-18678,930,Thompson Technical Service Ltd
Nottinghamshire County Council,1111/1001,Children and Young People,CYP,Supplies & Services,DEA,11/07/2023,04-18706,"1,410.00",Sally Eagle Ltd
Nottinghamshire County Council,1111/1001,Children and Young People,CYP,Supplies & Services,DEA,11/07/2023,04-18708,"1,260.00",Sends Support CIC
Nottinghamshire County Council,1111/1001,Children and Young People,CYP,Supplies & Services,DEA,11/07/2023,04-18709,"2,370.00",[Redacted]
Nottinghamshire County Council,1111/1001,Children and Young People,CYP,Supplies & Services,DEA,11/07/2023,04-18732,610,Aspire Psychological Services Ltd
Nottinghamshire County Council,1111/1001,Children and Young People,CYP,Supplies & Services,DEA,12/07/2023,04-11918,716.25,TimTin Playgroup and Kids Club
Nottinghamshire County Council,1111/1001,Children and Young People,CYP,Supplies & Services,DEA,12/07/2023,04-18807,693.1,[Redacted]
Nottinghamshire County Council,1111/1001,Children and Young People,CYP,Supplies & Services,DEA,12/07/2023,04-18829,500,Jigsaw Psychology Ltd
Nottinghamshire County Council,1111/1001,Children and Young People,CYP,Supplies & Services,DEA,12/07/2023,04-18830,510,[Redacted]
Nottinghamshire County Council,1111/1001,Children and Young People,CYP,Supplies & Services,DEA,12/07/2023,04-18832,"2,500.00",Jigsaw Psychology Ltd
Nottinghamshire County Council,1111/1001,Children and Young People,CYP,Supplies & Services,DEA,12/07/2023,04-18834,"1,250.00",Jigsaw Psychology Ltd
Nottinghamshire County Council,1111/1001,Children and Young People,CYP,Supplies & Services,DEA,12/07/2023,04-18835,"1,000.00",Jigsaw Psychology Ltd
Nottinghamshire County Council,1111/1001,Children and Young People,CYP,Supplies & Services,DEA,12/07/2023,04-18851,824,Sensory Learning & Play CIC
Nottinghamshire County Council,1111/1001,Children and Young People,CYP,Supplies & Services,DEA,13/07/2023,04-18260,"2,500.00",Family Focused Ltd
Nottinghamshire County Council,1111/1001,Children and Young People,CYP,Supplies & Services,DEA,13/07/2023,04-18855,"6,500.00",[Redacted]
Nottinghamshire County Council,1111/1001,Children and Young People,CYP,Supplies & Services,DEA,14/07/2023,04-10100,"19,302.00",Holiday Activities For Kids Ltd
Nottinghamshire County Council,1111/1001,Children and Young People,CYP,Supplies & Services,DEA,14/07/2023,04-18937,"1,410.00",[Redacted]
Nottinghamshire County Council,1111/1001,Children and Young People,CYP,Supplies & Services,DEA,14/07/2023,04-18952,560,Oakdale Centre CIC
Nottinghamshire County Council,1111/1001,Children and Young People,CYP,Supplies & Services,DEA,17/07/2023,04-18972,"1,320.00",Adoption Plus Ltd
Nottinghamshire County Council,1111/1001,Children and Young People,CYP,Supplies & Services,DEA,17/07/2023,04-18974,700,NDR Photography
Nottinghamshire County Council,1111/1001,Children and Young People,CYP,Supplies & Services,DEA,17/07/2023,04-18985,910,Oakdale Centre CIC
Nottinghamshire County Council,1111/1001,Children and Young People,CYP,Supplies & Services,DEA,17/07/2023,04-18987,900,Lotus Therapy Ltd
Nottinghamshire County Council,1111/1001,Children and Young People,CYP,Supplies & Services,DEA,18/07/2023,04-18652,700,Hempsall Consultancies Ltd
Nottinghamshire County Council,1111/1001,Children and Young People,CYP,Supplies & Services,DEA,18/07/2023,04-18967,600,We Love Learning Ltd
Nottinghamshire County Council,1111/1001,Children and Young People,CYP,Supplies & Services,DEA,18/07/2023,04-18991,685.69,ThinkingTalking
Nottinghamshire County Council,1111/1001,Children and Young People,CYP,Supplies & Services,DEA,19/07/2023,04-19048,"1,239.20",Carter Brown - The Expert Service L
Nottinghamshire County Council,1111/1001,Children and Young People,CYP,Supplies & Services,DEA,19/07/2023,04-19063,"2,362.50",E Stacey (Leadership Support)
Nottinghamshire County Council,1111/1001,Children and Young People,CYP,Supplies & Services,DEA,19/07/2023,04-19068,"1,517.93",Prepaid Financial Services Ltd
Nottinghamshire County Council,1111/1001,Children and Young People,CYP,Supplies & Services,DEA,19/07/2023,04-19075,560,Oakdale Centre CIC
Nottinghamshire County Council,1111/1001,Children and Young People,CYP,Supplies & Services,DEA,20/07/2023,04-18574,"2,250.00",Bright Light Therapy
Nottinghamshire County Council,1111/1001,Children and Young People,CYP,Supplies & Services,DEA,20/07/2023,04-18665,750,Bright Light Therapy
Nottinghamshire County Council,1111/1001,Children and Young People,CYP,Supplies & Services,DEA,20/07/2023,04-18676,"1,125.00",Earl Education Consultancy Ltd
Nottinghamshire County Council,1111/1001,Children and Young People,CYP,Supplies & Services,DEA,21/07/2023,04-18370,840,TAAFA (Ruth Adams)
Nottinghamshire County Council,1111/1001,Children and Young People,CYP,Supplies & Services,DEA,21/07/2023,04-18402,700,TAAFA (Ruth Adams)
Nottinghamshire County Council,1111/1001,Children and Young People,CYP,Supplies & Services,DEA,21/07/2023,04-18403,700,TAAFA (Ruth Adams)
Nottinghamshire County Council,1111/1001,Children and Young People,CYP,Supplies & Services,DEA,21/07/2023,04-18450,960,Enabling Care Ltd
Nottinghamshire County Council,1111/1001,Children and Young People,CYP,Supplies & Services,DEA,21/07/2023,04-18679,754.5,Enabling Care Ltd
Nottinghamshire County Council,1111/1001,Children and Young People,CYP,Supplies & Services,DEA,24/07/2023,04-18374,525,[Redacted]
Nottinghamshire County Council,1111/1001,Children and Young People,CYP,Supplies & Services,DEA,24/07/2023,04-18423,515.5,Family Focused Ltd
Nottinghamshire County Council,1111/1001,Children and Young People,CYP,Supplies & Services,DEA,24/07/2023,04-18438,500,Bright Light Therapy
Nottinghamshire County Council,1111/1001,Children and Young People,CYP,Supplies & Services,DEA,24/07/2023,04-18459,520,Synchrony Psychology Ltd
Nottinghamshire County Council,1111/1001,Children and Young People,CYP,Supplies & Services,DEA,24/07/2023,04-18474,520,Synchrony Psychology Ltd
Nottinghamshire County Council,1111/1001,Children and Young People,CYP,Supplies & Services,DEA,24/07/2023,04-18475,520,Synchrony Psychology Ltd
Nottinghamshire County Council,1111/1001,Children and Young People,CYP,Supplies & Services,DEA,24/07/2023,04-18483,650,Synchrony Psychology Ltd
Nottinghamshire County Council,1111/1001,Children and Young People,CYP,Supplies & Services,DEA,24/07/2023,04-18573,625,Bright Light Therapy
Nottinghamshire County Council,1111/1001,Children and Young People,CYP,Supplies & Services,DEA,24/07/2023,04-18575,875,Bright Light Therapy
Nottinghamshire County Council,1111/1001,Children and Young People,CYP,Supplies & Services,DEA,24/07/2023,04-18578,875,Bright Light Therapy
Nottinghamshire County Council,1111/1001,Children and Young People,CYP,Supplies & Services,DEA,24/07/2023,04-18583,754.5,Family Focused Ltd
Nottinghamshire County Council,1111/1001,Children and Young People,CYP,Supplies & Services,DEA,24/07/2023,04-18584,600,Family Focused Ltd
Nottinghamshire County Council,1111/1001,Children and Young People,CYP,Supplies & Services,DEA,24/07/2023,04-18585,900,Family Focused Ltd
Nottinghamshire County Council,1111/1001,Children and Young People,CYP,Supplies & Services,DEA,24/07/2023,04-18586,675,Family Focused Ltd
Nottinghamshire County Council,1111/1001,Children and Young People,CYP,Supplies & Services,DEA,24/07/2023,04-18587,848,Family Focused Ltd
Nottinghamshire County Council,1111/1001,Children and Young People,CYP,Supplies & Services,DEA,24/07/2023,04-18597,550,Jennifer Podd Ltd
Nottinghamshire County Council,1111/1001,Children and Young People,CYP,Supplies & Services,DEA,24/07/2023,04-18598,801.45,[Redacted]
Nottinghamshire County Council,1111/1001,Children and Young People,CYP,Supplies & Services,DEA,24/07/2023,04-18599,525,[Redacted]
Nottinghamshire County Council,1111/1001,Children and Young People,CYP,Supplies & Services,DEA,24/07/2023,04-18677,"2,925.00",Earl Education Consultancy Ltd
Nottinghamshire County Council,1111/1001,Children and Young People,CYP,Supplies & Services,DEA,24/07/2023,04-18721,750,Child Psychology Service
Nottinghamshire County Council,1111/1001,Children and Young People,CYP,Supplies & Services,DEA,24/07/2023,04-18723,551.25,Derbyshire Psychology Ltd
Nottinghamshire County Council,1111/1001,Children and Young People,CYP,Supplies & Services,DEA,24/07/2023,04-18727,600,Enabling Care Ltd
Nottinghamshire County Council,1111/1001,Children and Young People,CYP,Supplies & Services,DEA,24/07/2023,04-18729,"1,957.50",Derbyshire Psychology Ltd
Nottinghamshire County Council,1111/1001,Children and Young People,CYP,Supplies & Services,DEA,24/07/2023,04-18813,"1,800.00",British Youth Council
Nottinghamshire County Council,1111/1001,Children and Young People,CYP,Supplies & Services,DEA,24/07/2023,04-18986,750,Family Focused Ltd
Nottinghamshire County Council,1111/1001,Children and Young People,CYP,Supplies & Services,DEA,26/07/2023,04-18434,521.6,Ruth Pearson Training Ltd
Nottinghamshire County Council,1111/1001,Children and Young People,CYP,Supplies & Services,DEA,27/07/2023,04-18728,900,Quinn Education Development (QED) L
Nottinghamshire County Council,1111/1001,Children and Young People,CYP,Supplies & Services,DEA,28/07/2023,04-15314,"2,863.50",Childrens Sensory Therapy Ltd
Nottinghamshire County Council,1111/1001,Children and Young People,CYP,Supplies & Services,DEA,28/07/2023,04-18548,709.5,Manchester Occupational Therapy Ser
Nottinghamshire County Council,1111/1001,Children and Young People,CYP,Supplies & Services,DEA,28/07/2023,04-18836,770,LMS Social Work Services Ltd
Nottinghamshire County Council,1111/1001,Children and Young People,CYP,Supplies & Services,DEA,28/07/2023,04-18878,640,Be� Creative Therapies Ltd
Nottinghamshire County Council,1111/1001,Children and Young People,CYP,Supplies & Services,DEA,31/07/2023,04-18576,770,LMS Social Work Services Ltd
Nottinghamshire County Council,1111/1001,Children and Young People,CYP,Supplies & Services,DEA,31/07/2023,04-18636,675,LMS Social Work Services Ltd
Nottinghamshire County Council,1111/1001,Children and Young People,CYP,Supplies & Services,DEA,31/07/2023,04-18637,675,LMS Social Work Services Ltd
Nottinghamshire County Council,1111/1001,Children and Young People,CYP,Supplies & Services,DEA,31/07/2023,04-18964,"1,000.00",Tarragon Training
Nottinghamshire County Council,1111/1001,Children and Young People,CYP,Supplies & Services,DEA,31/07/2023,04-18990,880,LMS Social Work Services Ltd
Nottinghamshire County Council,1111/1001,Children and Young People,CYP,Supplies & Services,DEA,31/07/2023,04-19065,990,LMS Social Work Services Ltd
Nottinghamshire County Council,1111/1001,Children and Young People,CYP,Supplies & Services,DFA,19/07/2023,04-19072,"1,025.00",MLL Telecom Ltd
Nottinghamshire County Council,1111/1001,Children and Young People,CYP,Supplies & Services,DGA,26/07/2023,04-15171,"1,281.60",Inspire Care (Uk) Ltd
Nottinghamshire County Council,1111/1001,Children and Young People,CYP,Supplies & Services,DGA,26/07/2023,04-15172,"1,680.00",Pasture View Nurturing Homes Ltd
Nottinghamshire County Council,1111/1001,Children and Young People,CYP,Supplies & Services,DHA,06/07/2023,04-18262,"50,004.78",Key Support Services Ltd
Nottinghamshire County Council,1111/1001,Children and Young People,CYP,Supplies & Services,DHA,06/07/2023,04-18342,"54,757.44",Link Maker Systems Ltd
Nottinghamshire County Council,1111/1001,Children and Young People,CYP,Supplies & Services,DHA,27/07/2023,04-15237,"3,326.70",Bassetlaw District Council
Nottinghamshire County Council,1111/1001,Children and Young People,CYP,Supplies & Services,DKA,05/07/2023,04-10486,950,[Redacted]
Nottinghamshire County Council,1111/1001,Children and Young People,CYP,Supplies & Services,DKA,05/07/2023,04-10685,902.4,Safe Haven Accommodation Ltd
Nottinghamshire County Council,1111/1001,Children and Young People,CYP,Supplies & Services,DKA,05/07/2023,04-10686,650,[Redacted]
Nottinghamshire County Council,1111/1001,Children and Young People,CYP,Supplies & Services,DKA,05/07/2023,04-10687,625,Young People First Ltd
Nottinghamshire County Council,1111/1001,Children and Young People,CYP,Supplies & Services,DKA,05/07/2023,04-10691,568,Greenfield House (Arnfield Care Ltd
Nottinghamshire County Council,1111/1001,Children and Young People,CYP,Supplies & Services,DKA,12/07/2023,04-11916,550,Mansfield Property Services LtdT/A
Nottinghamshire County Council,1111/1001,Children and Young People,CYP,Supplies & Services,DKA,12/07/2023,04-11917,500,[Redacted]
Nottinghamshire County Council,1111/1001,Children and Young People,CYP,Supplies & Services,DKA,12/07/2023,04-11919,"2,856.00",200 Cars Ltd
Nottinghamshire County Council,1111/1001,Children and Young People,CYP,Supplies & Services,DKA,12/07/2023,04-11920,525.03,Challenge House (J E Wright (HHS) L
Nottinghamshire County Council,1111/1001,Children and Young People,CYP,Supplies & Services,DKA,13/07/2023,04-12180,850,Norman Galloway Ltd
Nottinghamshire County Council,1111/1001,Children and Young People,CYP,Supplies & Services,DKA,14/07/2023,04-10109,500,[Redacted]
Nottinghamshire County Council,1111/1001,Children and Young People,CYP,Supplies & Services,DKA,19/07/2023,04-14248,975,MVS Transportation
Nottinghamshire County Council,1111/1001,Children and Young People,CYP,Supplies & Services,DKA,19/07/2023,04-14249,500,Reds Removals Ltd
Nottinghamshire County Council,1111/1001,Children and Young People,CYP,Supplies & Services,DKA,19/07/2023,04-19070,"2,625.00",Norman Galloway Ltd
Nottinghamshire County Council,1111/1001,Children and Young People,CYP,Supplies & Services,DKA,26/07/2023,04-15170,750,[Redacted]
Nottinghamshire County Council,1111/1001,Children and Young People,CYP,Supplies & Services,DKA,26/07/2023,04-15172,70,Pasture View Nurturing Homes Ltd
Nottinghamshire County Council,1111/1001,Children and Young People,CYP,Third Party Payments,EBA,03/07/2023,04-18172,"2,538.00",Thorpe Acre Junior School
Nottinghamshire County Council,1111/1001,Children and Young People,CYP,Third Party Payments,EBA,05/07/2023,04-18516,"64,887.67",Bright Futures Accom Ltd(Inv Paymt
Nottinghamshire County Council,1111/1001,Children and Young People,CYP,Third Party Payments,EBA,05/07/2023,04-18519,"24,592.08",Bright Futures Accom Ltd(Inv Paymt
Nottinghamshire County Council,1111/1001,Children and Young People,CYP,Third Party Payments,EBA,06/07/2023,04-18184,"9,054.00",Wyre Forest School
Nottinghamshire County Council,1111/1001,Children and Young People,CYP,Third Party Payments,EBA,06/07/2023,04-18545,"5,885.23",YMCA Robin Hood Group(Head Office)
Nottinghamshire County Council,1111/1001,Children and Young People,CYP,Third Party Payments,EBA,07/07/2023,04-18198,"2,366.00",Willows School
Nottinghamshire County Council,1111/1001,Children and Young People,CYP,Third Party Payments,EBA,10/07/2023,04-18207,"2,697.00",Brookfield Primary School
Nottinghamshire County Council,1111/1001,Children and Young People,CYP,Third Party Payments,EBA,10/07/2023,04-18247,"2,336.00",Eagle Community Primary School
Nottinghamshire County Council,1111/1001,Children and Young People,CYP,Third Party Payments,EBA,11/07/2023,04-18806,"67,662.09",Bright Futures Accom Ltd(Inv Paymt
Nottinghamshire County Council,1111/1001,Children and Young People,CYP,Third Party Payments,EBA,13/07/2023,04-11955,550,Educ8 (Your Chapter Ltd)
Nottinghamshire County Council,1111/1001,Children and Young People,CYP,Third Party Payments,EBA,13/07/2023,04-11959,500,Marston Thorold's Charity Cof E Sch
Nottinghamshire County Council,1111/1001,Children and Young People,CYP,Third Party Payments,EBA,14/07/2023,04-18258,"1,000.00",St Lawrence Church of England Prima
Nottinghamshire County Council,1111/1001,Children and Young People,CYP,Third Party Payments,EBA,14/07/2023,04-18259,"1,667.00",St Lawrence Church of England Prima
Nottinghamshire County Council,1111/1001,Children and Young People,CYP,Third Party Payments,EBA,18/07/2023,04-19023,"1,128.40",Baby T Workshops Ltd
Nottinghamshire County Council,1111/1001,Children and Young People,CYP,Third Party Payments,EBA,24/07/2023,04-18358,"5,824.00",Haxey C of E Primary School
Nottinghamshire County Council,1111/1001,Children and Young People,CYP,Third Party Payments,EBA,24/07/2023,04-18377,"60,006.00",Nottm Community Housing Assoc (Head
Nottinghamshire County Council,1111/1001,Children and Young People,CYP,Third Party Payments,EBA,24/07/2023,04-18526,"17,789.58",People Potential Possibilities T/A
Nottinghamshire County Council,1111/1001,Children and Young People,CYP,Third Party Payments,EBA,24/07/2023,04-18670,"5,885.23",YMCA Robin Hood Group(Head Office)
Nottinghamshire County Council,1111/1001,Children and Young People,CYP,Third Party Payments,EBA,27/07/2023,04-15238,"1,398.00",Quadring Cowley & Browns Primary Sc
Nottinghamshire County Council,1111/1001,Children and Young People,CYP,Third Party Payments,ECA,10/07/2023,04-18620,"3,500.00",Ellern Mede School
Nottinghamshire County Council,1111/1001,Children and Young People,CYP,Third Party Payments,ECA,10/07/2023,04-18621,"2,450.00",Ellern Mede School
Nottinghamshire County Council,1111/1001,Children and Young People,CYP,Third Party Payments,EDA,03/07/2023,04-18162,"6,107.00",Horsley Woodhouse Primary Academy
Nottinghamshire County Council,1111/1001,Children and Young People,CYP,Third Party Payments,EDA,04/07/2023,04-10437,"59,793.33",Redgate Primary Academy
Nottinghamshire County Council,1111/1001,Children and Young People,CYP,Third Party Payments,EDA,04/07/2023,04-10438,"2,214.00",Redgate Primary Academy
Nottinghamshire County Council,1111/1001,Children and Young People,CYP,Third Party Payments,EDA,04/07/2023,04-10439,"4,166.67",Beech Academy (Nexus Multi AcademyT
Nottinghamshire County Council,1111/1001,Children and Young People,CYP,Third Party Payments,EDA,04/07/2023,04-10440,833.33,Yeoman Park Academy
Nottinghamshire County Council,1111/1001,Children and Young People,CYP,Third Party Payments,EDA,04/07/2023,04-10441,900,Yeoman Park Academy
Nottinghamshire County Council,1111/1001,Children and Young People,CYP,Third Party Payments,EDA,04/07/2023,04-10442,"1,666.67",Foxwood Academy
Nottinghamshire County Council,1111/1001,Children and Young People,CYP,Third Party Payments,EDA,04/07/2023,04-10482,"104,240.25",Beech Academy (Nexus Multi AcademyT
Nottinghamshire County Council,1111/1001,Children and Young People,CYP,Third Party Payments,EDA,04/07/2023,04-10483,"139,202.08",Yeoman Park Academy
Nottinghamshire County Council,1111/1001,Children and Young People,CYP,Third Party Payments,EDA,04/07/2023,04-10484,"150,520.33",Fountaindale Academy (Nexus Trust)
Nottinghamshire County Council,1111/1001,Children and Young People,CYP,Third Party Payments,EDA,04/07/2023,04-10485,"132,544.08",Foxwood Academy
Nottinghamshire County Council,1111/1001,Children and Young People,CYP,Third Party Payments,EDA,10/07/2023,04-11495,"69,062.50",Bramcote College
Nottinghamshire County Council,1111/1001,Children and Young People,CYP,Third Party Payments,EDA,10/07/2023,04-11496,"34,531.25",Alderman White School
Nottinghamshire County Council,1111/1001,Children and Young People,CYP,Third Party Payments,EDA,10/07/2023,04-11497,"69,062.50",Carlton Le Willows Academy
Nottinghamshire County Council,1111/1001,Children and Young People,CYP,Third Party Payments,EDA,10/07/2023,04-11498,"69,062.50",Quarrydale Academy
Nottinghamshire County Council,1111/1001,Children and Young People,CYP,Third Party Payments,EDA,10/07/2023,04-11499,"69,062.50",Outwood Academy Kirkby
Nottinghamshire County Council,1111/1001,Children and Young People,CYP,Third Party Payments,EDA,10/07/2023,04-11500,"69,062.50",Queen Elizabeth's Academy
Nottinghamshire County Council,1111/1001,Children and Young People,CYP,Third Party Payments,EDA,10/07/2023,04-11501,"69,062.50",Carlton Academy (Redhill Academy Tr
Nottinghamshire County Council,1111/1001,Children and Young People,CYP,Third Party Payments,EDA,10/07/2023,04-11502,"17,319.00",Brookside Primary School (Academy)
Nottinghamshire County Council,1111/1001,Children and Young People,CYP,Third Party Payments,EDA,11/07/2023,04-11587,"17,319.00",Chetwynd Primary Academy (Spencer A
Nottinghamshire County Council,1111/1001,Children and Young People,CYP,Third Party Payments,EDA,11/07/2023,04-11590,"138,125.00",South Wolds Academy & Sixth Form
Nottinghamshire County Council,1111/1001,Children and Young People,CYP,Third Party Payments,EDA,11/07/2023,04-11593,"74,448.00",White Hills Park Trust
Nottinghamshire County Council,1111/1001,Children and Young People,CYP,Third Party Payments,EDA,13/07/2023,04-11956,"2,145.00",Pennine Way Junior Academy Ltd
Nottinghamshire County Council,1111/1001,Children and Young People,CYP,Third Party Payments,EDA,13/07/2023,04-11958,800,Foxwood Academy
Nottinghamshire County Council,1111/1001,Children and Young People,CYP,Third Party Payments,EDA,13/07/2023,04-11960,800,Joseph Whittaker Academy
Nottinghamshire County Council,1111/1001,Children and Young People,CYP,Third Party Payments,EDA,13/07/2023,04-11962,700,Rushcliffe School (Spencer Academie
Nottinghamshire County Council,1111/1001,Children and Young People,CYP,Third Party Payments,EDA,14/07/2023,04-18255,"8,446.00",VRFAstor College (Dover Fed for the
Nottinghamshire County Council,1111/1001,Children and Young People,CYP,Third Party Payments,EDA,14/07/2023,04-18257,"2,538.00",St Ralph Sherwin Multi Academy Trus
Nottinghamshire County Council,1111/1001,Children and Young People,CYP,Third Party Payments,EDA,17/07/2023,04-10105,"7,469.00",St Edmund Campion Voluntary Academy
Nottinghamshire County Council,1111/1001,Children and Young People,CYP,Third Party Payments,EDA,17/07/2023,04-10106,"45,883.00",St Edmund Campion Voluntary Academy
Nottinghamshire County Council,1111/1001,Children and Young People,CYP,Third Party Payments,EDA,17/07/2023,04-12391,"7,992.00",Beech Academy (Nexus Multi AcademyT
Nottinghamshire County Council,1111/1001,Children and Young People,CYP,Third Party Payments,EDA,17/07/2023,04-12392,"8,775.00",Beech Academy (Nexus Multi AcademyT
Nottinghamshire County Council,1111/1001,Children and Young People,CYP,Third Party Payments,EDA,17/07/2023,04-12393,"127,624.00",Tuxford Academy
Nottinghamshire County Council,1111/1001,Children and Young People,CYP,Third Party Payments,EDA,17/07/2023,04-12394,"127,624.00",Bramcote College
Nottinghamshire County Council,1111/1001,Children and Young People,CYP,Third Party Payments,EDA,17/07/2023,04-12396,"14,246.00",St Patrick's Catholic Primary Acade
Nottinghamshire County Council,1111/1001,Children and Young People,CYP,Third Party Payments,EDA,17/07/2023,04-12398,"13,686.80",Woodland View Primary School (Acade
Nottinghamshire County Council,1111/1001,Children and Young People,CYP,Third Party Payments,EDA,17/07/2023,04-12773,"1,924.65",Brierley Forest Primary & Nursery A
Nottinghamshire County Council,1111/1001,Children and Young People,CYP,Third Party Payments,EDA,17/07/2023,04-12779,"16,588.65",St Augustine's Academy (The Forge T
Nottinghamshire County Council,1111/1001,Children and Young People,CYP,Third Party Payments,EDA,17/07/2023,04-12780,"3,482.70",Mansfield Primary Academy
Nottinghamshire County Council,1111/1001,Children and Young People,CYP,Third Party Payments,EDA,17/07/2023,04-12781,"13,014.30",Wainwright Primary Academy (DALP)
Nottinghamshire County Council,1111/1001,Children and Young People,CYP,Third Party Payments,EDA,17/07/2023,04-12782,"7,423.65",Kingston Park Academy
Nottinghamshire County Council,1111/1001,Children and Young People,CYP,Third Party Payments,EDA,17/07/2023,04-12783,"6,323.85",Kirkby Woodhouse Academy School
Nottinghamshire County Council,1111/1001,Children and Young People,CYP,Third Party Payments,EDA,17/07/2023,04-12784,"8,340.15",Peafield Lane Academy
Nottinghamshire County Council,1111/1001,Children and Young People,CYP,Third Party Payments,EDA,17/07/2023,04-12785,"6,048.90",Mapplewells Primary & Nursery Acade
Nottinghamshire County Council,1111/1001,Children and Young People,CYP,Third Party Payments,EDA,17/07/2023,04-12786,"11,639.55",Leamington Primary & Nursery Academ
Nottinghamshire County Council,1111/1001,Children and Young People,CYP,Third Party Payments,EDA,17/07/2023,04-12787,"8,431.80",Birklands Primary (Academy)
Nottinghamshire County Council,1111/1001,Children and Young People,CYP,Third Party Payments,EDA,17/07/2023,04-12788,"10,448.10",Richard Bonnington Primary Academy(
Nottinghamshire County Council,1111/1001,Children and Young People,CYP,Third Party Payments,EDA,17/07/2023,04-12789,"15,617.16",Robert Mellors Primary & Nursery Ac
Nottinghamshire County Council,1111/1001,Children and Young People,CYP,Third Party Payments,EDA,17/07/2023,04-12790,"6,507.15",Haddon Primary School (Academy)
Nottinghamshire County Council,1111/1001,Children and Young People,CYP,Third Party Payments,EDA,17/07/2023,04-12791,"10,906.35",Parkdale Primary Academy
Nottinghamshire County Council,1111/1001,Children and Young People,CYP,Third Party Payments,EDA,17/07/2023,04-12792,"13,014.30",Alderman Pounder Academy(Flying Hig
Nottinghamshire County Council,1111/1001,Children and Young People,CYP,Third Party Payments,EDA,17/07/2023,04-12793,"9,898.20",Thrumpton Primary Academy
Nottinghamshire County Council,1111/1001,Children and Young People,CYP,Third Party Payments,EDA,17/07/2023,04-12794,"4,582.50",Bracken Lane Primary Academy
Nottinghamshire County Council,1111/1001,Children and Young People,CYP,Third Party Payments,EDA,17/07/2023,04-12795,"16,863.60",Forest Glade Primary School (Academ
Nottinghamshire County Council,1111/1001,Children and Young People,CYP,Third Party Payments,EDA,17/07/2023,04-12796,"12,922.65",Hillocks Primary Academy
Nottinghamshire County Council,1111/1001,Children and Young People,CYP,Third Party Payments,EDA,17/07/2023,04-12798,"2,352.35",Haggonfields Primary Academy
Nottinghamshire County Council,1111/1001,Children and Young People,CYP,Third Party Payments,EDA,17/07/2023,04-12799,"16,405.35",Norbridge Academy(Delta Academies T
Nottinghamshire County Council,1111/1001,Children and Young People,CYP,Third Party Payments,EDA,17/07/2023,04-12800,"4,307.55",John Hunt Academy
Nottinghamshire County Council,1111/1001,Children and Young People,CYP,Third Party Payments,EDA,17/07/2023,04-12801,"11,914.50",Hawthorne Primary Academy(Flying Hi
Nottinghamshire County Council,1111/1001,Children and Young People,CYP,Third Party Payments,EDA,17/07/2023,04-12802,"7,423.65",Samuel Barlow Primary Academy
Nottinghamshire County Council,1111/1001,Children and Young People,CYP,Third Party Payments,EDA,17/07/2023,04-12803,"1,924.65",Flintham Primary Academy School
Nottinghamshire County Council,1111/1001,Children and Young People,CYP,Third Party Payments,EDA,17/07/2023,04-12804,"17,184.38",Parkgate Academy (Forge Trust)
Nottinghamshire County Council,1111/1001,Children and Young People,CYP,Third Party Payments,EDA,17/07/2023,04-12805,"4,689.43",Lowes Wong Infants (Academy)
Nottinghamshire County Council,1111/1001,Children and Young People,CYP,Third Party Payments,EDA,17/07/2023,04-12806,"5,957.25",Tuxford Primary Academy
Nottinghamshire County Council,1111/1001,Children and Young People,CYP,Third Party Payments,EDA,17/07/2023,04-12807,"8,156.85",Kimberley Primary & Nursery Acadamy
Nottinghamshire County Council,1111/1001,Children and Young People,CYP,Third Party Payments,EDA,17/07/2023,04-12808,"23,645.70",Greenwood Primary & Nursery School
Nottinghamshire County Council,1111/1001,Children and Young People,CYP,Third Party Payments,EDA,17/07/2023,04-12809,"17,505.15",West Park Academy
Nottinghamshire County Council,1111/1001,Children and Young People,CYP,Third Party Payments,EDA,17/07/2023,04-12810,"23,095.80",Barnby Road Academy Prim & Nursery
Nottinghamshire County Council,1111/1001,Children and Young People,CYP,Third Party Payments,EDA,17/07/2023,04-12811,"4,857.45",Keyworth Primary & Nursery School (
Nottinghamshire County Council,1111/1001,Children and Young People,CYP,Third Party Payments,EDA,17/07/2023,04-12812,"25,203.75",Sparken Hill Academy
Nottinghamshire County Council,1111/1001,Children and Young People,CYP,Third Party Payments,EDA,17/07/2023,04-12813,"1,374.75",Bilsthorpe Flying High Academy (Fly
Nottinghamshire County Council,1111/1001,Children and Young People,CYP,Third Party Payments,EDA,17/07/2023,04-12814,"11,364.60",Beeston Fields Primary(Flying High
Nottinghamshire County Council,1111/1001,Children and Young People,CYP,Third Party Payments,EDA,17/07/2023,04-12815,"13,335.08",Selston C of E Infant & Nursery Aca
Nottinghamshire County Council,1111/1001,Children and Young People,CYP,Third Party Payments,EDA,17/07/2023,04-12816,"7,973.55",Mount C of E Primary School (Academ
Nottinghamshire County Council,1111/1001,Children and Young People,CYP,Third Party Payments,EDA,17/07/2023,04-12817,"8,248.50",St Johns C of E Academy
Nottinghamshire County Council,1111/1001,Children and Young People,CYP,Third Party Payments,EDA,17/07/2023,04-12818,"2,327.91",St Peters C of E Academy
Nottinghamshire County Council,1111/1001,Children and Young People,CYP,Third Party Payments,EDA,17/07/2023,04-12819,"5,315.70",Leverton C of E Academy
Nottinghamshire County Council,1111/1001,Children and Young People,CYP,Third Party Payments,EDA,17/07/2023,04-12820,"2,334.02",Holy Trinity C of E Infant School
Nottinghamshire County Council,1111/1001,Children and Young People,CYP,Third Party Payments,EDA,17/07/2023,04-12821,"7,973.55",Sir Donald Bailey Academy (Forge Tr
Nottinghamshire County Council,1111/1001,Children and Young People,CYP,Third Party Payments,EDA,17/07/2023,04-12822,"2,474.55",Langold Dyscarr Community Academy
Nottinghamshire County Council,1111/1001,Children and Young People,CYP,Third Party Payments,EDA,17/07/2023,04-12823,"9,195.55",St Peters C of E Academy Mansfield
Nottinghamshire County Council,1111/1001,Children and Young People,CYP,Third Party Payments,EDA,17/07/2023,04-12824,"21,354.45",Abbey Primary Academy(Believe Acade
Nottinghamshire County Council,1111/1001,Children and Young People,CYP,Third Party Payments,EDA,17/07/2023,04-12825,"7,790.25",Springbank Primary Academy
Nottinghamshire County Council,1111/1001,Children and Young People,CYP,Third Party Payments,EDA,17/07/2023,04-12826,"1,649.70",Burntstump Seely CofE Primary Acade
Nottinghamshire County Council,1111/1001,Children and Young People,CYP,Third Party Payments,EDA,17/07/2023,04-12827,"8,981.70",St Swithuns C of E Primary Academy
Nottinghamshire County Council,1111/1001,Children and Young People,CYP,Third Party Payments,EDA,17/07/2023,04-12828,"5,535.66",Archbishop Cranmer C of E Academy
Nottinghamshire County Council,1111/1001,Children and Young People,CYP,Third Party Payments,EDA,17/07/2023,04-12829,"6,415.50",Cotgrave C of E Primary Academy(Dio
Nottinghamshire County Council,1111/1001,Children and Young People,CYP,Third Party Payments,EDA,17/07/2023,04-12830,"6,965.40",St Mary's C of E Primary Academy
Nottinghamshire County Council,1111/1001,Children and Young People,CYP,Third Party Payments,EDA,17/07/2023,04-12831,724.03,Gamston St Peter�s C Of E Primary S
Nottinghamshire County Council,1111/1001,Children and Young People,CYP,Third Party Payments,EDA,17/07/2023,04-12832,"7,790.25",Sacred Heart Catholic Voluntary Aca
Nottinghamshire County Council,1111/1001,Children and Young People,CYP,Third Party Payments,EDA,17/07/2023,04-12833,"19,796.40",Good Shephard Prim Catholic Vol Aca
Nottinghamshire County Council,1111/1001,Children and Young People,CYP,Third Party Payments,EDA,17/07/2023,04-12834,"10,998.00",Holy Cross Catholic Voluntary Acade
Nottinghamshire County Council,1111/1001,Children and Young People,CYP,Third Party Payments,EDA,17/07/2023,04-12835,"11,089.65",Holy Trinity Catholic Voluntary Aca
Nottinghamshire County Council,1111/1001,Children and Young People,CYP,Third Party Payments,EDA,17/07/2023,04-12836,"11,456.25",St Patricks Catholic Voluntary Acad
Nottinghamshire County Council,1111/1001,Children and Young People,CYP,Third Party Payments,EDA,17/07/2023,04-12837,"19,338.15",St Philip Neri with St Bede Vol Aca
Nottinghamshire County Council,1111/1001,Children and Young People,CYP,Third Party Payments,EDA,17/07/2023,04-12838,"3,207.75",St Josephs Catholic Primary Sch Aca
Nottinghamshire County Council,1111/1001,Children and Young People,CYP,Third Party Payments,EDA,17/07/2023,04-12839,"20,163.00",Worksop Priory CE Primary Academy
Nottinghamshire County Council,1111/1001,Children and Young People,CYP,Third Party Payments,EDA,17/07/2023,04-12840,"7,881.90",Huthwaite All Saints C ofE Infant S
Nottinghamshire County Council,1111/1001,Children and Young People,CYP,Third Party Payments,EDA,17/07/2023,04-12841,"12,464.40",Oak Tree Lane Primary Academy
Nottinghamshire County Council,1111/1001,Children and Young People,CYP,Third Party Payments,EDA,17/07/2023,04-12842,"11,511.24",Python Hill Academy (Forge Trust)
Nottinghamshire County Council,1111/1001,Children and Young People,CYP,Third Party Payments,EDA,17/07/2023,04-12843,"13,105.95",Netherfield Primary School (Academy
Nottinghamshire County Council,1111/1001,Children and Young People,CYP,Third Party Payments,EDA,17/07/2023,04-12844,"3,531.58",Candleby Lane School
Nottinghamshire County Council,1111/1001,Children and Young People,CYP,Third Party Payments,EDA,17/07/2023,04-12845,"20,254.65",Florence Nightingale Academy
Nottinghamshire County Council,1111/1001,Children and Young People,CYP,Third Party Payments,EDA,17/07/2023,04-12846,"18,146.70",Hillside Academy (Flying High Trust
Nottinghamshire County Council,1111/1001,Children and Young People,CYP,Third Party Payments,EDA,17/07/2023,04-12847,"17,963.40",Blidworth Oaks Primary Academy
Nottinghamshire County Council,1111/1001,Children and Young People,CYP,Third Party Payments,EDA,17/07/2023,04-12848,"8,615.10",The Flying High Academy
Nottinghamshire County Council,1111/1001,Children and Young People,CYP,Third Party Payments,EDA,17/07/2023,04-12849,"6,048.90",Serlby Park Academy
Nottinghamshire County Council,1111/1001,Children and Young People,CYP,Third Party Payments,EDA,17/07/2023,04-12850,"10,998.00",Hucknall Flying High Academy
Nottinghamshire County Council,1111/1001,Children and Young People,CYP,Third Party Payments,EDA,17/07/2023,04-12851,"17,321.85",Rosecliffe Spencer Academy
Nottinghamshire County Council,1111/1001,Children and Young People,CYP,Third Party Payments,EDA,17/07/2023,04-12852,"14,664.00",Bingham Primary & Nursery School
Nottinghamshire County Council,1111/1001,Children and Young People,CYP,Third Party Payments,EDA,17/07/2023,04-12853,"32,077.50",Rivendell Flying High Academy
Nottinghamshire County Council,1111/1001,Children and Young People,CYP,Third Party Payments,EDA,17/07/2023,04-12854,"20,163.00",Awsworth Primary & Nursery Academy
Nottinghamshire County Council,1111/1001,Children and Young People,CYP,Third Party Payments,EDA,17/07/2023,04-12855,"4,857.45",St Joseph's Catholic Primary School
Nottinghamshire County Council,1111/1001,Children and Young People,CYP,Third Party Payments,EDA,17/07/2023,04-12856,"7,606.95",Heathlands Primary School Academy
Nottinghamshire County Council,1111/1001,Children and Young People,CYP,Third Party Payments,EDA,17/07/2023,04-12857,"7,515.30",Bramble Academy
Nottinghamshire County Council,1111/1001,Children and Young People,CYP,Third Party Payments,EDA,17/07/2023,04-12858,"16,313.70",Sunnyside Spencer Academy (Spencer
Nottinghamshire County Council,1111/1001,Children and Young People,CYP,Third Party Payments,EDA,17/07/2023,04-12859,"14,114.10",Carlton Infant Academy (Redhill Aca
Nottinghamshire County Council,1111/1001,Children and Young People,CYP,Third Party Payments,EDA,17/07/2023,04-12861,"2,016.30",Bishop Alexander LEAD Academy
Nottinghamshire County Council,1111/1001,Children and Young People,CYP,Third Party Payments,EDA,17/07/2023,04-18295,"5,689.00",Bennerley Fields School(Esteem Mult
Nottinghamshire County Council,1111/1001,Children and Young People,CYP,Third Party Payments,EDA,18/07/2023,04-10054,"12,000.00",Heymann Primary School
Nottinghamshire County Council,1111/1001,Children and Young People,CYP,Third Party Payments,EDA,18/07/2023,04-10055,"12,000.00",Heymann Primary School
Nottinghamshire County Council,1111/1001,Children and Young People,CYP,Third Party Payments,EDA,18/07/2023,04-10058,"5,077.00",Heymann Primary School
Nottinghamshire County Council,1111/1001,Children and Young People,CYP,Third Party Payments,EDA,18/07/2023,04-10059,"12,000.00",Heymann Primary School
Nottinghamshire County Council,1111/1001,Children and Young People,CYP,Third Party Payments,EDA,18/07/2023,04-10079,600,Heymann Primary School
Nottinghamshire County Council,1111/1001,Children and Young People,CYP,Third Party Payments,EDA,18/07/2023,04-10080,"21,235.00",Heymann Primary School
Nottinghamshire County Council,1111/1001,Children and Young People,CYP,Third Party Payments,EDA,18/07/2023,04-12797,"10,173.15",Heymann Primary School
Nottinghamshire County Council,1111/1001,Children and Young People,CYP,Third Party Payments,EDA,19/07/2023,04-14210,"1,000.00",Toothill Academy
Nottinghamshire County Council,1111/1001,Children and Young People,CYP,Third Party Payments,EDA,19/07/2023,04-14211,"1,000.00",The Becket Catholic Voluntary Acade
Nottinghamshire County Council,1111/1001,Children and Young People,CYP,Third Party Payments,EDA,19/07/2023,04-14212,"1,000.00",South Wolds Academy & Sixth Form
Nottinghamshire County Council,1111/1001,Children and Young People,CYP,Third Party Payments,EDA,19/07/2023,04-14213,"1,000.00",West Bridgford School
Nottinghamshire County Council,1111/1001,Children and Young People,CYP,Third Party Payments,EDA,19/07/2023,04-14214,"3,923.00",Arnold Hill Academy (Spencer Academ
Nottinghamshire County Council,1111/1001,Children and Young People,CYP,Third Party Payments,EDA,19/07/2023,04-14215,"12,000.00",Leamington Primary & Nursery Academ
Nottinghamshire County Council,1111/1001,Children and Young People,CYP,Third Party Payments,EDA,19/07/2023,04-14216,"12,000.00",Robert Mellors Primary & Nursery Ac
Nottinghamshire County Council,1111/1001,Children and Young People,CYP,Third Party Payments,EDA,19/07/2023,04-14217,"12,000.00",Forest Glade Primary School (Academ
Nottinghamshire County Council,1111/1001,Children and Young People,CYP,Third Party Payments,EDA,19/07/2023,04-14218,"12,000.00",Hawthorne Primary Academy(Flying Hi
Nottinghamshire County Council,1111/1001,Children and Young People,CYP,Third Party Payments,EDA,19/07/2023,04-14219,"1,058.00",John Hunt Academy
Nottinghamshire County Council,1111/1001,Children and Young People,CYP,Third Party Payments,EDA,19/07/2023,04-14220,"9,000.00",John Hunt Academy
Nottinghamshire County Council,1111/1001,Children and Young People,CYP,Third Party Payments,EDA,19/07/2023,04-14221,"10,154.00",Sparken Hill Academy
Nottinghamshire County Council,1111/1001,Children and Young People,CYP,Third Party Payments,EDA,19/07/2023,04-14222,"6,923.00",Candleby Lane School
Nottinghamshire County Council,1111/1001,Children and Young People,CYP,Third Party Payments,EDA,19/07/2023,04-14223,"12,692.00",Holgate Academy
Nottinghamshire County Council,1111/1001,Children and Young People,CYP,Third Party Payments,EDA,19/07/2023,04-14224,"8,308.00",Priory Catholic Academy(St Ralph Sh
Nottinghamshire County Council,1111/1001,Children and Young People,CYP,Third Party Payments,EDA,19/07/2023,04-14225,"18,000.00",Arnold Hill Academy (Spencer Academ
Nottinghamshire County Council,1111/1001,Children and Young People,CYP,Third Party Payments,EDA,19/07/2023,04-14226,"4,500.00",Arnold Hill Academy (Spencer Academ
Nottinghamshire County Council,1111/1001,Children and Young People,CYP,Third Party Payments,EDA,19/07/2023,04-14227,635,Robert Mellors Primary & Nursery Ac
Nottinghamshire County Council,1111/1001,Children and Young People,CYP,Third Party Payments,EDA,19/07/2023,04-14228,"12,000.00",Robert Mellors Primary & Nursery Ac
Nottinghamshire County Council,1111/1001,Children and Young People,CYP,Third Party Payments,EDA,19/07/2023,04-14229,"6,923.00",Good Shephard Prim Catholic Vol Aca
Nottinghamshire County Council,1111/1001,Children and Young People,CYP,Third Party Payments,EDA,19/07/2023,04-14230,"12,000.00",The Elizabethan Academy
Nottinghamshire County Council,1111/1001,Children and Young People,CYP,Third Party Payments,EDA,19/07/2023,04-14231,"14,285.00",Arnold Hill Academy (Spencer Academ
Nottinghamshire County Council,1111/1001,Children and Young People,CYP,Third Party Payments,EDA,19/07/2023,04-14232,"6,923.00",Mount C of E Primary School (Academ
Nottinghamshire County Council,1111/1001,Children and Young People,CYP,Third Party Payments,EDA,19/07/2023,04-14233,"8,538.00",Larkfields Infant Academy
Nottinghamshire County Council,1111/1001,Children and Young People,CYP,Third Party Payments,EDA,19/07/2023,04-14234,"31,045.00",South Nottinghamshire Academy(Redhi
Nottinghamshire County Council,1111/1001,Children and Young People,CYP,Third Party Payments,EDA,19/07/2023,04-14235,"10,385.00",Heymann Primary School
Nottinghamshire County Council,1111/1001,Children and Young People,CYP,Third Party Payments,EDA,19/07/2023,04-14236,"6,923.00",Priory Catholic Academy(St Ralph Sh
Nottinghamshire County Council,1111/1001,Children and Young People,CYP,Third Party Payments,EDA,19/07/2023,04-14237,"6,923.00",Hucknall National Primary Academy
Nottinghamshire County Council,1111/1001,Children and Young People,CYP,Third Party Payments,EDA,19/07/2023,04-14238,"6,923.00",Tuxford Primary Academy
Nottinghamshire County Council,1111/1001,Children and Young People,CYP,Third Party Payments,EDA,19/07/2023,04-14239,"6,923.00",Beeston Fields Primary(Flying High
Nottinghamshire County Council,1111/1001,Children and Young People,CYP,Third Party Payments,EDA,19/07/2023,04-14240,"6,923.00",Priory Catholic Academy(St Ralph Sh
Nottinghamshire County Council,1111/1001,Children and Young People,CYP,Third Party Payments,EDA,19/07/2023,04-14241,"5,077.00",Robert Miles Infant School (Academy
Nottinghamshire County Council,1111/1001,Children and Young People,CYP,Third Party Payments,EDA,19/07/2023,04-14242,"6,923.00",Gamston St Peter�s C Of E Primary S
Nottinghamshire County Council,1111/1001,Children and Young People,CYP,Third Party Payments,EDA,19/07/2023,04-14243,"3,923.00",Arnold Hill Academy (Spencer Academ
Nottinghamshire County Council,1111/1001,Children and Young People,CYP,Third Party Payments,EDA,19/07/2023,04-14244,"3,923.00",Florence Nightingale Academy
Nottinghamshire County Council,1111/1001,Children and Young People,CYP,Third Party Payments,EDA,19/07/2023,04-14245,"6,923.00",Arnold Hill Academy (Spencer Academ
Nottinghamshire County Council,1111/1001,Children and Young People,CYP,Third Party Payments,EDA,19/07/2023,04-14246,"6,923.00",Greythorn Primary Academy
Nottinghamshire County Council,1111/1001,Children and Young People,CYP,Third Party Payments,EDA,19/07/2023,04-14247,"6,923.00",Christ The King Catholic Voluntary
Nottinghamshire County Council,1111/1001,Children and Young People,CYP,Third Party Payments,EDA,19/07/2023,04-14281,"12,000.00",Carlton Infant Academy (Redhill Aca
Nottinghamshire County Council,1111/1001,Children and Young People,CYP,Third Party Payments,EDA,20/07/2023,04-14403,"12,000.00",Kimberley Primary & Nursery Acadamy
Nottinghamshire County Council,1111/1001,Children and Young People,CYP,Third Party Payments,EDA,20/07/2023,04-14404,"10,385.00",The Minster School (Academy)
Nottinghamshire County Council,1111/1001,Children and Young People,CYP,Third Party Payments,EDA,20/07/2023,04-14405,"6,923.00",Christ The King Catholic Voluntary
Nottinghamshire County Council,1111/1001,Children and Young People,CYP,Third Party Payments,EDA,20/07/2023,04-14406,"3,923.00",Peafield Lane Academy
Nottinghamshire County Council,1111/1001,Children and Young People,CYP,Third Party Payments,EDA,20/07/2023,04-14407,"6,923.00",John Hunt Academy
Nottinghamshire County Council,1111/1001,Children and Young People,CYP,Third Party Payments,EDA,20/07/2023,04-14408,"6,923.00",Abbey Road Primary School Academy
Nottinghamshire County Council,1111/1001,Children and Young People,CYP,Third Party Payments,EDA,20/07/2023,04-14409,"6,923.00",Edwalton Primary Academy(Flying Hig
Nottinghamshire County Council,1111/1001,Children and Young People,CYP,Third Party Payments,EDA,20/07/2023,04-14410,"6,923.00",St Swithuns C of E Primary Academy
Nottinghamshire County Council,1111/1001,Children and Young People,CYP,Third Party Payments,EDA,20/07/2023,04-14411,"3,923.00",Sparken Hill Academy
Nottinghamshire County Council,1111/1001,Children and Young People,CYP,Third Party Payments,EDA,20/07/2023,04-14412,"6,923.00",Bramcote College
Nottinghamshire County Council,1111/1001,Children and Young People,CYP,Third Party Payments,EDA,20/07/2023,04-14413,"6,923.00",Abbey Road Primary School Academy
Nottinghamshire County Council,1111/1001,Children and Young People,CYP,Third Party Payments,EDA,20/07/2023,04-14414,"6,923.00",Sir John Sherbrooke Junior Academy
Nottinghamshire County Council,1111/1001,Children and Young People,CYP,Third Party Payments,EDA,20/07/2023,04-14415,"6,923.00",Mansfield Primary Academy
Nottinghamshire County Council,1111/1001,Children and Young People,CYP,Third Party Payments,EDA,20/07/2023,04-14416,"18,000.00",Oak Tree Lane Primary Academy
Nottinghamshire County Council,1111/1001,Children and Young People,CYP,Third Party Payments,EDA,20/07/2023,04-14417,"3,923.00",Outwood Academy Kirkby
Nottinghamshire County Council,1111/1001,Children and Young People,CYP,Third Party Payments,EDA,20/07/2023,04-14418,"6,923.00",Blidworth Oaks Primary Academy
Nottinghamshire County Council,1111/1001,Children and Young People,CYP,Third Party Payments,EDA,20/07/2023,04-14419,"9,692.00",Tuxford Academy
Nottinghamshire County Council,1111/1001,Children and Young People,CYP,Third Party Payments,EDA,20/07/2023,04-14420,"3,923.00",Joseph Whittaker Academy
Nottinghamshire County Council,1111/1001,Children and Young People,CYP,Third Party Payments,EDA,20/07/2023,04-14421,"10,846.00",Newark Academy
Nottinghamshire County Council,1111/1001,Children and Young People,CYP,Third Party Payments,EDA,20/07/2023,04-14422,"9,462.00",Springbank Primary Academy
Nottinghamshire County Council,1111/1001,Children and Young People,CYP,Third Party Payments,EDA,20/07/2023,04-14423,"11,308.00",Tuxford Academy
Nottinghamshire County Council,1111/1001,Children and Young People,CYP,Third Party Payments,EDA,20/07/2023,04-14424,"8,769.00",Queen Elizabeth's Academy
Nottinghamshire County Council,1111/1001,Children and Young People,CYP,Third Party Payments,EDA,20/07/2023,04-14425,"6,923.00",Meden School - A Torch Academy
Nottinghamshire County Council,1111/1001,Children and Young People,CYP,Third Party Payments,EDA,20/07/2023,04-14426,"9,692.00",Springbank Primary Academy
Nottinghamshire County Council,1111/1001,Children and Young People,CYP,Third Party Payments,EDA,20/07/2023,04-14427,"3,462.00",St Josephs Catholic Primary Sch Aca
Nottinghamshire County Council,1111/1001,Children and Young People,CYP,Third Party Payments,EDA,20/07/2023,04-14428,"2,538.00",Sir Donald Bailey Academy (Forge Tr
Nottinghamshire County Council,1111/1001,Children and Young People,CYP,Third Party Payments,EDA,20/07/2023,04-14429,"6,923.00",The Suthers School
Nottinghamshire County Council,1111/1001,Children and Young People,CYP,Third Party Payments,EDA,20/07/2023,04-14430,"9,000.00",Magnus Church of England Academy
Nottinghamshire County Council,1111/1001,Children and Young People,CYP,Third Party Payments,EDA,20/07/2023,04-14451,"23,437.50",Abbey Primary Academy(Believe Acade
Nottinghamshire County Council,1111/1001,Children and Young People,CYP,Third Party Payments,EDA,20/07/2023,04-14452,"30,057.75",Alderman Pounder Academy(Flying Hig
Nottinghamshire County Council,1111/1001,Children and Young People,CYP,Third Party Payments,EDA,20/07/2023,04-14453,"16,682.00",Huthwaite All Saints C ofE Infant S
Nottinghamshire County Council,1111/1001,Children and Young People,CYP,Third Party Payments,EDA,20/07/2023,04-14454,"5,629.65",Arnbrook Primary Academy
Nottinghamshire County Council,1111/1001,Children and Young People,CYP,Third Party Payments,EDA,20/07/2023,04-14455,"1,286.40",Barnby Road Academy Prim & Nursery
Nottinghamshire County Council,1111/1001,Children and Young People,CYP,Third Party Payments,EDA,20/07/2023,04-14456,"2,050.20",Beeston Fields Primary(Flying High
Nottinghamshire County Council,1111/1001,Children and Young People,CYP,Third Party Payments,EDA,20/07/2023,04-14457,"18,894.00",Bilsthorpe Flying High Academy (Fly
Nottinghamshire County Council,1111/1001,Children and Young People,CYP,Third Party Payments,EDA,20/07/2023,04-14458,"3,927.30",Bingham Primary & Nursery School
Nottinghamshire County Council,1111/1001,Children and Young People,CYP,Third Party Payments,EDA,20/07/2023,04-14459,"14,217.00",Birklands Primary (Academy)
Nottinghamshire County Council,1111/1001,Children and Young People,CYP,Third Party Payments,EDA,20/07/2023,04-14460,"32,923.50",Blidworth Oaks Primary Academy
Nottinghamshire County Council,1111/1001,Children and Young People,CYP,Third Party Payments,EDA,20/07/2023,04-14461,"21,863.40",Bracken Lane Primary Academy
Nottinghamshire County Council,1111/1001,Children and Young People,CYP,Third Party Payments,EDA,20/07/2023,04-14462,"9,291.75",Brierley Forest Primary & Nursery A
Nottinghamshire County Council,1111/1001,Children and Young People,CYP,Third Party Payments,EDA,20/07/2023,04-14463,"3,666.00",Burntstump Seely CofE Primary Acade
Nottinghamshire County Council,1111/1001,Children and Young People,CYP,Third Party Payments,EDA,20/07/2023,04-14464,"6,546.15",Cotgrave C of E Primary Academy(Dio
Nottinghamshire County Council,1111/1001,Children and Young People,CYP,Third Party Payments,EDA,20/07/2023,04-14465,"7,593.30",St Peters C of E Academy
Nottinghamshire County Council,1111/1001,Children and Young People,CYP,Third Party Payments,EDA,20/07/2023,04-14466,"2,880.15",Flintham Primary Academy School
Nottinghamshire County Council,1111/1001,Children and Young People,CYP,Third Party Payments,EDA,20/07/2023,04-14467,"20,200.18",The Flying High Academy
Nottinghamshire County Council,1111/1001,Children and Young People,CYP,Third Party Payments,EDA,20/07/2023,04-14468,"13,482.30",Forest Glade Primary School (Academ
Nottinghamshire County Council,1111/1001,Children and Young People,CYP,Third Party Payments,EDA,20/07/2023,04-14469,"2,199.60",Gamston St Peter�s C Of E Primary S
Nottinghamshire County Council,1111/1001,Children and Young People,CYP,Third Party Payments,EDA,20/07/2023,04-14470,"7,723.95",Awsworth Primary & Nursery Academy
Nottinghamshire County Council,1111/1001,Children and Young People,CYP,Third Party Payments,EDA,20/07/2023,04-14471,"21,338.85",Greenwood Primary & Nursery School
Nottinghamshire County Council,1111/1001,Children and Young People,CYP,Third Party Payments,EDA,20/07/2023,04-14472,"3,430.05",Gunthorpe C OF E Primary Academy
Nottinghamshire County Council,1111/1001,Children and Young People,CYP,Third Party Payments,EDA,20/07/2023,04-14473,"7,593.30",Haddon Primary School (Academy)
Nottinghamshire County Council,1111/1001,Children and Young People,CYP,Third Party Payments,EDA,20/07/2023,04-14474,672.6,Haggonfields Primary Academy
Nottinghamshire County Council,1111/1001,Children and Young People,CYP,Third Party Payments,EDA,20/07/2023,04-14475,"19,379.55",Hawthorne Primary Academy(Flying Hi
Nottinghamshire County Council,1111/1001,Children and Young People,CYP,Third Party Payments,EDA,20/07/2023,04-14476,"17,674.80",Heymann Primary School
Nottinghamshire County Council,1111/1001,Children and Young People,CYP,Third Party Payments,EDA,20/07/2023,04-14477,"15,962.85",Hillocks Primary Academy
Nottinghamshire County Council,1111/1001,Children and Young People,CYP,Third Party Payments,EDA,20/07/2023,04-14478,"23,698.80",Hillside Academy (Flying High Trust
Nottinghamshire County Council,1111/1001,Children and Young People,CYP,Third Party Payments,EDA,20/07/2023,04-14479,"4,582.50",Holy Cross Catholic Voluntary Acade
Nottinghamshire County Council,1111/1001,Children and Young People,CYP,Third Party Payments,EDA,20/07/2023,04-14480,"13,628.50",Holy Trinity Catholic Voluntary Aca
Nottinghamshire County Council,1111/1001,Children and Young People,CYP,Third Party Payments,EDA,20/07/2023,04-14481,"19,847.10",Hucknall Flying High Academy
Nottinghamshire County Council,1111/1001,Children and Young People,CYP,Third Party Payments,EDA,20/07/2023,04-14482,522.6,John Clifford School
Nottinghamshire County Council,1111/1001,Children and Young People,CYP,Third Party Payments,EDA,20/07/2023,04-14483,"13,222.95",Heathlands Primary School Academy
Nottinghamshire County Council,1111/1001,Children and Young People,CYP,Third Party Payments,EDA,20/07/2023,04-14484,"12,274.35",John Hunt Academy
Nottinghamshire County Council,1111/1001,Children and Young People,CYP,Third Party Payments,EDA,20/07/2023,04-14485,"6,169.15",Keyworth Primary & Nursery School (
Nottinghamshire County Council,1111/1001,Children and Young People,CYP,Third Party Payments,EDA,20/07/2023,04-14486,"12,346.65",Kimberley Primary & Nursery Acadamy
Nottinghamshire County Council,1111/1001,Children and Young People,CYP,Third Party Payments,EDA,20/07/2023,04-14487,"1,656.50",Kingston Park Academy
Nottinghamshire County Council,1111/1001,Children and Young People,CYP,Third Party Payments,EDA,20/07/2023,04-14488,"16,703.70",Kirkby Woodhouse Academy School
Nottinghamshire County Council,1111/1001,Children and Young People,CYP,Third Party Payments,EDA,20/07/2023,04-14489,"1,095.20",Langold Dyscarr Community Academy
Nottinghamshire County Council,1111/1001,Children and Young People,CYP,Third Party Payments,EDA,20/07/2023,04-14490,"28,158.00",Leamington Primary & Nursery Academ
Nottinghamshire County Council,1111/1001,Children and Young People,CYP,Third Party Payments,EDA,20/07/2023,04-14491,"5,874.05",Leverton C of E Academy
Nottinghamshire County Council,1111/1001,Children and Young People,CYP,Third Party Payments,EDA,20/07/2023,04-14492,"10,951.30",Mansfield Primary Academy
Nottinghamshire County Council,1111/1001,Children and Young People,CYP,Third Party Payments,EDA,20/07/2023,04-14493,"21,312.60",Mapplewells Primary & Nursery Acade
Nottinghamshire County Council,1111/1001,Children and Young People,CYP,Third Party Payments,EDA,20/07/2023,04-14494,"6,938.10",Mount C of E Primary School (Academ
Nottinghamshire County Council,1111/1001,Children and Young People,CYP,Third Party Payments,EDA,20/07/2023,04-14495,"43,903.40",Netherfield Primary School (Academy
Nottinghamshire County Council,1111/1001,Children and Young People,CYP,Third Party Payments,EDA,20/07/2023,04-14496,"37,705.20",Norbridge Academy(Delta Academies T
Nottinghamshire County Council,1111/1001,Children and Young People,CYP,Third Party Payments,EDA,20/07/2023,04-14497,"3,586.25",Oak Tree Lane Primary Academy
Nottinghamshire County Council,1111/1001,Children and Young People,CYP,Third Party Payments,EDA,20/07/2023,04-14498,"13,720.20",Parkdale Primary Academy
Nottinghamshire County Council,1111/1001,Children and Young People,CYP,Third Party Payments,EDA,20/07/2023,04-14499,"25,270.50",Peafield Lane Academy
Nottinghamshire County Council,1111/1001,Children and Young People,CYP,Third Party Payments,EDA,20/07/2023,04-14500,"6,864.00",Ranskill Primary Academy
Nottinghamshire County Council,1111/1001,Children and Young People,CYP,Third Party Payments,EDA,20/07/2023,04-14501,"22,174.70",Richard Bonnington Primary Academy(
Nottinghamshire County Council,1111/1001,Children and Young People,CYP,Third Party Payments,EDA,20/07/2023,04-14502,"16,233.75",Rivendell Flying High Academy
Nottinghamshire County Council,1111/1001,Children and Young People,CYP,Third Party Payments,EDA,20/07/2023,04-14503,"28,312.05",Robert Mellors Primary & Nursery Ac
Nottinghamshire County Council,1111/1001,Children and Young People,CYP,Third Party Payments,EDA,20/07/2023,04-14504,"14,581.40",Rosecliffe Spencer Academy
Nottinghamshire County Council,1111/1001,Children and Young People,CYP,Third Party Payments,EDA,20/07/2023,04-14505,"11,572.86",Sacred Heart Catholic Voluntary Aca
Nottinghamshire County Council,1111/1001,Children and Young People,CYP,Third Party Payments,EDA,20/07/2023,04-14506,"19,070.00",Samuel Barlow Primary Academy
Nottinghamshire County Council,1111/1001,Children and Young People,CYP,Third Party Payments,EDA,20/07/2023,04-14507,"21,691.65",Selston C of E Infant & Nursery Aca
Nottinghamshire County Council,1111/1001,Children and Young People,CYP,Third Party Payments,EDA,20/07/2023,04-14508,"17,655.15",Serlby Park Academy
Nottinghamshire County Council,1111/1001,Children and Young People,CYP,Third Party Payments,EDA,20/07/2023,04-14509,"22,125.15",Sparken Hill Academy
Nottinghamshire County Council,1111/1001,Children and Young People,CYP,Third Party Payments,EDA,20/07/2023,04-14510,"17,670.90",Springbank Primary Academy
Nottinghamshire County Council,1111/1001,Children and Young People,CYP,Third Party Payments,EDA,20/07/2023,04-14511,"24,150.75",St Augustine's Academy (The Forge T
Nottinghamshire County Council,1111/1001,Children and Young People,CYP,Third Party Payments,EDA,20/07/2023,04-14512,"16,888.95",St Johns C of E Academy
Nottinghamshire County Council,1111/1001,Children and Young People,CYP,Third Party Payments,EDA,20/07/2023,04-14513,"15,972.45",St Josephs Catholic Primary Sch Aca
Nottinghamshire County Council,1111/1001,Children and Young People,CYP,Third Party Payments,EDA,20/07/2023,04-14514,"18,330.00",St Patricks Catholic Voluntary Acad
Nottinghamshire County Council,1111/1001,Children and Young People,CYP,Third Party Payments,EDA,20/07/2023,04-14515,"6,731.60",St Peters C of E Academy Mansfield
Nottinghamshire County Council,1111/1001,Children and Young People,CYP,Third Party Payments,EDA,20/07/2023,04-14516,"18,591.30",St Philip Neri with St Bede Vol Aca
Nottinghamshire County Council,1111/1001,Children and Young People,CYP,Third Party Payments,EDA,20/07/2023,04-14517,"3,380.70",St Swithuns C of E Primary Academy
Nottinghamshire County Council,1111/1001,Children and Young People,CYP,Third Party Payments,EDA,20/07/2023,04-14518,"23,957.70",Candleby Lane School
Nottinghamshire County Council,1111/1001,Children and Young People,CYP,Third Party Payments,EDA,20/07/2023,04-14519,"11,432.55",Florence Nightingale Academy
Nottinghamshire County Council,1111/1001,Children and Young People,CYP,Third Party Payments,EDA,20/07/2023,04-14520,"23,304.45",Good Shephard Prim Catholic Vol Aca
Nottinghamshire County Council,1111/1001,Children and Young People,CYP,Third Party Payments,EDA,20/07/2023,04-14521,"36,241.87",Parkgate Academy (Forge Trust)
Nottinghamshire County Council,1111/1001,Children and Young People,CYP,Third Party Payments,EDA,20/07/2023,04-14522,"14,966.40",Python Hill Academy (Forge Trust)
Nottinghamshire County Council,1111/1001,Children and Young People,CYP,Third Party Payments,EDA,20/07/2023,04-14523,"50,085.00",Sir Donald Bailey Academy (Forge Tr
Nottinghamshire County Council,1111/1001,Children and Young People,CYP,Third Party Payments,EDA,20/07/2023,04-14524,"4,158.40",West Park Academy
Nottinghamshire County Council,1111/1001,Children and Young People,CYP,Third Party Payments,EDA,20/07/2023,04-14525,"13,351.65",Thrumpton Primary Academy
Nottinghamshire County Council,1111/1001,Children and Young People,CYP,Third Party Payments,EDA,20/07/2023,04-14526,"16,625.70",Tuxford Primary Academy
Nottinghamshire County Council,1111/1001,Children and Young People,CYP,Third Party Payments,EDA,20/07/2023,04-14527,"15,363.35",Wainwright Primary Academy (DALP)
Nottinghamshire County Council,1111/1001,Children and Young People,CYP,Third Party Payments,EDA,20/07/2023,04-14528,"14,872.50",Worksop Priory CE Primary Academy
Nottinghamshire County Council,1111/1001,Children and Young People,CYP,Third Party Payments,EDA,20/07/2023,04-14529,"17,128.67",St Joseph's Catholic Primary School
Nottinghamshire County Council,1111/1001,Children and Young People,CYP,Third Party Payments,EDA,20/07/2023,04-14530,"5,958.35",Bramble Academy
Nottinghamshire County Council,1111/1001,Children and Young People,CYP,Third Party Payments,EDA,20/07/2023,04-14531,914.55,Bishop Alexander LEAD Academy
Nottinghamshire County Council,1111/1001,Children and Young People,CYP,Third Party Payments,EDA,20/07/2023,04-14532,"2,928.20",Sunnyside Spencer Academy (Spencer
Nottinghamshire County Council,1111/1001,Children and Young People,CYP,Third Party Payments,EDA,20/07/2023,04-14533,"15,184.65",Carlton Infant Academy (Redhill Aca
Nottinghamshire County Council,1111/1001,Children and Young People,CYP,Third Party Payments,EDA,21/07/2023,04-18336,"1,750.00",Church Gresley Infant & Nursery  (J
Nottinghamshire County Council,1111/1001,Children and Young People,CYP,Third Party Payments,EDA,21/07/2023,04-18347,"14,583.33",Woodlands School (Academy)
Nottinghamshire County Council,1111/1001,Children and Young People,CYP,Third Party Payments,EDA,24/07/2023,04-15075,"59,793.33",Redgate Primary Academy
Nottinghamshire County Council,1111/1001,Children and Young People,CYP,Third Party Payments,EDA,24/07/2023,04-15076,"2,214.00",Redgate Primary Academy
Nottinghamshire County Council,1111/1001,Children and Young People,CYP,Third Party Payments,EDA,24/07/2023,04-15077,"4,166.67",Beech Academy (Nexus Multi AcademyT
Nottinghamshire County Council,1111/1001,Children and Young People,CYP,Third Party Payments,EDA,24/07/2023,04-15078,833.33,Yeoman Park Academy
Nottinghamshire County Council,1111/1001,Children and Young People,CYP,Third Party Payments,EDA,24/07/2023,04-15079,900,Yeoman Park Academy
Nottinghamshire County Council,1111/1001,Children and Young People,CYP,Third Party Payments,EDA,24/07/2023,04-15080,"1,666.67",Foxwood Academy
Nottinghamshire County Council,1111/1001,Children and Young People,CYP,Third Party Payments,EDA,24/07/2023,04-15082,"104,240.25",Beech Academy (Nexus Multi AcademyT
Nottinghamshire County Council,1111/1001,Children and Young People,CYP,Third Party Payments,EDA,24/07/2023,04-15083,"139,202.08",Yeoman Park Academy
Nottinghamshire County Council,1111/1001,Children and Young People,CYP,Third Party Payments,EDA,24/07/2023,04-15084,"150,520.33",Fountaindale Academy (Nexus Trust)
Nottinghamshire County Council,1111/1001,Children and Young People,CYP,Third Party Payments,EDA,24/07/2023,04-15085,"132,544.08",Foxwood Academy
Nottinghamshire County Council,1111/1001,Children and Young People,CYP,Third Party Payments,EDA,24/07/2023,04-18420,"17,050.41",Holbrook Centre for Autism
Nottinghamshire County Council,1111/1001,Children and Young People,CYP,Third Party Payments,EDA,24/07/2023,04-18421,"7,181.00",Heatherwood School
Nottinghamshire County Council,1111/1001,Children and Young People,CYP,Third Party Payments,EDA,27/07/2023,04-15243,"10,353.77",Arnold Hill Academy (Spencer Academ
Nottinghamshire County Council,1111/1001,Children and Young People,CYP,Third Party Payments,EDA,27/07/2023,04-18462,"1,604.00",Pilsley Primary School
Nottinghamshire County Council,1111/1001,Children and Young People,CYP,Third Party Payments,EDA,28/07/2023,04-15286,"63,312.43",South Wolds Academy & Sixth Form
Nottinghamshire County Council,1111/1001,Children and Young People,CYP,Third Party Payments,EDA,28/07/2023,04-15287,"5,953.64",South Wolds Academy & Sixth Form
Nottinghamshire County Council,1111/1001,Children and Young People,CYP,Third Party Payments,EDA,28/07/2023,04-15288,"10,651.32",Quarrydale Academy
Nottinghamshire County Council,1111/1001,Children and Young People,CYP,Third Party Payments,EDA,28/07/2023,04-15289,"148,155.14",Quarrydale Academy
Nottinghamshire County Council,1111/1001,Children and Young People,CYP,Third Party Payments,EDA,28/07/2023,04-15290,"144,016.27",Arnold Hill Academy (Spencer Academ
Nottinghamshire County Council,1111/1001,Children and Young People,CYP,Third Party Payments,EDA,28/07/2023,04-18514,"14,484.00",Springfield Primary School
Nottinghamshire County Council,1111/1001,Children and Young People,CYP,Third Party Payments,EDA,31/07/2023,04-18566,"3,808.00",Priory City of Lincoln Academy
Nottinghamshire County Council,1111/1001,Children and Young People,CYP,Third Party Payments,EDA,31/07/2023,04-18568,"2,090.00",Priory City of Lincoln Academy
Nottinghamshire County Council,1111/1001,Children and Young People,CYP,Third Party Payments,EDA,31/07/2023,04-18569,"1,235.00",Priory City of Lincoln Academy
Nottinghamshire County Council,1111/1001,Children and Young People,CYP,Third Party Payments,EDA,31/07/2023,04-18606,"7,772.00",Springfield Primary School
Nottinghamshire County Council,1111/1001,Children and Young People,CYP,Third Party Payments,EFA,03/07/2023,04-18167,"1,483.70",Real Education Ltd
Nottinghamshire County Council,1111/1001,Children and Young People,CYP,Third Party Payments,EFA,03/07/2023,04-18171,"1,007.12",Childrens Therapy Solutions Ltd
Nottinghamshire County Council,1111/1001,Children and Young People,CYP,Third Party Payments,EFA,03/07/2023,04-18188,"13,050.00",1st Staff Ltd
Nottinghamshire County Council,1111/1001,Children and Young People,CYP,Third Party Payments,EFA,03/07/2023,04-18224,"2,470.00",Active Support (Luton) Ltd
Nottinghamshire County Council,1111/1001,Children and Young People,CYP,Third Party Payments,EFA,03/07/2023,04-18364,"3,666.67",Channels & Choices Therapeutic Fost
Nottinghamshire County Council,1111/1001,Children and Young People,CYP,Third Party Payments,EFA,03/07/2023,04-18365,"3,666.67",Channels & Choices Therapeutic Fost
Nottinghamshire County Council,1111/1001,Children and Young People,CYP,Third Party Payments,EFA,03/07/2023,04-18367,"3,666.67",Channels & Choices Therapeutic Fost
Nottinghamshire County Council,1111/1001,Children and Young People,CYP,Third Party Payments,EFA,03/07/2023,04-18379,"1,617.67",Teaching Personnel Ltd
Nottinghamshire County Council,1111/1001,Children and Young People,CYP,Third Party Payments,EFA,03/07/2023,04-18383,"8,426.75",Teaching Personnel Ltd
Nottinghamshire County Council,1111/1001,Children and Young People,CYP,Third Party Payments,EFA,04/07/2023,04-18440,"18,852.14",Acorn Care & Education Ltd
Nottinghamshire County Council,1111/1001,Children and Young People,CYP,Third Party Payments,EFA,04/07/2023,04-18441,"18,852.14",Acorn Care & Education Ltd
Nottinghamshire County Council,1111/1001,Children and Young People,CYP,Third Party Payments,EFA,04/07/2023,04-18442,"18,852.14",Acorn Care & Education Ltd
Nottinghamshire County Council,1111/1001,Children and Young People,CYP,Third Party Payments,EFA,04/07/2023,04-18444,"3,520.00",Do Talk Write Ltd
Nottinghamshire County Council,1111/1001,Children and Young People,CYP,Third Party Payments,EFA,04/07/2023,04-18445,"3,520.00",Do Talk Write Ltd
Nottinghamshire County Council,1111/1001,Children and Young People,CYP,Third Party Payments,EFA,04/07/2023,04-18446,"3,520.00",Do Talk Write Ltd
Nottinghamshire County Council,1111/1001,Children and Young People,CYP,Third Party Payments,EFA,04/07/2023,04-18447,"3,520.00",Do Talk Write Ltd
Nottinghamshire County Council,1111/1001,Children and Young People,CYP,Third Party Payments,EFA,04/07/2023,04-18448,"3,520.00",Do Talk Write Ltd
Nottinghamshire County Council,1111/1001,Children and Young People,CYP,Third Party Payments,EFA,04/07/2023,04-18449,"3,520.00",Do Talk Write Ltd
Nottinghamshire County Council,1111/1001,Children and Young People,CYP,Third Party Payments,EFA,04/07/2023,04-18453,"9,096.00",A Place To Call Our Own Ltd
Nottinghamshire County Council,1111/1001,Children and Young People,CYP,Third Party Payments,EFA,05/07/2023,04-18173,"2,800.00",Helping Children Smile Again
Nottinghamshire County Council,1111/1001,Children and Young People,CYP,Third Party Payments,EFA,05/07/2023,04-18232,"2,166.04",Prime8 Education
Nottinghamshire County Council,1111/1001,Children and Young People,CYP,Third Party Payments,EFA,05/07/2023,04-18417,"1,920.00",MindJam Ltd
Nottinghamshire County Council,1111/1001,Children and Young People,CYP,Third Party Payments,EFA,05/07/2023,04-18493,"3,168.00",Fresh Start in Education Ltd
Nottinghamshire County Council,1111/1001,Children and Young People,CYP,Third Party Payments,EFA,05/07/2023,04-18497,"2,657.01",Educ8 (Your Chapter Ltd)
Nottinghamshire County Council,1111/1001,Children and Young People,CYP,Third Party Payments,EFA,05/07/2023,04-18525,"18,852.14",Acorn Care & Education Ltd
Nottinghamshire County Council,1111/1001,Children and Young People,CYP,Third Party Payments,EFA,06/07/2023,04-18192,622.66,Childrens Therapy Solutions Ltd
Nottinghamshire County Council,1111/1001,Children and Young People,CYP,Third Party Payments,EFA,06/07/2023,04-18461,"26,333.32",Horizon Care & Education Group Ltd
Nottinghamshire County Council,1111/1001,Children and Young People,CYP,Third Party Payments,EFA,06/07/2023,04-18463,"10,128.20",Horizon Care & Education Group Ltd
Nottinghamshire County Council,1111/1001,Children and Young People,CYP,Third Party Payments,EFA,06/07/2023,04-18508,"15,876.00",TBAC Consultants Ltd
Nottinghamshire County Council,1111/1001,Children and Young People,CYP,Third Party Payments,EFA,07/07/2023,04-18199,"12,225.50",Lincoln Minster School
Nottinghamshire County Council,1111/1001,Children and Young People,CYP,Third Party Payments,EFA,07/07/2023,04-18351,"1,404.00",Switch Up CIC
Nottinghamshire County Council,1111/1001,Children and Young People,CYP,Third Party Payments,EFA,07/07/2023,04-18352,"1,404.00",Switch Up CIC
Nottinghamshire County Council,1111/1001,Children and Young People,CYP,Third Party Payments,EFA,07/07/2023,04-18353,"1,404.80",Switch Up CIC
Nottinghamshire County Council,1111/1001,Children and Young People,CYP,Third Party Payments,EFA,07/07/2023,04-18590,"3,520.00",Do Talk Write Ltd
Nottinghamshire County Council,1111/1001,Children and Young People,CYP,Third Party Payments,EFA,07/07/2023,04-18591,"3,520.00",Do Talk Write Ltd
Nottinghamshire County Council,1111/1001,Children and Young People,CYP,Third Party Payments,EFA,07/07/2023,04-18592,"3,520.00",Do Talk Write Ltd
Nottinghamshire County Council,1111/1001,Children and Young People,CYP,Third Party Payments,EFA,07/07/2023,04-18593,"3,520.00",Do Talk Write Ltd
Nottinghamshire County Council,1111/1001,Children and Young People,CYP,Third Party Payments,EFA,07/07/2023,04-18624,"3,520.00",Do Talk Write Ltd
Nottinghamshire County Council,1111/1001,Children and Young People,CYP,Third Party Payments,EFA,10/07/2023,04-11581,"3,175.10",[Redacted]
Nottinghamshire County Council,1111/1001,Children and Young People,CYP,Third Party Payments,EFA,10/07/2023,04-18221,607,SpeechRight Ltd
Nottinghamshire County Council,1111/1001,Children and Young People,CYP,Third Party Payments,EFA,10/07/2023,04-18263,"27,816.00",Abbeywood School (Witherslack Group
Nottinghamshire County Council,1111/1001,Children and Young People,CYP,Third Party Payments,EFA,10/07/2023,04-18290,"17,100.00",Equip Education & Support Services
